Workbook

Sheet SquareWave
B1: Fourier Approximations
C2: to a Square Wave
B4: This DIGMath module illustrates
B5: the successive Fourier approximations
C6: to a square wave,
C7: which is periodic
C8: with period 2p.
A12: Select all the Fourier approximations you want to see
B14: TRUE
B16: FALSE | G16: The Fourier approximations are:
B17: TRUE | H17: =IF(B14=TRUE,"n = 1:","") -> n = 1: | I17: =IF(B14=TRUE,"1/2 + 2/pi sin x","") -> 1/2 + 2/pi sin x
B19: TRUE | H19: =IF(B16=TRUE,"n = 3:","") ->  | I19: =IF(B16=TRUE,"1/2 + 2/pi sin x + 2/3pi sin (3x)","") -> 
B21: TRUE | H21: =IF(B19=TRUE,"n = 5:","") -> n = 5: | I21: =IF(B19=TRUE,"1/2 + 2/pi sin x + 2/3pi sin (3x) + 2/5pi sin (5x)","") -> 1/2 + 2/pi sin x + 2/3pi sin (3x) + 2/5pi sin (5x)
H23: =IF(B21=TRUE,"n = 7:","") -> n = 7: | I23: =IF(B21=TRUE,"1/2 + 2/pi sin x + 2/3pi sin (3x) + 2/5pi sin (5x) + 2/7pi sin (7x)","") -> 1/2 + 2/pi sin x + 2/3pi sin (3x) + 2/5pi sin (5x) + 2/7pi sin (7x)
A26: Click each item below for suggestions and investigations
B27: Item 1
B28: Item 2
B29: Item 3
B30: Item 4
A34: To access/download all the DIGMath Apps for Calculus
A35: Click this link: | C35: DIGMath for Calculus
A37: Created by: Sheldon P. Gordon
A38: Farmingdale State College
A39: Development of this module was supported by the
A40: NSF's Division of Undergraduate Education
A41: under grants DUE-0310123 and DUE-0442160.

Sheet TriangleWave
B1: Fourier Approximations
C2: to a Triangle Wave
B4: This DIGMath module illustrates
B5: the successive Fourier approximations
C6: to a triangle wave,
C7: which is periodic
C8: with period 2.
A12: Select all the Fourier approximations you want to see
B14: TRUE
B16: TRUE | G16: The Fourier approximations are:
B17: TRUE | G17: =IF(B14=TRUE,"n = 1:","") -> n = 1: | H17: =IF(B14=TRUE,"1/2 - 4/pi^2 cos (pi* x)","") -> 1/2 - 4/pi^2 cos (pi* x)
B19: TRUE | G19: =IF(B16=TRUE,"n = 3:","") -> n = 3: | H19: =IF(B16=TRUE,"1/2 - 4/pi^2 cos (pi* x) - 4/9pi^2 cos (3pi*x)","") -> 1/2 - 4/pi^2 cos (pi* x) - 4/9pi^2 cos (3pi*x)
B21: TRUE | G21: =IF(B19=TRUE,"n = 5:","") -> n = 5: | H21: =IF(B19=TRUE,"1/2 - 4/pi^2 cos (pi* x) - 4/9pi^2 cos (3pi*x) - 4/25pi^2 cos(5pi*x)","") -> 1/2 - 4/pi^2 cos (pi* x) - 4/9pi^2 cos (3pi*x) - 4/25pi^2 cos(5pi*x)
G23: =IF(B21=TRUE,"n = 7:","") -> n = 7: | H23: =IF(B21=TRUE,"1/2 - 4/pi^2 cos (pi* x) - 4/9pi^2 cos (3pi*x) - 4/25pi^2 cos(5pi*x) - 4/49pi^2 cos(7pi*x)","") -> 1/2 - 4/pi^2 cos (pi* x) - 4/9pi^2 cos (3pi*x) - 4/25pi^2 cos(5pi*x) - 4/49pi^2 cos(7pi*x)
A28: Click each item below for suggestions and investigations
B29: Item 1
B30: Item 2
B31: Item 3
B32: Item 4
A36: To access/download all the DIGMath Apps for Calculus
A37: Click this link: | C37: DIGMath for Calculus
A39: Created by: Sheldon P. Gordon
A40: Farmingdale State College
A41: Development of this module was supported by the
A42: NSF's Division of Undergraduate Education
A43: under grants DUE-0310123 and DUE-0442160.

Sheet SawtoothWave
B1: Fourier Approximations
C2: to a Sawtooth Wave
B4: This DIGMath module illustrates
B5: the successive Fourier approximations
C6: to a sawtooth wave,
C7: which is periodic
C8: with period p.
A12: Select all the Fourier approximations you want to see
B14: TRUE
B16: TRUE | G16: The Fourier approximations are:
B17: TRUE | G17: =IF(B14=TRUE,"n = 1:","") -> n = 1: | H17: =IF(B14=TRUE,"1/2 - sin (pi* x)/pi","") -> 1/2 - sin (pi* x)/pi
B19: TRUE | G19: =IF(B16=TRUE,"n = 2:","") -> n = 2: | H19: =IF(B16=TRUE,"1/2 - [ sin (pi* x) + sin (2pi*x)/2] / pi","") -> 1/2 - [ sin (pi* x) + sin (2pi*x)/2] / pi
B21: TRUE | G21: =IF(B19=TRUE,"n = 3:","") -> n = 3: | H21: =IF(B19=TRUE,"1/2 - [ sin (pi* x) + sin (2pi*x)/2 + sin (3pi*x)/3]/ pi","") -> 1/2 - [ sin (pi* x) + sin (2pi*x)/2 + sin (3pi*x)/3]/ pi
G23: =IF(B21=TRUE,"n = 4:","") -> n = 4: | H23: =IF(B21=TRUE,"1/2 - [ sin (pi* x) + sin (2pi*x)/2 + sin (3pi*x)/3 + sin (4pi*x)/4 ]/ pi","") -> 1/2 - [ sin (pi* x) + sin (2pi*x)/2 + sin (3pi*x)/3 + sin (4pi*x)/4 ]/ pi
A26: Click each item below for suggestions and investigations
B27: Item 1
B28: Item 2
B29: Item 3
B30: Item 4
A34: To access/download all the DIGMath Apps for Calculus
A35: Click this link: | C35: DIGMath for Calculus
A37: Created by: Sheldon P. Gordon
A38: Farmingdale State College
A39: Development of this module was supported by the
A40: NSF's Division of Undergraduate Education
A41: under grants DUE-0310123 and DUE-0442160.

Sheet Sheet2
A1: xMin = | B1: =-2*PI() -> -6.283185307 | C1: x | D1: n = 1 | E1: n = 3 | F1: n = 5 | G1: n = 7 | H1: n=1 | I1: n = 3 | J1: n = 5 | K1: n = 7 | M1: xMin = | N1: -2 | O1: x | P1: n = 1 | Q1: n = 3 | R1: n = 5 | S1: n = 7 | T1: n=1 | U1: n = 3 | V1: n = 5 | W1: n = 7 | Y1: xMin = | Z1: -3.14 | AA1: x | AB1: n = 1 | AC1: n = 2 | AD1: n = 3 | AE1: n = 4 | AF1: n = 1 | AG1: n = 2 | AH1: n = 3 | AI1: n = 4
A2: xMax = | B2: =3*PI() -> 9.424777961 | H2: For graphing | M2: xMax = | N2: 4 | T2: For graphing | Y2: xMax = | Z2: 6.28 | AF2: For graphing
C3: =a -> -6.283185307 | D3: =0.5+2/PI()*SIN(C3) -> 0.5 | E3: =D3+2/3/PI()*SIN(3*C3) -> 0.5 | F3: =E3+2/5/PI()*SIN(5*C3) -> 0.5 | G3: =F3+2/7/PI()*SIN(7*C3) -> 0.5 | H3: =IF(SquareWave!$B$14=TRUE,Sheet2!D3,"") -> 0.5 | I3: =IF(SquareWave!$B$16=TRUE,Sheet2!E3,"") ->  | J3: =IF(SquareWave!$B$19=TRUE,Sheet2!F3,"") -> 0.5 | K3: =IF(SquareWave!$B$21=TRUE,Sheet2!G3,"") -> 0.5 | O3: =aa -> -2 | P3: =0.5 -4/PI()^2*(COS(PI()*$O3)) -> 0.09471526543 | Q3: =0.5 -4/PI()^2*(COS(PI()*$O3)) - 4/9/PI()^2*COS(3*PI()*$O3) -> 0.04968362826 | R3: =0.5-4/PI()^2*(COS(PI()*$O3))-4/9/PI()^2*COS(3*PI()*$O3)-4/25/PI()^2*COS(5*PI()*$O3) -> 0.03347223887 | S3: =0.5-4/PI()^2*(COS(PI()*$O3))-4/9/PI()^2*COS(3*PI()*$O3)-4/25/PI()^2*COS(5*PI()*$O3)-4/49/PI()^2*COS(7*PI()*3) -> 0.04174335591 | T3: =IF(TriangleWave!B$14=TRUE,Sheet2!P3,"") -> 0.09471526543 | U3: =IF(TriangleWave!B$16=TRUE,Sheet2!Q3,"") -> 0.04968362826 | V3: =IF(TriangleWave!B$19=TRUE,Sheet2!R3,"") -> 0.03347223887 | W3: =IF(TriangleWave!B$21=TRUE,Sheet2!S3,"") -> 0.04174335591 | AA3: =aaa -> -3.14 | AB3: =0.5 -(SIN(PI()*$O3))/PI() -> 0.500 | AC3: =0.5-(SIN(PI()*$O3)+SIN(2*PI()*$O3)/2)/PI() -> 0.500 | AD3: =0.5-(SIN(PI()*$O3)+SIN(2*PI()*$O3)/2 + SIN(3*PI()*$O3)/3 )/PI() -> 0.500 | AE3: =0.5-(SIN(PI()*$O3)+SIN(2*PI()*$O3)/2 + SIN(3*PI()*$O3)/3 + SIN(4*PI()*O3)/4)/PI() -> 0.500 | AF3: =IF(SawtoothWave!B$14=TRUE,Sheet2!AB3,"") -> 0.500 | AG3: =IF(SawtoothWave!B$16=TRUE,Sheet2!AC3,"") -> 0.500 | AH3: =IF(SawtoothWave!B$19=TRUE,Sheet2!AD3,"") -> 0.500 | AI3: =IF(SawtoothWave!B$21=TRUE,Sheet2!AE3,"") -> 0.500
A4: delta x = | B4: =(b-a)/257 -> 0.06112047964 | C4: =C3+dx -> -6.222064828 | D4: =0.5+2/PI()*SIN(C4) -> 0.5388862839 | E4: =D4+2/3/PI()*SIN(3*C4) -> 0.5775791183 | F4: =E4+2/5/PI()*SIN(5*C4) -> 0.6158867857 | G4: =F4+2/7/PI()*SIN(7*C4) -> 0.6536210149 | H4: =IF(SquareWave!B$14=TRUE,Sheet2!D4,"") -> 0.5388862839 | I4: =IF(SquareWave!$B$16=TRUE,Sheet2!E4,"") ->  | J4: =IF(SquareWave!$B$19=TRUE,Sheet2!F4,"") -> 0.6158867857 | K4: =IF(SquareWave!$B$21=TRUE,Sheet2!G4,"") -> 0.6536210149 | M4: delta x = | N4: =(bb-aa)/257 -> 0.0233463035 | O4: =O3+dxx -> -1.976653696 | P4: =0.5 -4/PI()^2*(COS(PI()*O4)) -> 0.09580487662 | Q4: =0.5 -4/PI()^2*(COS(PI()*$O4)) - 4/9/PI()^2*COS(3*PI()*$O4) -> 0.05185894822 | R4: =0.5-4/PI()^2*(COS(PI()*$O4))-4/9/PI()^2*COS(3*PI()*$O4)-4/25/PI()^2*COS(5*PI()*$O4) -> 0.03672549635 | S4: =0.5-4/PI()^2*(COS(PI()*$O4))-4/9/PI()^2*COS(3*PI()*$O4)-4/25/PI()^2*COS(5*PI()*$O4)-4/49/PI()^2*COS(7*PI()*3) -> 0.04499661338 | T4: =IF(TriangleWave!B$14=TRUE,Sheet2!P4,"") -> 0.09580487662 | U4: =IF(TriangleWave!B$16=TRUE,Sheet2!Q4,"") -> 0.05185894822 | V4: =IF(TriangleWave!B$19=TRUE,Sheet2!R4,"") -> 0.03672549635 | W4: =IF(TriangleWave!B$21=TRUE,Sheet2!S4,"") -> 0.04499661338 | Y4: delta x = | Z4: =(bbb-aaa)/257 -> 0.0366536965 | AA4: =AA3+dxxx -> -3.103346304 | AB4: =0.5 -(SIN(PI()*$O4))/PI() -> 0.477 | AC4: =0.5-(SIN(PI()*$O4)+SIN(2*PI()*$O4)/2)/PI() -> 0.453 | AD4: =0.5-(SIN(PI()*$O4)+SIN(2*PI()*$O4)/2 + SIN(3*PI()*$O4)/3 )/PI() -> 0.430 | AE4: =0.5-(SIN(PI()*$O4)+SIN(2*PI()*$O4)/2 + SIN(3*PI()*$O4)/3 + SIN(4*PI()*O4)/4)/PI() -> 0.407 | AF4: =IF(SawtoothWave!B$14=TRUE,Sheet2!AB4,"") -> 0.477 | AG4: =IF(SawtoothWave!B$16=TRUE,Sheet2!AC4,"") -> 0.453 | AH4: =IF(SawtoothWave!B$19=TRUE,Sheet2!AD4,"") -> 0.430 | AI4: =IF(SawtoothWave!B$21=TRUE,Sheet2!AE4,"") -> 0.407
C5: -6.160944348 | D5: 0.5776273451 | E5: 0.6537157467 | F5: 0.7267811777 | G5: 0.7954471112 | H5: =IF(SquareWave!B$14=TRUE,Sheet2!D5,"") -> 0.5776273451 | I5: =IF(SquareWave!$B$16=TRUE,Sheet2!E5,"") ->  | J5: =IF(SquareWave!$B$19=TRUE,Sheet2!F5,"") -> 0.7267811777 | K5: =IF(SquareWave!$B$21=TRUE,Sheet2!G5,"") -> 0.7954471112 | O5: -1.953307393 | P5: 0.09906785132 | Q5: 0.05832669659 | R5: 0.0462837075 | S5: 0.05455482453 | T5: =IF(TriangleWave!B$14=TRUE,Sheet2!P5,"") -> 0.09906785132 | U5: =IF(TriangleWave!B$16=TRUE,Sheet2!Q5,"") -> 0.05832669659 | V5: =IF(TriangleWave!B$19=TRUE,Sheet2!R5,"") -> 0.0462837075 | W5: =IF(TriangleWave!B$21=TRUE,Sheet2!S5,"") -> 0.05455482453 | AA5: -3.066692607 | AB5: 0.453 | AC5: 0.407 | AD5: 0.362 | AE5: 0.318 | AF5: =IF(SawtoothWave!B$14=TRUE,Sheet2!AB5,"") -> 0.453 | AG5: =IF(SawtoothWave!B$16=TRUE,Sheet2!AC5,"") -> 0.407 | AH5: =IF(SawtoothWave!B$19=TRUE,Sheet2!AD5,"") -> 0.362 | AI5: =IF(SawtoothWave!B$21=TRUE,Sheet2!AE5,"") -> 0.318
C6: -6.099823868 | D6: 0.6160785031 | E6: 0.7270114314 | F6: 0.8280637816 | G6: 0.9152826925 | H6: =IF(SquareWave!B$14=TRUE,Sheet2!D6,"") -> 0.6160785031 | I6: =IF(SquareWave!$B$16=TRUE,Sheet2!E6,"") ->  | J6: =IF(SquareWave!$B$19=TRUE,Sheet2!F6,"") -> 0.8280637816 | K6: =IF(SquareWave!$B$21=TRUE,Sheet2!G6,"") -> 0.9152826925 | O6: -1.929961089 | P6: 0.1044866445 | Q6: 0.06891479466 | R6: 0.06156380779 | S6: 0.06983492482 | T6: =IF(TriangleWave!B$14=TRUE,Sheet2!P6,"") -> 0.1044866445 | U6: =IF(TriangleWave!B$16=TRUE,Sheet2!Q6,"") -> 0.06891479466 | V6: =IF(TriangleWave!B$19=TRUE,Sheet2!R6,"") -> 0.06156380779 | W6: =IF(TriangleWave!B$21=TRUE,Sheet2!S6,"") -> 0.06983492482 | AA6: -3.030038911 | AB6: 0.431 | AC6: 0.363 | AD6: 0.298 | AE6: 0.236 | AF6: =IF(SawtoothWave!B$14=TRUE,Sheet2!AB6,"") -> 0.431 | AG6: =IF(SawtoothWave!B$16=TRUE,Sheet2!AC6,"") -> 0.363 | AH6: =IF(SawtoothWave!B$19=TRUE,Sheet2!AD6,"") -> 0.298 | AI6: =IF(SawtoothWave!B$21=TRUE,Sheet2!AE6,"") -> 0.236
A7: x | B7: y | C7: -6.038703389 | D7: 0.65409616 | E7: 0.7961543311 | F7: 0.9158292577 | G7: 1.005877788 | H7: =IF(SquareWave!B$14=TRUE,Sheet2!D7,"") -> 0.65409616 | I7: =IF(SquareWave!$B$16=TRUE,Sheet2!E7,"") ->  | J7: =IF(SquareWave!$B$19=TRUE,Sheet2!F7,"") -> 0.9158292577 | K7: =IF(SquareWave!$B$21=TRUE,Sheet2!G7,"") -> 1.005877788 | M7: x | N7: y | O7: -1.906614786 | P7: 0.1120321191 | Q7: 0.08334484254 | R7: 0.08166343042 | S7: 0.08993454745 | T7: =IF(TriangleWave!B$14=TRUE,Sheet2!P7,"") -> 0.1120321191 | U7: =IF(TriangleWave!B$16=TRUE,Sheet2!Q7,"") -> 0.08334484254 | V7: =IF(TriangleWave!B$19=TRUE,Sheet2!R7,"") -> 0.08166343042 | W7: =IF(TriangleWave!B$21=TRUE,Sheet2!S7,"") -> 0.08993454745 | Y7: x | Z7: y | AA7: -2.993385214 | AB7: 0.408 | AC7: 0.320 | AD7: 0.238 | AE7: 0.165 | AF7: =IF(SawtoothWave!B$14=TRUE,Sheet2!AB7,"") -> 0.408 | AG7: =IF(SawtoothWave!B$16=TRUE,Sheet2!AC7,"") -> 0.320 | AH7: =IF(SawtoothWave!B$19=TRUE,Sheet2!AD7,"") -> 0.238 | AI7: =IF(SawtoothWave!B$21=TRUE,Sheet2!AE7,"") -> 0.165
A8: =-2*PI() -> -6.283185307 | B8: 0 | C8: -5.977582909 | D8: 0.6915383371 | E8: 0.8599589207 | F8: 0.9871663598 | G8: 1.063811042 | H8: =IF(SquareWave!B$14=TRUE,Sheet2!D8,"") -> 0.6915383371 | I8: =IF(SquareWave!$B$16=TRUE,Sheet2!E8,"") ->  | J8: =IF(SquareWave!$B$19=TRUE,Sheet2!F8,"") -> 0.9871663598 | K8: =IF(SquareWave!$B$21=TRUE,Sheet2!G8,"") -> 1.063811042 | M8: -2 | N8: 0 | O8: -1.883268482 | P8: 0.1216637032 | Q8: 0.1012442952 | R8: 0.1054560608 | S8: 0.1137271778 | T8: =IF(TriangleWave!B$14=TRUE,Sheet2!P8,"") -> 0.1216637032 | U8: =IF(TriangleWave!B$16=TRUE,Sheet2!Q8,"") -> 0.1012442952 | V8: =IF(TriangleWave!B$19=TRUE,Sheet2!R8,"") -> 0.1054560608 | W8: =IF(TriangleWave!B$21=TRUE,Sheet2!S8,"") -> 0.1137271778 | Y8: -3.14 | Z8: 0 | AA8: -2.956731518 | AB8: 0.386 | AC8: 0.279 | AD8: 0.185 | AE8: 0.106 | AF8: =IF(SawtoothWave!B$14=TRUE,Sheet2!AB8,"") -> 0.386 | AG8: =IF(SawtoothWave!B$16=TRUE,Sheet2!AC8,"") -> 0.279 | AH8: =IF(SawtoothWave!B$19=TRUE,Sheet2!AD8,"") -> 0.185 | AI8: =IF(SawtoothWave!B$21=TRUE,Sheet2!AE8,"") -> 0.106
A9: =-2*PI() -> -6.283185307 | B9: 1 | C9: -5.916462429 | D9: 0.7282652047 | E9: 0.9174015096 | F9: 1.040353372 | G9: 1.089777113 | H9: =IF(SquareWave!B$14=TRUE,Sheet2!D9,"") -> 0.7282652047 | I9: =IF(SquareWave!$B$16=TRUE,Sheet2!E9,"") ->  | J9: =IF(SquareWave!$B$19=TRUE,Sheet2!F9,"") -> 1.040353372 | K9: =IF(SquareWave!$B$21=TRUE,Sheet2!G9,"") -> 1.089777113 | M9: -1 | N9: 1 | O9: -1.859922179 | P9: 0.1333296074 | Q9: 0.1221626883 | R9: 0.131707529 | S9: 0.139978646 | T9: =IF(TriangleWave!B$14=TRUE,Sheet2!P9,"") -> 0.1333296074 | U9: =IF(TriangleWave!B$16=TRUE,Sheet2!Q9,"") -> 0.1221626883 | V9: =IF(TriangleWave!B$19=TRUE,Sheet2!R9,"") -> 0.131707529 | W9: =IF(TriangleWave!B$21=TRUE,Sheet2!S9,"") -> 0.139978646 | Y9: 0 | Z9: 1 | AA9: -2.920077821 | AB9: 0.364 | AC9: 0.242 | AD9: 0.139 | AE9: 0.061 | AF9: =IF(SawtoothWave!B$14=TRUE,Sheet2!AB9,"") -> 0.364 | AG9: =IF(SawtoothWave!B$16=TRUE,Sheet2!AC9,"") -> 0.242 | AH9: =IF(SawtoothWave!B$19=TRUE,Sheet2!AD9,"") -> 0.139 | AI9: =IF(SawtoothWave!B$21=TRUE,Sheet2!AE9,"") -> 0.061
A10: =-PI() -> -3.141592654 | B10: 1 | C10: -5.85534195 | D10: 0.7641396044 | E10: 0.9676503966 | F10: 1.074952951 | G10: 1.088245904 | H10: =IF(SquareWave!B$14=TRUE,Sheet2!D10,"") -> 0.7641396044 | I10: =IF(SquareWave!$B$16=TRUE,Sheet2!E10,"") ->  | J10: =IF(SquareWave!$B$19=TRUE,Sheet2!F10,"") -> 1.074952951 | K10: =IF(SquareWave!$B$21=TRUE,Sheet2!G10,"") -> 1.088245904 | M10: 0 | N10: 0 | O10: -1.836575875 | P10: 0.1469671041 | Q10: 0.1455911407 | R10: 0.1591997339 | S10: 0.167470851 | T10: =IF(TriangleWave!B$14=TRUE,Sheet2!P10,"") -> 0.1469671041 | U10: =IF(TriangleWave!B$16=TRUE,Sheet2!Q10,"") -> 0.1455911407 | V10: =IF(TriangleWave!B$19=TRUE,Sheet2!R10,"") -> 0.1591997339 | W10: =IF(TriangleWave!B$21=TRUE,Sheet2!S10,"") -> 0.167470851 | Y10: 0 | Z10: 0 | AA10: -2.883424125 | AB10: 0.344 | AC10: 0.207 | AD10: 0.101 | AE10: 0.031 | AF10: =IF(SawtoothWave!B$14=TRUE,Sheet2!AB10,"") -> 0.344 | AG10: =IF(SawtoothWave!B$16=TRUE,Sheet2!AC10,"") -> 0.207 | AH10: =IF(SawtoothWave!B$19=TRUE,Sheet2!AD10,"") -> 0.101 | AI10: =IF(SawtoothWave!B$21=TRUE,Sheet2!AE10,"") -> 0.031
A11: =-PI() -> -3.141592654 | B11: 0 | C11: -5.79422147 | D11: 0.7990275615 | E11: 1.010089669 | F11: 1.091799378 | G11: 1.066565159 | H11: =IF(SquareWave!B$14=TRUE,Sheet2!D11,"") -> 0.7990275615 | I11: =IF(SquareWave!$B$16=TRUE,Sheet2!E11,"") ->  | J11: =IF(SquareWave!$B$19=TRUE,Sheet2!F11,"") -> 1.091799378 | K11: =IF(SquareWave!$B$21=TRUE,Sheet2!G11,"") -> 1.066565159 | M11: 1 | N11: 1 | O11: -1.813229572 | P11: 0.1625028642 | Q11: 0.1709842052 | R11: 0.1868468093 | S11: 0.1951179264 | T11: =IF(TriangleWave!B$14=TRUE,Sheet2!P11,"") -> 0.1625028642 | U11: =IF(TriangleWave!B$16=TRUE,Sheet2!Q11,"") -> 0.1709842052 | V11: =IF(TriangleWave!B$19=TRUE,Sheet2!R11,"") -> 0.1868468093 | W11: =IF(TriangleWave!B$21=TRUE,Sheet2!S11,"") -> 0.1951179264 | Y11: 3.14 | Z11: 1 | AA11: -2.846770428 | AB11: 0.324 | AC11: 0.177 | AD11: 0.073 | AE11: 0.016 | AF11: =IF(SawtoothWave!B$14=TRUE,Sheet2!AB11,"") -> 0.324 | AG11: =IF(SawtoothWave!B$16=TRUE,Sheet2!AC11,"") -> 0.177 | AH11: =IF(SawtoothWave!B$19=TRUE,Sheet2!AD11,"") -> 0.073 | AI11: =IF(SawtoothWave!B$21=TRUE,Sheet2!AE11,"") -> 0.016
A12: 0 | B12: 0 | C12: -5.73310099 | D12: 0.8327987851 | E12: 1.04433586 | F12: 1.092880828 | G12: 1.033668529 | H12: =IF(SquareWave!B$14=TRUE,Sheet2!D12,"") -> 0.8327987851 | I12: =IF(SquareWave!$B$16=TRUE,Sheet2!E12,"") ->  | J12: =IF(SquareWave!$B$19=TRUE,Sheet2!F12,"") -> 1.092880828 | K12: =IF(SquareWave!$B$21=TRUE,Sheet2!G12,"") -> 1.033668529 | M12: 2 | N12: 0 | O12: -1.789883268 | P12: 0.1798533517 | Q12: 0.1977830284 | R12: 0.2137901516 | S12: 0.2220612687 | T12: =IF(TriangleWave!B$14=TRUE,Sheet2!P12,"") -> 0.1798533517 | U12: =IF(TriangleWave!B$16=TRUE,Sheet2!Q12,"") -> 0.1977830284 | V12: =IF(TriangleWave!B$19=TRUE,Sheet2!R12,"") -> 0.2137901516 | W12: =IF(TriangleWave!B$21=TRUE,Sheet2!S12,"") -> 0.2220612687 | Y12: 3.14 | Z12: 0 | AA12: -2.810116732 | AB12: 0.305 | AC12: 0.151 | AD12: 0.053 | AE12: 0.015 | AF12: =IF(SawtoothWave!B$14=TRUE,Sheet2!AB12,"") -> 0.305 | AG12: =IF(SawtoothWave!B$16=TRUE,Sheet2!AC12,"") -> 0.151 | AH12: =IF(SawtoothWave!B$19=TRUE,Sheet2!AD12,"") -> 0.053 | AI12: =IF(SawtoothWave!B$21=TRUE,Sheet2!AE12,"") -> 0.015
A13: 0 | B13: 1 | C13: -5.671980511 | D13: 0.865327155 | E13: 1.070246926 | F13: 1.081128577 | G13: 0.9986126736 | H13: =IF(SquareWave!B$14=TRUE,Sheet2!D13,"") -> 0.865327155 | I13: =IF(SquareWave!$B$16=TRUE,Sheet2!E13,"") ->  | J13: =IF(SquareWave!$B$19=TRUE,Sheet2!F13,"") -> 1.081128577 | K13: =IF(SquareWave!$B$21=TRUE,Sheet2!G13,"") -> 0.9986126736 | M13: 3 | N13: 1 | O13: -1.766536965 | P13: 0.1989252728 | Q13: 0.2254387192 | R13: 0.239461651 | S13: 0.2477327681 | T13: =IF(TriangleWave!B$14=TRUE,Sheet2!P13,"") -> 0.1989252728 | U13: =IF(TriangleWave!B$16=TRUE,Sheet2!Q13,"") -> 0.2254387192 | V13: =IF(TriangleWave!B$19=TRUE,Sheet2!R13,"") -> 0.239461651 | W13: =IF(TriangleWave!B$21=TRUE,Sheet2!S13,"") -> 0.2477327681 | Y13: 6.28 | Z13: 1 | AA13: -2.773463035 | AB13: 0.287 | AC13: 0.129 | AD13: 0.043 | AE13: 0.026 | AF13: =IF(SawtoothWave!B$14=TRUE,Sheet2!AB13,"") -> 0.287 | AG13: =IF(SawtoothWave!B$16=TRUE,Sheet2!AC13,"") -> 0.129 | AH13: =IF(SawtoothWave!B$19=TRUE,Sheet2!AD13,"") -> 0.043 | AI13: =IF(SawtoothWave!B$21=TRUE,Sheet2!AE13,"") -> 0.026
A14: =PI() -> 3.141592654 | B14: 1 | C14: -5.610860031 | D14: 0.8964911922 | E14: 1.087923248 | F14: 1.060133199 | G14: 0.9691892161 | H14: =IF(SquareWave!B$14=TRUE,Sheet2!D14,"") -> 0.8964911922 | I14: =IF(SquareWave!$B$16=TRUE,Sheet2!E14,"") ->  | J14: =IF(SquareWave!$B$19=TRUE,Sheet2!F14,"") -> 1.060133199 | K14: =IF(SquareWave!$B$21=TRUE,Sheet2!G14,"") -> 0.9691892161 | M14: 4 | N14: 0 | O14: -1.743190661 | P14: 0.2196160773 | Q14: 0.25343482 | R14: 0.2636087177 | S14: 0.2718798347 | T14: =IF(TriangleWave!B$14=TRUE,Sheet2!P14,"") -> 0.2196160773 | U14: =IF(TriangleWave!B$16=TRUE,Sheet2!Q14,"") -> 0.25343482 | V14: =IF(TriangleWave!B$19=TRUE,Sheet2!R14,"") -> 0.2636087177 | W14: =IF(TriangleWave!B$21=TRUE,Sheet2!S14,"") -> 0.2718798347 | Y14: 6.28 | Z14: 0 | AA14: -2.736809339 | AB14: 0.270 | AC14: 0.111 | AD14: 0.041 | AE14: 0.048 | AF14: =IF(SawtoothWave!B$14=TRUE,Sheet2!AB14,"") -> 0.270 | AG14: =IF(SawtoothWave!B$16=TRUE,Sheet2!AC14,"") -> 0.111 | AH14: =IF(SawtoothWave!B$19=TRUE,Sheet2!AD14,"") -> 0.041 | AI14: =IF(SawtoothWave!B$21=TRUE,Sheet2!AE14,"") -> 0.048
A15: =PI() -> 3.141592654 | B15: 0 | C15: -5.549739551 | D15: 0.9261745132 | E15: 1.09770065 | F15: 1.033814155 | G15: 0.9508369871 | H15: =IF(SquareWave!B$14=TRUE,Sheet2!D15,"") -> 0.9261745132 | I15: =IF(SquareWave!$B$16=TRUE,Sheet2!E15,"") ->  | J15: =IF(SquareWave!$B$19=TRUE,Sheet2!F15,"") -> 1.033814155 | K15: =IF(SquareWave!$B$21=TRUE,Sheet2!G15,"") -> 0.9508369871 | O15: -1.719844358 | P15: 0.2418145107 | Q15: 0.2813078156 | R15: 0.2862797014 | S15: 0.2945508185 | T15: =IF(TriangleWave!B$14=TRUE,Sheet2!P15,"") -> 0.2418145107 | U15: =IF(TriangleWave!B$16=TRUE,Sheet2!Q15,"") -> 0.2813078156 | V15: =IF(TriangleWave!B$19=TRUE,Sheet2!R15,"") -> 0.2862797014 | W15: =IF(TriangleWave!B$21=TRUE,Sheet2!S15,"") -> 0.2945508185 | Y15: 9.42 | Z15: 1 | AA15: -2.700155642 | AB15: 0.255 | AC15: 0.098 | AD15: 0.047 | AE15: 0.077 | AF15: =IF(SawtoothWave!B$14=TRUE,Sheet2!AB15,"") -> 0.255 | AG15: =IF(SawtoothWave!B$16=TRUE,Sheet2!AC15,"") -> 0.098 | AH15: =IF(SawtoothWave!B$19=TRUE,Sheet2!AD15,"") -> 0.047 | AI15: =IF(SawtoothWave!B$21=TRUE,Sheet2!AE15,"") -> 0.077
A16: =2*PI() -> 6.283185307 | B16: 0 | C16: -5.488619072 | D16: 0.9542662641 | E16: 1.100135669 | F16: 1.006072977 | G16: 0.9460213041 | H16: =IF(SquareWave!B$14=TRUE,Sheet2!D16,"") -> 0.9542662641 | I16: =IF(SquareWave!$B$16=TRUE,Sheet2!E16,"") ->  | J16: =IF(SquareWave!$B$19=TRUE,Sheet2!F16,"") -> 1.006072977 | K16: =IF(SquareWave!$B$21=TRUE,Sheet2!G16,"") -> 0.9460213041 | O16: -1.696498054 | P16: 0.2654012114 | Q16: 0.3086647186 | R16: 0.3077734051 | S16: 0.3160445222 | T16: =IF(TriangleWave!B$14=TRUE,Sheet2!P16,"") -> 0.2654012114 | U16: =IF(TriangleWave!B$16=TRUE,Sheet2!Q16,"") -> 0.3086647186 | V16: =IF(TriangleWave!B$19=TRUE,Sheet2!R16,"") -> 0.3077734051 | W16: =IF(TriangleWave!B$21=TRUE,Sheet2!S16,"") -> 0.3160445222 | Y16: 9.42 | Z16: 0 | AA16: -2.663501946 | AB16: 0.240 | AC16: 0.090 | AD16: 0.061 | AE16: 0.110 | AF16: =IF(SawtoothWave!B$14=TRUE,Sheet2!AB16,"") -> 0.240 | AG16: =IF(SawtoothWave!B$16=TRUE,Sheet2!AC16,"") -> 0.090 | AH16: =IF(SawtoothWave!B$19=TRUE,Sheet2!AD16,"") -> 0.061 | AI16: =IF(SawtoothWave!B$21=TRUE,Sheet2!AE16,"") -> 0.110
A17: =2*PI() -> 6.283185307 | B17: 1 | C17: -5.427498592 | D17: 0.9806615348 | E17: 1.095983597 | F17: 0.9804613318 | G17: 0.954160948 | H17: =IF(SquareWave!B$14=TRUE,Sheet2!D17,"") -> 0.9806615348 | I17: =IF(SquareWave!$B$16=TRUE,Sheet2!E17,"") ->  | J17: =IF(SquareWave!$B$19=TRUE,Sheet2!F17,"") -> 0.9804613318 | K17: =IF(SquareWave!$B$21=TRUE,Sheet2!G17,"") -> 0.954160948 | O17: -1.673151751 | P17: 0.2902493535 | Q17: 0.3351969042 | R17: 0.3285609231 | S17: 0.3368320401 | T17: =IF(TriangleWave!B$14=TRUE,Sheet2!P17,"") -> 0.2902493535 | U17: =IF(TriangleWave!B$16=TRUE,Sheet2!Q17,"") -> 0.3351969042 | V17: =IF(TriangleWave!B$19=TRUE,Sheet2!R17,"") -> 0.3285609231 | W17: =IF(TriangleWave!B$21=TRUE,Sheet2!S17,"") -> 0.3368320401 | AA17: -2.626848249 | AB17: 0.228 | AC17: 0.087 | AD17: 0.080 | AE17: 0.146 | AF17: =IF(SawtoothWave!B$14=TRUE,Sheet2!AB17,"") -> 0.228 | AG17: =IF(SawtoothWave!B$16=TRUE,Sheet2!AC17,"") -> 0.087 | AH17: =IF(SawtoothWave!B$19=TRUE,Sheet2!AD17,"") -> 0.080 | AI17: =IF(SawtoothWave!B$21=TRUE,Sheet2!AE17,"") -> 0.146
A18: =3*PI() -> 9.424777961 | B18: 1 | C18: -5.366378113 | D18: 1.005261751 | E18: 1.086170031 | F18: 0.9598934362 | G18: 0.9720856338 | H18: =IF(SquareWave!B$14=TRUE,Sheet2!D18,"") -> 1.005261751 | I18: =IF(SquareWave!$B$16=TRUE,Sheet2!E18,"") ->  | J18: =IF(SquareWave!$B$19=TRUE,Sheet2!F18,"") -> 0.9598934362 | K18: =IF(SquareWave!$B$21=TRUE,Sheet2!G18,"") -> 0.9720856338 | O18: -1.649805447 | P18: 0.3162253282 | Q18: 0.3606895595 | R18: 0.3491913979 | S18: 0.357462515 | T18: =IF(TriangleWave!B$14=TRUE,Sheet2!P18,"") -> 0.3162253282 | U18: =IF(TriangleWave!B$16=TRUE,Sheet2!Q18,"") -> 0.3606895595 | V18: =IF(TriangleWave!B$19=TRUE,Sheet2!R18,"") -> 0.3491913979 | W18: =IF(TriangleWave!B$21=TRUE,Sheet2!S18,"") -> 0.357462515 | AA18: -2.590194553 | AB18: 0.216 | AC18: 0.088 | AD18: 0.104 | AE18: 0.180 | AF18: =IF(SawtoothWave!B$14=TRUE,Sheet2!AB18,"") -> 0.216 | AG18: =IF(SawtoothWave!B$16=TRUE,Sheet2!AC18,"") -> 0.088 | AH18: =IF(SawtoothWave!B$19=TRUE,Sheet2!AD18,"") -> 0.104 | AI18: =IF(SawtoothWave!B$21=TRUE,Sheet2!AE18,"") -> 0.180
A19: =3*PI() -> 9.424777961 | B19: 0 | C19: -5.305257633 | D19: 1.027975042 | E19: 1.071756901 | F19: 0.9464278061 | G19: 0.994914641 | H19: =IF(SquareWave!B$14=TRUE,Sheet2!D19,"") -> 1.027975042 | I19: =IF(SquareWave!$B$16=TRUE,Sheet2!E19,"") ->  | J19: =IF(SquareWave!$B$19=TRUE,Sheet2!F19,"") -> 0.9464278061 | K19: =IF(SquareWave!$B$21=TRUE,Sheet2!G19,"") -> 0.994914641 | O19: -1.626459144 | P19: 0.3431894621 | Q19: 0.3850263167 | R19: 0.3701950602 | S19: 0.3784661772 | T19: =IF(TriangleWave!B$14=TRUE,Sheet2!P19,"") -> 0.3431894621 | U19: =IF(TriangleWave!B$16=TRUE,Sheet2!Q19,"") -> 0.3850263167 | V19: =IF(TriangleWave!B$19=TRUE,Sheet2!R19,"") -> 0.3701950602 | W19: =IF(TriangleWave!B$21=TRUE,Sheet2!S19,"") -> 0.3784661772 | AA19: -2.553540856 | AB19: 0.206 | AC19: 0.093 | AD19: 0.132 | AE19: 0.212 | AF19: =IF(SawtoothWave!B$14=TRUE,Sheet2!AB19,"") -> 0.206 | AG19: =IF(SawtoothWave!B$16=TRUE,Sheet2!AC19,"") -> 0.093 | AH19: =IF(SawtoothWave!B$19=TRUE,Sheet2!AD19,"") -> 0.132 | AI19: =IF(SawtoothWave!B$21=TRUE,Sheet2!AE19,"") -> 0.212
C20: -5.244137153 | D20: 1.048716583 | E20: 1.053904134 | F20: 0.9411365639 | G20: 1.017177089 | H20: =IF(SquareWave!B$14=TRUE,Sheet2!D20,"") -> 1.048716583 | I20: =IF(SquareWave!$B$16=TRUE,Sheet2!E20,"") ->  | J20: =IF(SquareWave!$B$19=TRUE,Sheet2!F20,"") -> 0.9411365639 | K20: =IF(SquareWave!$B$21=TRUE,Sheet2!G20,"") -> 1.017177089 | O20: -1.60311284 | P20: 0.3709967687 | Q20: 0.4081888809 | R20: 0.3919968672 | S20: 0.4002679842 | T20: =IF(TriangleWave!B$14=TRUE,Sheet2!P20,"") -> 0.3709967687 | U20: =IF(TriangleWave!B$16=TRUE,Sheet2!Q20,"") -> 0.4081888809 | V20: =IF(TriangleWave!B$19=TRUE,Sheet2!R20,"") -> 0.3919968672 | W20: =IF(TriangleWave!B$21=TRUE,Sheet2!S20,"") -> 0.4002679842 | AA20: -2.51688716 | AB20: 0.198 | AC20: 0.102 | AD20: 0.162 | AE20: 0.239 | AF20: =IF(SawtoothWave!B$14=TRUE,Sheet2!AB20,"") -> 0.198 | AG20: =IF(SawtoothWave!B$16=TRUE,Sheet2!AC20,"") -> 0.102 | AH20: =IF(SawtoothWave!B$19=TRUE,Sheet2!AD20,"") -> 0.162 | AI20: =IF(SawtoothWave!B$21=TRUE,Sheet2!AE20,"") -> 0.239
C21: -5.183016674 | D21: 1.067408915 | E21: 1.033828232 | F21: 0.9440721588 | G21: 1.033958195 | H21: =IF(SquareWave!B$14=TRUE,Sheet2!D21,"") -> 1.067408915 | I21: =IF(SquareWave!$B$16=TRUE,Sheet2!E21,"") ->  | J21: =IF(SquareWave!$B$19=TRUE,Sheet2!F21,"") -> 0.9440721588 | K21: =IF(SquareWave!$B$21=TRUE,Sheet2!G21,"") -> 1.033958195 | O21: -1.579766537 | P21: 0.3994977277 | Q21: 0.4302517004 | R21: 0.4148522278 | S21: 0.4231233449 | T21: =IF(TriangleWave!B$14=TRUE,Sheet2!P21,"") -> 0.3994977277 | U21: =IF(TriangleWave!B$16=TRUE,Sheet2!Q21,"") -> 0.4302517004 | V21: =IF(TriangleWave!B$19=TRUE,Sheet2!R21,"") -> 0.4148522278 | W21: =IF(TriangleWave!B$21=TRUE,Sheet2!S21,"") -> 0.4231233449 | AA21: -2.480233463 | AB21: 0.192 | AC21: 0.115 | AD21: 0.193 | AE21: 0.260 | AF21: =IF(SawtoothWave!B$14=TRUE,Sheet2!AB21,"") -> 0.192 | AG21: =IF(SawtoothWave!B$16=TRUE,Sheet2!AC21,"") -> 0.115 | AH21: =IF(SawtoothWave!B$19=TRUE,Sheet2!AD21,"") -> 0.193 | AI21: =IF(SawtoothWave!B$21=TRUE,Sheet2!AE21,"") -> 0.260
A22: x-axis | C22: -5.121896194 | D22: 1.083982229 | E22: 1.012759183 | F22: 0.9543321438 | G22: 1.041859518 | H22: =IF(SquareWave!B$14=TRUE,Sheet2!D22,"") -> 1.083982229 | I22: =IF(SquareWave!$B$16=TRUE,Sheet2!E22,"") ->  | J22: =IF(SquareWave!$B$19=TRUE,Sheet2!F22,"") -> 0.9543321438 | K22: =IF(SquareWave!$B$21=TRUE,Sheet2!G22,"") -> 1.041859518 | O22: -1.556420233 | P22: 0.4285390891 | Q22: 0.4513719711 | R22: 0.4388129418 | S22: 0.4470840588 | T22: =IF(TriangleWave!B$14=TRUE,Sheet2!P22,"") -> 0.4285390891 | U22: =IF(TriangleWave!B$16=TRUE,Sheet2!Q22,"") -> 0.4513719711 | V22: =IF(TriangleWave!B$19=TRUE,Sheet2!R22,"") -> 0.4388129418 | W22: =IF(TriangleWave!B$21=TRUE,Sheet2!S22,"") -> 0.4470840588 | Y22: x-axis | AA22: -2.443579767 | AB22: 0.187 | AC22: 0.131 | AD22: 0.223 | AE22: 0.275 | AF22: =IF(SawtoothWave!B$14=TRUE,Sheet2!AB22,"") -> 0.187 | AG22: =IF(SawtoothWave!B$16=TRUE,Sheet2!AC22,"") -> 0.131 | AH22: =IF(SawtoothWave!B$19=TRUE,Sheet2!AD22,"") -> 0.223 | AI22: =IF(SawtoothWave!B$21=TRUE,Sheet2!AE22,"") -> 0.275
A23: =a -> -6.283185307 | B23: 0 | C23: -5.060775714 | D23: 1.098374633 | E23: 0.9918971416 | F23: 0.9702134663 | G23: 1.039603212 | H23: =IF(SquareWave!B$14=TRUE,Sheet2!D23,"") -> 1.098374633 | I23: =IF(SquareWave!$B$16=TRUE,Sheet2!E23,"") ->  | J23: =IF(SquareWave!$B$19=TRUE,Sheet2!F23,"") -> 0.9702134663 | K23: =IF(SquareWave!$B$21=TRUE,Sheet2!G23,"") -> 1.039603212 | O23: -1.53307393 | P23: 0.4579646968 | Q23: 0.4717754907 | R23: 0.4637270698 | S23: 0.4719981868 | T23: =IF(TriangleWave!B$14=TRUE,Sheet2!P23,"") -> 0.4579646968 | U23: =IF(TriangleWave!B$16=TRUE,Sheet2!Q23,"") -> 0.4717754907 | V23: =IF(TriangleWave!B$19=TRUE,Sheet2!R23,"") -> 0.4637270698 | W23: =IF(TriangleWave!B$21=TRUE,Sheet2!S23,"") -> 0.4719981868 | Y23: -3.14 | Z23: 0 | AA23: -2.40692607 | AB23: 0.183 | AC23: 0.151 | AD23: 0.252 | AE23: 0.284 | AF23: =IF(SawtoothWave!B$14=TRUE,Sheet2!AB23,"") -> 0.183 | AG23: =IF(SawtoothWave!B$16=TRUE,Sheet2!AC23,"") -> 0.151 | AH23: =IF(SawtoothWave!B$19=TRUE,Sheet2!AD23,"") -> 0.252 | AI23: =IF(SawtoothWave!B$21=TRUE,Sheet2!AE23,"") -> 0.284
A24: =b -> 9.424777961 | B24: 0 | C24: -4.999655235 | D24: 1.110532377 | E24: 0.9723703452 | F24: 0.9894394218 | G24: 1.028182327 | H24: =IF(SquareWave!B$14=TRUE,Sheet2!D24,"") -> 1.110532377 | I24: =IF(SquareWave!$B$16=TRUE,Sheet2!E24,"") ->  | J24: =IF(SquareWave!$B$19=TRUE,Sheet2!F24,"") -> 0.9894394218 | K24: =IF(SquareWave!$B$21=TRUE,Sheet2!G24,"") -> 1.028182327 | O24: -1.509727626 | P24: 0.4876163291 | Q24: 0.4917390808 | R24: 0.4892715892 | S24: 0.4975427062 | T24: =IF(TriangleWave!B$14=TRUE,Sheet2!P24,"") -> 0.4876163291 | U24: =IF(TriangleWave!B$16=TRUE,Sheet2!Q24,"") -> 0.4917390808 | V24: =IF(TriangleWave!B$19=TRUE,Sheet2!R24,"") -> 0.4892715892 | W24: =IF(TriangleWave!B$21=TRUE,Sheet2!S24,"") -> 0.4975427062 | Y24: 6.28 | Z24: 0 | AA24: -2.370272374 | AB24: 0.182 | AC24: 0.172 | AD24: 0.278 | AE24: 0.287 | AF24: =IF(SawtoothWave!B$14=TRUE,Sheet2!AB24,"") -> 0.182 | AG24: =IF(SawtoothWave!B$16=TRUE,Sheet2!AC24,"") -> 0.172 | AH24: =IF(SawtoothWave!B$19=TRUE,Sheet2!AD24,"") -> 0.278 | AI24: =IF(SawtoothWave!B$21=TRUE,Sheet2!AE24,"") -> 0.287
C25: -4.938534755 | D25: 1.120410056 | E25: 0.955195688 | F25: 1.009435755 | G25: 1.010547456 | H25: =IF(SquareWave!B$14=TRUE,Sheet2!D25,"") -> 1.120410056 | I25: =IF(SquareWave!$B$16=TRUE,Sheet2!E25,"") ->  | J25: =IF(SquareWave!$B$19=TRUE,Sheet2!F25,"") -> 1.009435755 | K25: =IF(SquareWave!$B$21=TRUE,Sheet2!G25,"") -> 1.010547456 | O25: -1.486381323 | P25: 0.5173345485 | Q25: 0.5115704597 | R25: 0.5150120373 | S25: 0.5232831544 | T25: =IF(TriangleWave!B$14=TRUE,Sheet2!P25,"") -> 0.5173345485 | U25: =IF(TriangleWave!B$16=TRUE,Sheet2!Q25,"") -> 0.5115704597 | V25: =IF(TriangleWave!B$19=TRUE,Sheet2!R25,"") -> 0.5150120373 | W25: =IF(TriangleWave!B$21=TRUE,Sheet2!S25,"") -> 0.5232831544 | AA25: -2.333618677 | AB25: 0.182 | AC25: 0.196 | AD25: 0.301 | AE25: 0.287 | AF25: =IF(SawtoothWave!B$14=TRUE,Sheet2!AB25,"") -> 0.182 | AG25: =IF(SawtoothWave!B$16=TRUE,Sheet2!AC25,"") -> 0.196 | AH25: =IF(SawtoothWave!B$19=TRUE,Sheet2!AD25,"") -> 0.301 | AI25: =IF(SawtoothWave!B$21=TRUE,Sheet2!AE25,"") -> 0.287
C26: -4.877414275 | D26: 1.127970784 | E26: 0.9412432738 | F26: 1.027628001 | G26: 0.990908086 | H26: =IF(SquareWave!B$14=TRUE,Sheet2!D26,"") -> 1.127970784 | I26: =IF(SquareWave!$B$16=TRUE,Sheet2!E26,"") ->  | J26: =IF(SquareWave!$B$19=TRUE,Sheet2!F26,"") -> 1.027628001 | K26: =IF(SquareWave!$B$21=TRUE,Sheet2!G26,"") -> 0.990908086 | O26: -1.463035019 | P26: 0.5469595599 | Q26: 0.5315865738 | R26: 0.5404795417 | S26: 0.5487506588 | T26: =IF(TriangleWave!B$14=TRUE,Sheet2!P26,"") -> 0.5469595599 | U26: =IF(TriangleWave!B$16=TRUE,Sheet2!Q26,"") -> 0.5315865738 | V26: =IF(TriangleWave!B$19=TRUE,Sheet2!R26,"") -> 0.5404795417 | W26: =IF(TriangleWave!B$21=TRUE,Sheet2!S26,"") -> 0.5487506588 | AA26: -2.296964981 | AB26: 0.184 | AC26: 0.220 | AD26: 0.320 | AE26: 0.285 | AF26: =IF(SawtoothWave!B$14=TRUE,Sheet2!AB26,"") -> 0.184 | AG26: =IF(SawtoothWave!B$16=TRUE,Sheet2!AC26,"") -> 0.220 | AH26: =IF(SawtoothWave!B$19=TRUE,Sheet2!AD26,"") -> 0.320 | AI26: =IF(SawtoothWave!B$21=TRUE,Sheet2!AE26,"") -> 0.285
C27: -4.816293796 | D27: 1.133186322 | E27: 0.9312061447 | F27: 1.041730411 | G27: 0.9737985504 | H27: =IF(SquareWave!B$14=TRUE,Sheet2!D27,"") -> 1.133186322 | I27: =IF(SquareWave!$B$16=TRUE,Sheet2!E27,"") ->  | J27: =IF(SquareWave!$B$19=TRUE,Sheet2!F27,"") -> 1.041730411 | K27: =IF(SquareWave!$B$21=TRUE,Sheet2!G27,"") -> 0.9737985504 | O27: -1.439688716 | P27: 0.5763320689 | Q27: 0.5520914683 | R27: 0.5652531933 | S27: 0.5735243104 | T27: =IF(TriangleWave!B$14=TRUE,Sheet2!P27,"") -> 0.5763320689 | U27: =IF(TriangleWave!B$16=TRUE,Sheet2!Q27,"") -> 0.5520914683 | V27: =IF(TriangleWave!B$19=TRUE,Sheet2!R27,"") -> 0.5652531933 | W27: =IF(TriangleWave!B$21=TRUE,Sheet2!S27,"") -> 0.5735243104 | AA27: -2.260311284 | AB27: 0.187 | AC27: 0.246 | AD27: 0.336 | AE27: 0.281 | AF27: =IF(SawtoothWave!B$14=TRUE,Sheet2!AB27,"") -> 0.187 | AG27: =IF(SawtoothWave!B$16=TRUE,Sheet2!AC27,"") -> 0.246 | AH27: =IF(SawtoothWave!B$19=TRUE,Sheet2!AD27,"") -> 0.336 | AI27: =IF(SawtoothWave!B$21=TRUE,Sheet2!AE27,"") -> 0.281
C28: -4.755173316 | D28: 1.136037195 | E28: 0.9255762041 | F28: 1.049997921 | G28: 0.9631005069 | H28: =IF(SquareWave!B$14=TRUE,Sheet2!D28,"") -> 1.136037195 | I28: =IF(SquareWave!$B$16=TRUE,Sheet2!E28,"") ->  | J28: =IF(SquareWave!$B$19=TRUE,Sheet2!F28,"") -> 1.049997921 | K28: =IF(SquareWave!$B$21=TRUE,Sheet2!G28,"") -> 0.9631005069 | O28: -1.416342412 | P28: 0.6052941392 | Q28: 0.5733548015 | R28: 0.5890349689 | S28: 0.5973060859 | T28: =IF(TriangleWave!B$14=TRUE,Sheet2!P28,"") -> 0.6052941392 | U28: =IF(TriangleWave!B$16=TRUE,Sheet2!Q28,"") -> 0.5733548015 | V28: =IF(TriangleWave!B$19=TRUE,Sheet2!R28,"") -> 0.5890349689 | W28: =IF(TriangleWave!B$21=TRUE,Sheet2!S28,"") -> 0.5973060859 | AA28: -2.223657588 | AB28: 0.193 | AC28: 0.272 | AD28: 0.347 | AE28: 0.278 | AF28: =IF(SawtoothWave!B$14=TRUE,Sheet2!AB28,"") -> 0.193 | AG28: =IF(SawtoothWave!B$16=TRUE,Sheet2!AC28,"") -> 0.272 | AH28: =IF(SawtoothWave!B$19=TRUE,Sheet2!AD28,"") -> 0.347 | AI28: =IF(SawtoothWave!B$21=TRUE,Sheet2!AE28,"") -> 0.278
C29: -4.694052836 | D29: 1.136512755 | E29: 0.9246271442 | F29: 1.051416372 | G29: 0.9612188043 | H29: =IF(SquareWave!B$14=TRUE,Sheet2!D29,"") -> 1.136512755 | I29: =IF(SquareWave!$B$16=TRUE,Sheet2!E29,"") ->  | J29: =IF(SquareWave!$B$19=TRUE,Sheet2!F29,"") -> 1.051416372 | K29: =IF(SquareWave!$B$21=TRUE,Sheet2!G29,"") -> 0.9612188043 | O29: -1.392996109 | P29: 0.6336900412 | Q29: 0.5955920757 | R29: 0.611705455 | S29: 0.6199765721 | T29: =IF(TriangleWave!B$14=TRUE,Sheet2!P29,"") -> 0.6336900412 | U29: =IF(TriangleWave!B$16=TRUE,Sheet2!Q29,"") -> 0.5955920757 | V29: =IF(TriangleWave!B$19=TRUE,Sheet2!R29,"") -> 0.611705455 | W29: =IF(TriangleWave!B$21=TRUE,Sheet2!S29,"") -> 0.6199765721 | AA29: -2.187003891 | AB29: 0.200 | AC29: 0.299 | AD29: 0.355 | AE29: 0.278 | AF29: =IF(SawtoothWave!B$14=TRUE,Sheet2!AB29,"") -> 0.200 | AG29: =IF(SawtoothWave!B$16=TRUE,Sheet2!AC29,"") -> 0.299 | AH29: =IF(SawtoothWave!B$19=TRUE,Sheet2!AD29,"") -> 0.355 | AI29: =IF(SawtoothWave!B$21=TRUE,Sheet2!AE29,"") -> 0.278
C30: -4.632932357 | D30: 1.134611226 | E30: 0.9284049528 | F30: 1.045812357 | G30: 0.9685749711 | H30: =IF(SquareWave!B$14=TRUE,Sheet2!D30,"") -> 1.134611226 | I30: =IF(SquareWave!$B$16=TRUE,Sheet2!E30,"") ->  | J30: =IF(SquareWave!$B$19=TRUE,Sheet2!F30,"") -> 1.045812357 | K30: =IF(SquareWave!$B$21=TRUE,Sheet2!G30,"") -> 0.9685749711 | O30: -1.369649805 | P30: 0.6613670898 | Q30: 0.6189475736 | R30: 0.6333513238 | S30: 0.6416224408 | T30: =IF(TriangleWave!B$14=TRUE,Sheet2!P30,"") -> 0.6613670898 | U30: =IF(TriangleWave!B$16=TRUE,Sheet2!Q30,"") -> 0.6189475736 | V30: =IF(TriangleWave!B$19=TRUE,Sheet2!R30,"") -> 0.6333513238 | W30: =IF(TriangleWave!B$21=TRUE,Sheet2!S30,"") -> 0.6416224408 | AA30: -2.150350195 | AB30: 0.208 | AC30: 0.324 | AD30: 0.360 | AE30: 0.280 | AF30: =IF(SawtoothWave!B$14=TRUE,Sheet2!AB30,"") -> 0.208 | AG30: =IF(SawtoothWave!B$16=TRUE,Sheet2!AC30,"") -> 0.324 | AH30: =IF(SawtoothWave!B$19=TRUE,Sheet2!AD30,"") -> 0.360 | AI30: =IF(SawtoothWave!B$21=TRUE,Sheet2!AE30,"") -> 0.280
C31: -4.571811877 | D31: 1.13033971 | E31: 0.9367263181 | F31: 1.033871962 | G31: 0.9835187004 | H31: =IF(SquareWave!B$14=TRUE,Sheet2!D31,"") -> 1.13033971 | I31: =IF(SquareWave!$B$16=TRUE,Sheet2!E31,"") ->  | J31: =IF(SquareWave!$B$19=TRUE,Sheet2!F31,"") -> 1.033871962 | K31: =IF(SquareWave!$B$21=TRUE,Sheet2!G31,"") -> 0.9835187004 | O31: -1.346303502 | P31: 0.688176465 | Q31: 0.6434808597 | R31: 0.6542594949 | S31: 0.662530612 | T31: =IF(TriangleWave!B$14=TRUE,Sheet2!P31,"") -> 0.688176465 | U31: =IF(TriangleWave!B$16=TRUE,Sheet2!Q31,"") -> 0.6434808597 | V31: =IF(TriangleWave!B$19=TRUE,Sheet2!R31,"") -> 0.6542594949 | W31: =IF(TriangleWave!B$21=TRUE,Sheet2!S31,"") -> 0.662530612 | AA31: -2.113696498 | AB31: 0.218 | AC31: 0.349 | AD31: 0.362 | AE31: 0.287 | AF31: =IF(SawtoothWave!B$14=TRUE,Sheet2!AB31,"") -> 0.218 | AG31: =IF(SawtoothWave!B$16=TRUE,Sheet2!AC31,"") -> 0.349 | AH31: =IF(SawtoothWave!B$19=TRUE,Sheet2!AD31,"") -> 0.362 | AI31: =IF(SawtoothWave!B$21=TRUE,Sheet2!AE31,"") -> 0.287
C32: -4.510691398 | D32: 1.123714158 | E32: 0.9491849869 | F32: 1.017066556 | G32: 1.002674834 | H32: =IF(SquareWave!B$14=TRUE,Sheet2!D32,"") -> 1.123714158 | I32: =IF(SquareWave!$B$16=TRUE,Sheet2!E32,"") ->  | J32: =IF(SquareWave!$B$19=TRUE,Sheet2!F32,"") -> 1.017066556 | K32: =IF(SquareWave!$B$21=TRUE,Sheet2!G32,"") -> 1.002674834 | O32: -1.322957198 | P32: 0.7139740125 | Q32: 0.6691575321 | R32: 0.6748776534 | S32: 0.6831487704 | T32: =IF(TriangleWave!B$14=TRUE,Sheet2!P32,"") -> 0.7139740125 | U32: =IF(TriangleWave!B$16=TRUE,Sheet2!Q32,"") -> 0.6691575321 | V32: =IF(TriangleWave!B$19=TRUE,Sheet2!R32,"") -> 0.6748776534 | W32: =IF(TriangleWave!B$21=TRUE,Sheet2!S32,"") -> 0.6831487704 | AA32: -2.077042802 | AB32: 0.230 | AC32: 0.372 | AD32: 0.362 | AE32: 0.299 | AF32: =IF(SawtoothWave!B$14=TRUE,Sheet2!AB32,"") -> 0.230 | AG32: =IF(SawtoothWave!B$16=TRUE,Sheet2!AC32,"") -> 0.372 | AH32: =IF(SawtoothWave!B$19=TRUE,Sheet2!AD32,"") -> 0.362 | AI32: =IF(SawtoothWave!B$21=TRUE,Sheet2!AE32,"") -> 0.299
C33: -4.449570918 | D33: 1.114759314 | E33: 0.9651658596 | F33: 0.9974928882 | G33: 1.02165717 | H33: =IF(SquareWave!B$14=TRUE,Sheet2!D33,"") -> 1.114759314 | I33: =IF(SquareWave!$B$16=TRUE,Sheet2!E33,"") ->  | J33: =IF(SquareWave!$B$19=TRUE,Sheet2!F33,"") -> 0.9974928882 | K33: =IF(SquareWave!$B$21=TRUE,Sheet2!G33,"") -> 1.02165717 | O33: -1.299610895 | P33: 0.7386210183 | Q33: 0.6958447056 | R33: 0.6957456215 | S33: 0.7040167385 | T33: =IF(TriangleWave!B$14=TRUE,Sheet2!P33,"") -> 0.7386210183 | U33: =IF(TriangleWave!B$16=TRUE,Sheet2!Q33,"") -> 0.6958447056 | V33: =IF(TriangleWave!B$19=TRUE,Sheet2!R33,"") -> 0.6957456215 | W33: =IF(TriangleWave!B$21=TRUE,Sheet2!S33,"") -> 0.7040167385 | AA33: -2.040389105 | AB33: 0.243 | AC33: 0.394 | AD33: 0.361 | AE33: 0.315 | AF33: =IF(SawtoothWave!B$14=TRUE,Sheet2!AB33,"") -> 0.243 | AG33: =IF(SawtoothWave!B$16=TRUE,Sheet2!AC33,"") -> 0.394 | AH33: =IF(SawtoothWave!B$19=TRUE,Sheet2!AD33,"") -> 0.361 | AI33: =IF(SawtoothWave!B$21=TRUE,Sheet2!AE33,"") -> 0.315
C34: -4.388450438 | D34: 1.103508621 | E34: 0.9838663509 | F34: 0.9776431505 | G34: 1.036007228 | H34: =IF(SquareWave!B$14=TRUE,Sheet2!D34,"") -> 1.103508621 | I34: =IF(SquareWave!$B$16=TRUE,Sheet2!E34,"") ->  | J34: =IF(SquareWave!$B$19=TRUE,Sheet2!F34,"") -> 0.9776431505 | K34: =IF(SquareWave!$B$21=TRUE,Sheet2!G34,"") -> 1.036007228 | O34: -1.276264591 | P34: 0.7619849551 | Q34: 0.7233114764 | R34: 0.7174063635 | S34: 0.7256774805 | T34: =IF(TriangleWave!B$14=TRUE,Sheet2!P34,"") -> 0.7619849551 | U34: =IF(TriangleWave!B$16=TRUE,Sheet2!Q34,"") -> 0.7233114764 | V34: =IF(TriangleWave!B$19=TRUE,Sheet2!R34,"") -> 0.7174063635 | W34: =IF(TriangleWave!B$21=TRUE,Sheet2!S34,"") -> 0.7256774805 | AA34: -2.003735409 | AB34: 0.257 | AC34: 0.414 | AD34: 0.360 | AE34: 0.334 | AF34: =IF(SawtoothWave!B$14=TRUE,Sheet2!AB34,"") -> 0.257 | AG34: =IF(SawtoothWave!B$16=TRUE,Sheet2!AC34,"") -> 0.414 | AH34: =IF(SawtoothWave!B$19=TRUE,Sheet2!AD34,"") -> 0.360 | AI34: =IF(SawtoothWave!B$21=TRUE,Sheet2!AE34,"") -> 0.334
C35: -4.327329959 | D35: 1.090004095 | E35: 1.004324294 | F35: 0.9601275575 | G35: 1.042169867 | H35: =IF(SquareWave!B$14=TRUE,Sheet2!D35,"") -> 1.090004095 | I35: =IF(SquareWave!$B$16=TRUE,Sheet2!E35,"") ->  | J35: =IF(SquareWave!$B$19=TRUE,Sheet2!F35,"") -> 0.9601275575 | K35: =IF(SquareWave!$B$21=TRUE,Sheet2!G35,"") -> 1.042169867 | O35: -1.252918288 | P35: 0.7839401948 | Q35: 0.7512343783 | R35: 0.7403085293 | S35: 0.7485796463 | T35: =IF(TriangleWave!B$14=TRUE,Sheet2!P35,"") -> 0.7839401948 | U35: =IF(TriangleWave!B$16=TRUE,Sheet2!Q35,"") -> 0.7512343783 | V35: =IF(TriangleWave!B$19=TRUE,Sheet2!R35,"") -> 0.7403085293 | W35: =IF(TriangleWave!B$21=TRUE,Sheet2!S35,"") -> 0.7485796463 | AA35: -1.967081712 | AB35: 0.273 | AC35: 0.432 | AD35: 0.359 | AE35: 0.356 | AF35: =IF(SawtoothWave!B$14=TRUE,Sheet2!AB35,"") -> 0.273 | AG35: =IF(SawtoothWave!B$16=TRUE,Sheet2!AC35,"") -> 0.432 | AH35: =IF(SawtoothWave!B$19=TRUE,Sheet2!AD35,"") -> 0.359 | AI35: =IF(SawtoothWave!B$21=TRUE,Sheet2!AE35,"") -> 0.356
C36: -4.266209479 | D36: 1.074296169 | E36: 1.025451451 | F36: 0.9473768125 | G36: 1.038307206 | H36: =IF(SquareWave!B$14=TRUE,Sheet2!D36,"") -> 1.074296169 | I36: =IF(SquareWave!$B$16=TRUE,Sheet2!E36,"") ->  | J36: =IF(SquareWave!$B$19=TRUE,Sheet2!F36,"") -> 0.9473768125 | K36: =IF(SquareWave!$B$21=TRUE,Sheet2!G36,"") -> 1.038307206 | O36: -1.229571984 | P36: 0.8043686835 | Q36: 0.779207598 | R36: 0.7647139892 | S36: 0.7729851063 | T36: =IF(TriangleWave!B$14=TRUE,Sheet2!P36,"") -> 0.8043686835 | U36: =IF(TriangleWave!B$16=TRUE,Sheet2!Q36,"") -> 0.779207598 | V36: =IF(TriangleWave!B$19=TRUE,Sheet2!R36,"") -> 0.7647139892 | W36: =IF(TriangleWave!B$21=TRUE,Sheet2!S36,"") -> 0.7729851063 | AA36: -1.930428016 | AB36: 0.290 | AC36: 0.448 | AD36: 0.360 | AE36: 0.380 | AF36: =IF(SawtoothWave!B$14=TRUE,Sheet2!AB36,"") -> 0.290 | AG36: =IF(SawtoothWave!B$16=TRUE,Sheet2!AC36,"") -> 0.448 | AH36: =IF(SawtoothWave!B$19=TRUE,Sheet2!AD36,"") -> 0.360 | AI36: =IF(SawtoothWave!B$21=TRUE,Sheet2!AE36,"") -> 0.380
C37: -4.205088999 | D37: 1.056443504 | E37: 1.046071504 | F37: 0.941354001 | G37: 1.024780034 | H37: =IF(SquareWave!B$14=TRUE,Sheet2!D37,"") -> 1.056443504 | I37: =IF(SquareWave!$B$16=TRUE,Sheet2!E37,"") ->  | J37: =IF(SquareWave!$B$19=TRUE,Sheet2!F37,"") -> 0.941354001 | K37: =IF(SquareWave!$B$21=TRUE,Sheet2!G37,"") -> 1.024780034 | O37: -1.206225681 | P37: 0.8231605771 | Q37: 0.8067574856 | R37: 0.7906235527 | S37: 0.7988946697 | T37: =IF(TriangleWave!B$14=TRUE,Sheet2!P37,"") -> 0.8231605771 | U37: =IF(TriangleWave!B$16=TRUE,Sheet2!Q37,"") -> 0.8067574856 | V37: =IF(TriangleWave!B$19=TRUE,Sheet2!R37,"") -> 0.7906235527 | W37: =IF(TriangleWave!B$21=TRUE,Sheet2!S37,"") -> 0.7988946697 | AA37: -1.893774319 | AB37: 0.308 | AC37: 0.461 | AD37: 0.362 | AE37: 0.404 | AF37: =IF(SawtoothWave!B$14=TRUE,Sheet2!AB37,"") -> 0.308 | AG37: =IF(SawtoothWave!B$16=TRUE,Sheet2!AC37,"") -> 0.461 | AH37: =IF(SawtoothWave!B$19=TRUE,Sheet2!AD37,"") -> 0.362 | AI37: =IF(SawtoothWave!B$21=TRUE,Sheet2!AE37,"") -> 0.404
C38: -4.14396852 | D38: 1.036512774 | E38: 1.064961235 | F38: 0.9433048546 | G38: 1.004186928 | H38: =IF(SquareWave!B$14=TRUE,Sheet2!D38,"") -> 1.036512774 | I38: =IF(SquareWave!$B$16=TRUE,Sheet2!E38,"") ->  | J38: =IF(SquareWave!$B$19=TRUE,Sheet2!F38,"") -> 0.9433048546 | K38: =IF(SquareWave!$B$21=TRUE,Sheet2!G38,"") -> 1.004186928 | O38: -1.182879377 | P38: 0.8402148312 | Q38: 0.8333606878 | R38: 0.8177320052 | S38: 0.8260031222 | T38: =IF(TriangleWave!B$14=TRUE,Sheet2!P38,"") -> 0.8402148312 | U38: =IF(TriangleWave!B$16=TRUE,Sheet2!Q38,"") -> 0.8333606878 | V38: =IF(TriangleWave!B$19=TRUE,Sheet2!R38,"") -> 0.8177320052 | W38: =IF(TriangleWave!B$21=TRUE,Sheet2!S38,"") -> 0.8260031222 | AA38: -1.857120623 | AB38: 0.327 | AC38: 0.472 | AD38: 0.367 | AE38: 0.427 | AF38: =IF(SawtoothWave!B$14=TRUE,Sheet2!AB38,"") -> 0.327 | AG38: =IF(SawtoothWave!B$16=TRUE,Sheet2!AC38,"") -> 0.472 | AH38: =IF(SawtoothWave!B$19=TRUE,Sheet2!AD38,"") -> 0.367 | AI38: =IF(SawtoothWave!B$21=TRUE,Sheet2!AE38,"") -> 0.427
C39: -4.08284804 | D39: 1.01457841 | E39: 1.080893532 | F39: 0.9535719555 | G39: 0.9809345751 | H39: =IF(SquareWave!B$14=TRUE,Sheet2!D39,"") -> 1.01457841 | I39: =IF(SquareWave!$B$16=TRUE,Sheet2!E39,"") ->  | J39: =IF(SquareWave!$B$19=TRUE,Sheet2!F39,"") -> 0.9535719555 | K39: =IF(SquareWave!$B$21=TRUE,Sheet2!G39,"") -> 0.9809345751 | O39: -1.159533074 | P39: 0.8554397448 | Q39: 0.8584650552 | R39: 0.8454200065 | S39: 0.8536911235 | T39: =IF(TriangleWave!B$14=TRUE,Sheet2!P39,"") -> 0.8554397448 | U39: =IF(TriangleWave!B$16=TRUE,Sheet2!Q39,"") -> 0.8584650552 | V39: =IF(TriangleWave!B$19=TRUE,Sheet2!R39,"") -> 0.8454200065 | W39: =IF(TriangleWave!B$21=TRUE,Sheet2!S39,"") -> 0.8536911235 | AA39: -1.820466926 | AB39: 0.347 | AC39: 0.481 | AD39: 0.375 | AE39: 0.448 | AF39: =IF(SawtoothWave!B$14=TRUE,Sheet2!AB39,"") -> 0.347 | AG39: =IF(SawtoothWave!B$16=TRUE,Sheet2!AC39,"") -> 0.481 | AH39: =IF(SawtoothWave!B$19=TRUE,Sheet2!AD39,"") -> 0.375 | AI39: =IF(SawtoothWave!B$21=TRUE,Sheet2!AE39,"") -> 0.448
C40: -4.02172756 | D40: 0.9907223265 | E40: 1.092680741 | F40: 0.9714926344 | G40: 0.9604030137 | H40: =IF(SquareWave!B$14=TRUE,Sheet2!D40,"") -> 0.9907223265 | I40: =IF(SquareWave!$B$16=TRUE,Sheet2!E40,"") ->  | J40: =IF(SquareWave!$B$19=TRUE,Sheet2!F40,"") -> 0.9714926344 | K40: =IF(SquareWave!$B$21=TRUE,Sheet2!G40,"") -> 0.9604030137 | O40: -1.13618677 | P40: 0.8687534533 | Q40: 0.8815123375 | R40: 0.8727857213 | S40: 0.8810568384 | T40: =IF(TriangleWave!B$14=TRUE,Sheet2!P40,"") -> 0.8687534533 | U40: =IF(TriangleWave!B$16=TRUE,Sheet2!Q40,"") -> 0.8815123375 | V40: =IF(TriangleWave!B$19=TRUE,Sheet2!R40,"") -> 0.8727857213 | W40: =IF(TriangleWave!B$21=TRUE,Sheet2!S40,"") -> 0.8810568384 | AA40: -1.78381323 | AB40: 0.368 | AC40: 0.488 | AD40: 0.386 | AE40: 0.465 | AF40: =IF(SawtoothWave!B$14=TRUE,Sheet2!AB40,"") -> 0.368 | AG40: =IF(SawtoothWave!B$16=TRUE,Sheet2!AC40,"") -> 0.488 | AH40: =IF(SawtoothWave!B$19=TRUE,Sheet2!AD40,"") -> 0.386 | AI40: =IF(SawtoothWave!B$21=TRUE,Sheet2!AE40,"") -> 0.465
C41: -3.960607081 | D41: 0.9650336161 | E41: 1.099216931 | F41: 0.9953925813 | G41: 0.9478498977 | H41: =IF(SquareWave!B$14=TRUE,Sheet2!D41,"") -> 0.9650336161 | I41: =IF(SquareWave!$B$16=TRUE,Sheet2!E41,"") ->  | J41: =IF(SquareWave!$B$19=TRUE,Sheet2!F41,"") -> 0.9953925813 | K41: =IF(SquareWave!$B$21=TRUE,Sheet2!G41,"") -> 0.9478498977 | O41: -1.112840467 | P41: 0.8800843687 | Q41: 0.9019615956 | R41: 0.8987139228 | S41: 0.9069850398 | T41: =IF(TriangleWave!B$14=TRUE,Sheet2!P41,"") -> 0.8800843687 | U41: =IF(TriangleWave!B$16=TRUE,Sheet2!Q41,"") -> 0.9019615956 | V41: =IF(TriangleWave!B$19=TRUE,Sheet2!R41,"") -> 0.8987139228 | W41: =IF(TriangleWave!B$21=TRUE,Sheet2!S41,"") -> 0.9069850398 | AA41: -1.747159533 | AB41: 0.390 | AC41: 0.493 | AD41: 0.400 | AE41: 0.479 | AF41: =IF(SawtoothWave!B$14=TRUE,Sheet2!AB41,"") -> 0.390 | AG41: =IF(SawtoothWave!B$16=TRUE,Sheet2!AC41,"") -> 0.493 | AH41: =IF(SawtoothWave!B$19=TRUE,Sheet2!AD41,"") -> 0.400 | AI41: =IF(SawtoothWave!B$21=TRUE,Sheet2!AE41,"") -> 0.479
C42: -3.899486601 | D42: 0.9376082144 | E42: 1.099517621 | F42: 1.022678248 | G42: 0.9472532425 | H42: =IF(SquareWave!B$14=TRUE,Sheet2!D42,"") -> 0.9376082144 | I42: =IF(SquareWave!$B$16=TRUE,Sheet2!E42,"") ->  | J42: =IF(SquareWave!$B$19=TRUE,Sheet2!F42,"") -> 1.022678248 | K42: =IF(SquareWave!$B$21=TRUE,Sheet2!G42,"") -> 0.9472532425 | O42: -1.089494163 | P42: 0.8893715645 | Q42: 0.9193122181 | R42: 0.9219753811 | S42: 0.9302464981 | T42: =IF(TriangleWave!B$14=TRUE,Sheet2!P42,"") -> 0.8893715645 | U42: =IF(TriangleWave!B$16=TRUE,Sheet2!Q42,"") -> 0.9193122181 | V42: =IF(TriangleWave!B$19=TRUE,Sheet2!R42,"") -> 0.9219753811 | W42: =IF(TriangleWave!B$21=TRUE,Sheet2!S42,"") -> 0.9302464981 | AA42: -1.710505837 | AB42: 0.412 | AC42: 0.497 | AD42: 0.417 | AE42: 0.489 | AF42: =IF(SawtoothWave!B$14=TRUE,Sheet2!AB42,"") -> 0.412 | AG42: =IF(SawtoothWave!B$16=TRUE,Sheet2!AC42,"") -> 0.497 | AH42: =IF(SawtoothWave!B$19=TRUE,Sheet2!AD42,"") -> 0.417 | AI42: =IF(SawtoothWave!B$21=TRUE,Sheet2!AE42,"") -> 0.489
C43: -3.838366122 | D43: 0.9085485428 | E43: 1.092755653 | F43: 1.050021826 | G43: 0.9603117137 | H43: =IF(SquareWave!B$14=TRUE,Sheet2!D43,"") -> 0.9085485428 | I43: =IF(SquareWave!$B$16=TRUE,Sheet2!E43,"") ->  | J43: =IF(SquareWave!$B$19=TRUE,Sheet2!F43,"") -> 1.050021826 | K43: =IF(SquareWave!$B$21=TRUE,Sheet2!G43,"") -> 0.9603117137 | O43: -1.06614786 | P43: 0.8965651034 | Q43: 0.9331254506 | R43: 0.9413452881 | S43: 0.9496164052 | T43: =IF(TriangleWave!B$14=TRUE,Sheet2!P43,"") -> 0.8965651034 | U43: =IF(TriangleWave!B$16=TRUE,Sheet2!Q43,"") -> 0.9331254506 | V43: =IF(TriangleWave!B$19=TRUE,Sheet2!R43,"") -> 0.9413452881 | W43: =IF(TriangleWave!B$21=TRUE,Sheet2!S43,"") -> 0.9496164052 | AA43: -1.67385214 | AB43: 0.434 | AC43: 0.499 | AD43: 0.437 | AE43: 0.495 | AF43: =IF(SawtoothWave!B$14=TRUE,Sheet2!AB43,"") -> 0.434 | AG43: =IF(SawtoothWave!B$16=TRUE,Sheet2!AC43,"") -> 0.499 | AH43: =IF(SawtoothWave!B$19=TRUE,Sheet2!AD43,"") -> 0.437 | AI43: =IF(SawtoothWave!B$21=TRUE,Sheet2!AE43,"") -> 0.495
C44: -3.777245642 | D44: 0.8779631262 | E44: 1.078291969 | F44: 1.073623755 | G44: 0.9858009957 | H44: =IF(SquareWave!B$14=TRUE,Sheet2!D44,"") -> 0.8779631262 | I44: =IF(SquareWave!$B$16=TRUE,Sheet2!E44,"") ->  | J44: =IF(SquareWave!$B$19=TRUE,Sheet2!F44,"") -> 1.073623755 | K44: =IF(SquareWave!$B$21=TRUE,Sheet2!G44,"") -> 0.9858009957 | O44: -1.042801556 | P44: 0.9016263054 | Q44: 0.9430434128 | R44: 0.9557268081 | S44: 0.9639979251 | T44: =IF(TriangleWave!B$14=TRUE,Sheet2!P44,"") -> 0.9016263054 | U44: =IF(TriangleWave!B$16=TRUE,Sheet2!Q44,"") -> 0.9430434128 | V44: =IF(TriangleWave!B$19=TRUE,Sheet2!R44,"") -> 0.9557268081 | W44: =IF(TriangleWave!B$21=TRUE,Sheet2!S44,"") -> 0.9639979251 | AA44: -1.637198444 | AB44: 0.457 | AC44: 0.500 | AD44: 0.458 | AE44: 0.499 | AF44: =IF(SawtoothWave!B$14=TRUE,Sheet2!AB44,"") -> 0.457 | AG44: =IF(SawtoothWave!B$16=TRUE,Sheet2!AC44,"") -> 0.500 | AH44: =IF(SawtoothWave!B$19=TRUE,Sheet2!AD44,"") -> 0.458 | AI44: =IF(SawtoothWave!B$21=TRUE,Sheet2!AE44,"") -> 0.499
C45: -3.716125162 | D45: 0.8459661872 | E45: 1.055700273 | F45: 1.089530267 | G45: 1.019427078 | H45: =IF(SquareWave!B$14=TRUE,Sheet2!D45,"") -> 0.8459661872 | I45: =IF(SquareWave!$B$16=TRUE,Sheet2!E45,"") ->  | J45: =IF(SquareWave!$B$19=TRUE,Sheet2!F45,"") -> 1.089530267 | K45: =IF(SquareWave!$B$21=TRUE,Sheet2!G45,"") -> 1.019427078 | O45: -1.019455253 | P45: 0.9045279565 | Q45: 0.9488046985 | R45: 0.9642649475 | S45: 0.9725360645 | T45: =IF(TriangleWave!B$14=TRUE,Sheet2!P45,"") -> 0.9045279565 | U45: =IF(TriangleWave!B$16=TRUE,Sheet2!Q45,"") -> 0.9488046985 | V45: =IF(TriangleWave!B$19=TRUE,Sheet2!R45,"") -> 0.9642649475 | W45: =IF(TriangleWave!B$21=TRUE,Sheet2!S45,"") -> 0.9725360645 | AA45: -1.600544747 | AB45: 0.481 | AC45: 0.500 | AD45: 0.481 | AE45: 0.500 | AF45: =IF(SawtoothWave!B$14=TRUE,Sheet2!AB45,"") -> 0.481 | AG45: =IF(SawtoothWave!B$16=TRUE,Sheet2!AC45,"") -> 0.500 | AH45: =IF(SawtoothWave!B$19=TRUE,Sheet2!AD45,"") -> 0.481 | AI45: =IF(SawtoothWave!B$21=TRUE,Sheet2!AE45,"") -> 0.500
C46: -3.655004683 | D46: 0.8126772202 | E46: 1.024784726 | F46: 1.093977963 | G46: 1.054232171 | H46: =IF(SquareWave!B$14=TRUE,Sheet2!D46,"") -> 0.8126772202 | I46: =IF(SquareWave!$B$16=TRUE,Sheet2!E46,"") ->  | J46: =IF(SquareWave!$B$19=TRUE,Sheet2!F46,"") -> 1.093977963 | K46: =IF(SquareWave!$B$21=TRUE,Sheet2!G46,"") -> 1.054232171 | O46: -0.9961089494 | P46: 0.9052544544 | Q46: 0.9502558144 | R46: 0.9664369327 | S46: 0.9747080497 | T46: =IF(TriangleWave!B$14=TRUE,Sheet2!P46,"") -> 0.9052544544 | U46: =IF(TriangleWave!B$16=TRUE,Sheet2!Q46,"") -> 0.9502558144 | V46: =IF(TriangleWave!B$19=TRUE,Sheet2!R46,"") -> 0.9664369327 | W46: =IF(TriangleWave!B$21=TRUE,Sheet2!S46,"") -> 0.9747080497 | AA46: -1.563891051 | AB46: 0.504 | AC46: 0.500 | AD46: 0.504 | AE46: 0.500 | AF46: =IF(SawtoothWave!B$14=TRUE,Sheet2!AB46,"") -> 0.504 | AG46: =IF(SawtoothWave!B$16=TRUE,Sheet2!AC46,"") -> 0.500 | AH46: =IF(SawtoothWave!B$19=TRUE,Sheet2!AD46,"") -> 0.504 | AI46: =IF(SawtoothWave!B$21=TRUE,Sheet2!AE46,"") -> 0.500
C47: -3.593884203 | D47: 0.7782205444 | E47: 0.9855900734 | F47: 1.083734539 | G47: 1.081511303 | H47: =IF(SquareWave!B$14=TRUE,Sheet2!D47,"") -> 0.7782205444 | I47: =IF(SquareWave!$B$16=TRUE,Sheet2!E47,"") ->  | J47: =IF(SquareWave!$B$19=TRUE,Sheet2!F47,"") -> 1.083734539 | K47: =IF(SquareWave!$B$21=TRUE,Sheet2!G47,"") -> 1.081511303 | O47: -0.9727626459 | P47: 0.9038018928 | Q47: 0.9473579131 | R47: 0.9621080513 | S47: 0.9703791683 | T47: =IF(TriangleWave!B$14=TRUE,Sheet2!P47,"") -> 0.9038018928 | U47: =IF(TriangleWave!B$16=TRUE,Sheet2!Q47,"") -> 0.9473579131 | V47: =IF(TriangleWave!B$19=TRUE,Sheet2!R47,"") -> 0.9621080513 | W47: =IF(TriangleWave!B$21=TRUE,Sheet2!S47,"") -> 0.9703791683 | AA47: -1.527237354 | AB47: 0.527 | AC47: 0.500 | AD47: 0.527 | AE47: 0.500 | AF47: =IF(SawtoothWave!B$14=TRUE,Sheet2!AB47,"") -> 0.527 | AG47: =IF(SawtoothWave!B$16=TRUE,Sheet2!AC47,"") -> 0.500 | AH47: =IF(SawtoothWave!B$19=TRUE,Sheet2!AD47,"") -> 0.527 | AI47: =IF(SawtoothWave!B$21=TRUE,Sheet2!AE47,"") -> 0.500
C48: -3.532763723 | D48: 0.74272484 | E48: 0.9384038472 | F48: 1.056404666 | G48: 1.092104779 | H48: =IF(SquareWave!B$14=TRUE,Sheet2!D48,"") -> 0.74272484 | I48: =IF(SquareWave!$B$16=TRUE,Sheet2!E48,"") ->  | J48: =IF(SquareWave!$B$19=TRUE,Sheet2!F48,"") -> 1.056404666 | K48: =IF(SquareWave!$B$21=TRUE,Sheet2!G48,"") -> 1.092104779 | O48: -0.9494163424 | P48: 0.900178082 | Q48: 0.9401884992 | R48: 0.951546107 | S48: 0.959817224 | T48: =IF(TriangleWave!B$14=TRUE,Sheet2!P48,"") -> 0.900178082 | U48: =IF(TriangleWave!B$16=TRUE,Sheet2!Q48,"") -> 0.9401884992 | V48: =IF(TriangleWave!B$19=TRUE,Sheet2!R48,"") -> 0.951546107 | W48: =IF(TriangleWave!B$21=TRUE,Sheet2!S48,"") -> 0.959817224 | AA48: -1.490583658 | AB48: 0.550 | AC48: 0.501 | AD48: 0.549 | AE48: 0.502 | AF48: =IF(SawtoothWave!B$14=TRUE,Sheet2!AB48,"") -> 0.550 | AG48: =IF(SawtoothWave!B$16=TRUE,Sheet2!AC48,"") -> 0.501 | AH48: =IF(SawtoothWave!B$19=TRUE,Sheet2!AD48,"") -> 0.549 | AI48: =IF(SawtoothWave!B$21=TRUE,Sheet2!AE48,"") -> 0.502
C49: -3.471643244 | D49: 0.7063226676 | E49: 0.8837505597 | F49: 1.010672805 | G49: 1.077860442 | H49: =IF(SquareWave!B$14=TRUE,Sheet2!D49,"") -> 0.7063226676 | I49: =IF(SquareWave!$B$16=TRUE,Sheet2!E49,"") ->  | J49: =IF(SquareWave!$B$19=TRUE,Sheet2!F49,"") -> 1.010672805 | K49: =IF(SquareWave!$B$21=TRUE,Sheet2!G49,"") -> 1.077860442 | O49: -0.9260700389 | P49: 0.8944025075 | Q49: 0.9289380262 | R49: 0.9353927098 | S49: 0.9436638268 | T49: =IF(TriangleWave!B$14=TRUE,Sheet2!P49,"") -> 0.8944025075 | U49: =IF(TriangleWave!B$16=TRUE,Sheet2!Q49,"") -> 0.9289380262 | V49: =IF(TriangleWave!B$19=TRUE,Sheet2!R49,"") -> 0.9353927098 | W49: =IF(TriangleWave!B$21=TRUE,Sheet2!S49,"") -> 0.9436638268 | AA49: -1.453929961 | AB49: 0.573 | AC49: 0.502 | AD49: 0.570 | AE49: 0.506 | AF49: =IF(SawtoothWave!B$14=TRUE,Sheet2!AB49,"") -> 0.573 | AG49: =IF(SawtoothWave!B$16=TRUE,Sheet2!AC49,"") -> 0.502 | AH49: =IF(SawtoothWave!B$19=TRUE,Sheet2!AD49,"") -> 0.570 | AI49: =IF(SawtoothWave!B$21=TRUE,Sheet2!AE49,"") -> 0.506
C50: -3.410522764 | D50: 0.6691499727 | E50: 0.8223780676 | F50: 0.9464600789 | G50: 1.033023012 | H50: =IF(SquareWave!B$14=TRUE,Sheet2!D50,"") -> 0.6691499727 | I50: =IF(SquareWave!$B$16=TRUE,Sheet2!E50,"") ->  | J50: =IF(SquareWave!$B$19=TRUE,Sheet2!F50,"") -> 0.9464600789 | K50: =IF(SquareWave!$B$21=TRUE,Sheet2!G50,"") -> 1.033023012 | O50: -0.9027237354 | P50: 0.8865062244 | Q50: 0.9139015481 | R50: 0.91459493 | S50: 0.9228660471 | T50: =IF(TriangleWave!B$14=TRUE,Sheet2!P50,"") -> 0.8865062244 | U50: =IF(TriangleWave!B$16=TRUE,Sheet2!Q50,"") -> 0.9139015481 | V50: =IF(TriangleWave!B$19=TRUE,Sheet2!R50,"") -> 0.91459493 | W50: =IF(TriangleWave!B$21=TRUE,Sheet2!S50,"") -> 0.9228660471 | AA50: -1.417276265 | AB50: 0.596 | AC50: 0.504 | AD50: 0.589 | AE50: 0.514 | AF50: =IF(SawtoothWave!B$14=TRUE,Sheet2!AB50,"") -> 0.596 | AG50: =IF(SawtoothWave!B$16=TRUE,Sheet2!AC50,"") -> 0.504 | AH50: =IF(SawtoothWave!B$19=TRUE,Sheet2!AD50,"") -> 0.589 | AI50: =IF(SawtoothWave!B$21=TRUE,Sheet2!AE50,"") -> 0.514
C51: -3.349402284 | D51: 0.6313455788 | E51: 0.7552365486 | F51: 0.8649798652 | G51: 0.9553129925 | H51: =IF(SquareWave!B$14=TRUE,Sheet2!D51,"") -> 0.6313455788 | I51: =IF(SquareWave!$B$16=TRUE,Sheet2!E51,"") ->  | J51: =IF(SquareWave!$B$19=TRUE,Sheet2!F51,"") -> 0.8649798652 | K51: =IF(SquareWave!$B$21=TRUE,Sheet2!G51,"") -> 0.9553129925 | O51: -0.8793774319 | P51: 0.8765316914 | Q51: 0.8954658223 | R51: 0.8903056931 | S51: 0.8985768101 | T51: =IF(TriangleWave!B$14=TRUE,Sheet2!P51,"") -> 0.8765316914 | U51: =IF(TriangleWave!B$16=TRUE,Sheet2!Q51,"") -> 0.8954658223 | V51: =IF(TriangleWave!B$19=TRUE,Sheet2!R51,"") -> 0.8903056931 | W51: =IF(TriangleWave!B$21=TRUE,Sheet2!S51,"") -> 0.8985768101 | AA51: -1.380622568 | AB51: 0.618 | AC51: 0.508 | AD51: 0.605 | AE51: 0.525 | AF51: =IF(SawtoothWave!B$14=TRUE,Sheet2!AB51,"") -> 0.618 | AG51: =IF(SawtoothWave!B$16=TRUE,Sheet2!AC51,"") -> 0.508 | AH51: =IF(SawtoothWave!B$19=TRUE,Sheet2!AD51,"") -> 0.605 | AI51: =IF(SawtoothWave!B$21=TRUE,Sheet2!AE51,"") -> 0.525
C52: -3.288281805 | D52: 0.5930506682 | E52: 0.6834507804 | F52: 0.7686856831 | G52: 0.8465042318 | H52: =IF(SquareWave!B$14=TRUE,Sheet2!D52,"") -> 0.5930506682 | I52: =IF(SquareWave!$B$16=TRUE,Sheet2!E52,"") ->  | J52: =IF(SquareWave!$B$19=TRUE,Sheet2!F52,"") -> 0.7686856831 | K52: =IF(SquareWave!$B$21=TRUE,Sheet2!G52,"") -> 0.8465042318 | O52: -0.8560311284 | P52: 0.8645325415 | Q52: 0.8740924793 | R52: 0.8637650598 | S52: 0.8720361768 | T52: =IF(TriangleWave!B$14=TRUE,Sheet2!P52,"") -> 0.8645325415 | U52: =IF(TriangleWave!B$16=TRUE,Sheet2!Q52,"") -> 0.8740924793 | V52: =IF(TriangleWave!B$19=TRUE,Sheet2!R52,"") -> 0.8637650598 | W52: =IF(TriangleWave!B$21=TRUE,Sheet2!S52,"") -> 0.8720361768 | AA52: -1.343968872 | AB52: 0.639 | AC52: 0.514 | AD52: 0.618 | AE52: 0.540 | AF52: =IF(SawtoothWave!B$14=TRUE,Sheet2!AB52,"") -> 0.639 | AG52: =IF(SawtoothWave!B$16=TRUE,Sheet2!AC52,"") -> 0.514 | AH52: =IF(SawtoothWave!B$19=TRUE,Sheet2!AD52,"") -> 0.618 | AI52: =IF(SawtoothWave!B$21=TRUE,Sheet2!AE52,"") -> 0.540
C53: -3.227161325 | D53: 0.5544082552 | E53: 0.6082866361 | F53: 0.661114557 | G53: 0.7123898157 | H53: =IF(SquareWave!B$14=TRUE,Sheet2!D53,"") -> 0.5544082552 | I53: =IF(SquareWave!$B$16=TRUE,Sheet2!E53,"") ->  | J53: =IF(SquareWave!$B$19=TRUE,Sheet2!F53,"") -> 0.661114557 | K53: =IF(SquareWave!$B$21=TRUE,Sheet2!G53,"") -> 0.7123898157 | O53: -0.8326848249 | P53: 0.8505732945 | Q53: 0.8502980607 | R53: 0.8361767448 | S53: 0.8444478618 | T53: =IF(TriangleWave!B$14=TRUE,Sheet2!P53,"") -> 0.8505732945 | U53: =IF(TriangleWave!B$16=TRUE,Sheet2!Q53,"") -> 0.8502980607 | V53: =IF(TriangleWave!B$19=TRUE,Sheet2!R53,"") -> 0.8361767448 | W53: =IF(TriangleWave!B$21=TRUE,Sheet2!S53,"") -> 0.8444478618 | AA53: -1.307315175 | AB53: 0.660 | AC53: 0.522 | AD53: 0.628 | AE53: 0.559 | AF53: =IF(SawtoothWave!B$14=TRUE,Sheet2!AB53,"") -> 0.660 | AG53: =IF(SawtoothWave!B$16=TRUE,Sheet2!AC53,"") -> 0.522 | AH53: =IF(SawtoothWave!B$19=TRUE,Sheet2!AD53,"") -> 0.628 | AI53: =IF(SawtoothWave!B$21=TRUE,Sheet2!AE53,"") -> 0.559
C54: -3.166040845 | D54: 0.5155626519 | E54: 0.5311129036 | F54: 0.5466383726 | G54: 0.5621267121 | H54: =IF(SquareWave!B$14=TRUE,Sheet2!D54,"") -> 0.5155626519 | I54: =IF(SquareWave!$B$16=TRUE,Sheet2!E54,"") ->  | J54: =IF(SquareWave!$B$19=TRUE,Sheet2!F54,"") -> 0.5466383726 | K54: =IF(SquareWave!$B$21=TRUE,Sheet2!G54,"") -> 0.5621267121 | O54: -0.8093385214 | P54: 0.8347290093 | Q54: 0.8246318756 | R54: 0.8085945896 | S54: 0.8168657067 | T54: =IF(TriangleWave!B$14=TRUE,Sheet2!P54,"") -> 0.8347290093 | U54: =IF(TriangleWave!B$16=TRUE,Sheet2!Q54,"") -> 0.8246318756 | V54: =IF(TriangleWave!B$19=TRUE,Sheet2!R54,"") -> 0.8085945896 | W54: =IF(TriangleWave!B$21=TRUE,Sheet2!S54,"") -> 0.8168657067 | AA54: -1.270661479 | AB54: 0.679 | AC54: 0.531 | AD54: 0.635 | AE54: 0.581 | AF54: =IF(SawtoothWave!B$14=TRUE,Sheet2!AB54,"") -> 0.679 | AG54: =IF(SawtoothWave!B$16=TRUE,Sheet2!AC54,"") -> 0.531 | AH54: =IF(SawtoothWave!B$19=TRUE,Sheet2!AD54,"") -> 0.635 | AI54: =IF(SawtoothWave!B$21=TRUE,Sheet2!AE54,"") -> 0.581
C55: -3.104920366 | D55: 0.4766589291 | E55: 0.4533596932 | F55: 0.4301439926 | G55: 0.4070532579 | H55: =IF(SquareWave!B$14=TRUE,Sheet2!D55,"") -> 0.4766589291 | I55: =IF(SquareWave!$B$16=TRUE,Sheet2!E55,"") ->  | J55: =IF(SquareWave!$B$19=TRUE,Sheet2!F55,"") -> 0.4301439926 | K55: =IF(SquareWave!$B$21=TRUE,Sheet2!G55,"") -> 0.4070532579 | O55: -0.7859922179 | P55: 0.817084881 | Q55: 0.7976527294 | R55: 0.7818321952 | S55: 0.7901033122 | T55: =IF(TriangleWave!B$14=TRUE,Sheet2!P55,"") -> 0.817084881 | U55: =IF(TriangleWave!B$16=TRUE,Sheet2!Q55,"") -> 0.7976527294 | V55: =IF(TriangleWave!B$19=TRUE,Sheet2!R55,"") -> 0.7818321952 | W55: =IF(TriangleWave!B$21=TRUE,Sheet2!S55,"") -> 0.7901033122 | AA55: -1.234007782 | AB55: 0.698 | AC55: 0.543 | AD55: 0.639 | AE55: 0.604 | AF55: =IF(SawtoothWave!B$14=TRUE,Sheet2!AB55,"") -> 0.698 | AG55: =IF(SawtoothWave!B$16=TRUE,Sheet2!AC55,"") -> 0.543 | AH55: =IF(SawtoothWave!B$19=TRUE,Sheet2!AD55,"") -> 0.639 | AI55: =IF(SawtoothWave!B$21=TRUE,Sheet2!AE55,"") -> 0.604
C56: -3.043799886 | D56: 0.4378423746 | E56: 0.3764748122 | F56: 0.3166693 | G56: 0.2591621652 | H56: =IF(SquareWave!B$14=TRUE,Sheet2!D56,"") -> 0.4378423746 | I56: =IF(SquareWave!$B$16=TRUE,Sheet2!E56,"") ->  | J56: =IF(SquareWave!$B$19=TRUE,Sheet2!F56,"") -> 0.3166693 | K56: =IF(SquareWave!$B$21=TRUE,Sheet2!G56,"") -> 0.2591621652 | O56: -0.7626459144 | P56: 0.7977357824 | Q56: 0.7699056277 | R56: 0.7564057423 | S56: 0.7646768593 | T56: =IF(TriangleWave!B$14=TRUE,Sheet2!P56,"") -> 0.7977357824 | U56: =IF(TriangleWave!B$16=TRUE,Sheet2!Q56,"") -> 0.7699056277 | V56: =IF(TriangleWave!B$19=TRUE,Sheet2!R56,"") -> 0.7564057423 | W56: =IF(TriangleWave!B$21=TRUE,Sheet2!S56,"") -> 0.7646768593 | AA56: -1.197354086 | AB56: 0.716 | AC56: 0.557 | AD56: 0.641 | AE56: 0.628 | AF56: =IF(SawtoothWave!B$14=TRUE,Sheet2!AB56,"") -> 0.716 | AG56: =IF(SawtoothWave!B$16=TRUE,Sheet2!AC56,"") -> 0.557 | AH56: =IF(SawtoothWave!B$19=TRUE,Sheet2!AD56,"") -> 0.641 | AI56: =IF(SawtoothWave!B$21=TRUE,Sheet2!AE56,"") -> 0.628
C57: -2.982679407 | D57: 0.399257951 | E57: 0.3018795521 | F57: 0.2110262993 | G57: 0.1294698429 | H57: =IF(SquareWave!B$14=TRUE,Sheet2!D57,"") -> 0.399257951 | I57: =IF(SquareWave!$B$16=TRUE,Sheet2!E57,"") ->  | J57: =IF(SquareWave!$B$19=TRUE,Sheet2!F57,"") -> 0.2110262993 | K57: =IF(SquareWave!$B$21=TRUE,Sheet2!G57,"") -> 0.1294698429 | O57: -0.7392996109 | P57: 0.7767857537 | Q57: 0.7418995612 | R57: 0.7325156096 | S57: 0.7407867267 | T57: =IF(TriangleWave!B$14=TRUE,Sheet2!P57,"") -> 0.7767857537 | U57: =IF(TriangleWave!B$16=TRUE,Sheet2!Q57,"") -> 0.7418995612 | V57: =IF(TriangleWave!B$19=TRUE,Sheet2!R57,"") -> 0.7325156096 | W57: =IF(TriangleWave!B$21=TRUE,Sheet2!S57,"") -> 0.7407867267 | AA57: -1.160700389 | AB57: 0.733 | AC57: 0.574 | AD57: 0.641 | AE57: 0.651 | AF57: =IF(SawtoothWave!B$14=TRUE,Sheet2!AB57,"") -> 0.733 | AG57: =IF(SawtoothWave!B$16=TRUE,Sheet2!AC57,"") -> 0.574 | AH57: =IF(SawtoothWave!B$19=TRUE,Sheet2!AD57,"") -> 0.641 | AI57: =IF(SawtoothWave!B$21=TRUE,Sheet2!AE57,"") -> 0.651
C58: -2.921558927 | D58: 0.3610497535 | E58: 0.2309253553 | F58: 0.1174435724 | G58: 0.02654035566 | H58: =IF(SquareWave!B$14=TRUE,Sheet2!D58,"") -> 0.3610497535 | I58: =IF(SquareWave!$B$16=TRUE,Sheet2!E58,"") ->  | J58: =IF(SquareWave!$B$19=TRUE,Sheet2!F58,"") -> 0.1174435724 | K58: =IF(SquareWave!$B$21=TRUE,Sheet2!G58,"") -> 0.02654035566 | O58: -0.7159533074 | P58: 0.7543474438 | Q58: 0.7140874194 | R58: 0.7100673285 | S58: 0.7183384455 | T58: =IF(TriangleWave!B$14=TRUE,Sheet2!P58,"") -> 0.7543474438 | U58: =IF(TriangleWave!B$16=TRUE,Sheet2!Q58,"") -> 0.7140874194 | V58: =IF(TriangleWave!B$19=TRUE,Sheet2!R58,"") -> 0.7100673285 | W58: =IF(TriangleWave!B$21=TRUE,Sheet2!S58,"") -> 0.7183384455 | AA58: -1.124046693 | AB58: 0.748 | AC58: 0.592 | AD58: 0.640 | AE58: 0.673 | AF58: =IF(SawtoothWave!B$14=TRUE,Sheet2!AB58,"") -> 0.748 | AG58: =IF(SawtoothWave!B$16=TRUE,Sheet2!AC58,"") -> 0.592 | AH58: =IF(SawtoothWave!B$19=TRUE,Sheet2!AD58,"") -> 0.640 | AI58: =IF(SawtoothWave!B$21=TRUE,Sheet2!AE58,"") -> 0.673
C59: -2.860438447 | D59: 0.3233604728 | E59: 0.1648527978 | F59: 0.03925864108 | G59: -0.04460379057 | H59: =IF(SquareWave!B$14=TRUE,Sheet2!D59,"") -> 0.3233604728 | I59: =IF(SquareWave!$B$16=TRUE,Sheet2!E59,"") ->  | J59: =IF(SquareWave!$B$19=TRUE,Sheet2!F59,"") -> 0.03925864108 | K59: =IF(SquareWave!$B$21=TRUE,Sheet2!G59,"") -> -0.04460379057 | O59: -0.6926070039 | P59: 0.7305415036 | Q59: 0.6868489786 | R59: 0.688727361 | S59: 0.696998478 | T59: =IF(TriangleWave!B$14=TRUE,Sheet2!P59,"") -> 0.7305415036 | U59: =IF(TriangleWave!B$16=TRUE,Sheet2!Q59,"") -> 0.6868489786 | V59: =IF(TriangleWave!B$19=TRUE,Sheet2!R59,"") -> 0.688727361 | W59: =IF(TriangleWave!B$21=TRUE,Sheet2!S59,"") -> 0.696998478 | AA59: -1.087392996 | AB59: 0.762 | AC59: 0.613 | AD59: 0.639 | AE59: 0.691 | AF59: =IF(SawtoothWave!B$14=TRUE,Sheet2!AB59,"") -> 0.762 | AG59: =IF(SawtoothWave!B$16=TRUE,Sheet2!AC59,"") -> 0.613 | AH59: =IF(SawtoothWave!B$19=TRUE,Sheet2!AD59,"") -> 0.639 | AI59: =IF(SawtoothWave!B$21=TRUE,Sheet2!AE59,"") -> 0.691
C60: -2.799317968 | D60: 0.2863308612 | E60: 0.1047542475 | F60: -0.02131369443 | G60: -0.08301707075 | H60: =IF(SquareWave!B$14=TRUE,Sheet2!D60,"") -> 0.2863308612 | I60: =IF(SquareWave!$B$16=TRUE,Sheet2!E60,"") ->  | J60: =IF(SquareWave!$B$19=TRUE,Sheet2!F60,"") -> -0.02131369443 | K60: =IF(SquareWave!$B$21=TRUE,Sheet2!G60,"") -> -0.08301707075 | O60: -0.6692607004 | P60: 0.7054959381 | Q60: 0.6604777583 | R60: 0.6680048169 | S60: 0.676275934 | T60: =IF(TriangleWave!B$14=TRUE,Sheet2!P60,"") -> 0.7054959381 | U60: =IF(TriangleWave!B$16=TRUE,Sheet2!Q60,"") -> 0.6604777583 | V60: =IF(TriangleWave!B$19=TRUE,Sheet2!R60,"") -> 0.6680048169 | W60: =IF(TriangleWave!B$21=TRUE,Sheet2!S60,"") -> 0.676275934 | AA60: -1.0507393 | AB60: 0.774 | AC60: 0.635 | AD60: 0.638 | AE60: 0.705 | AF60: =IF(SawtoothWave!B$14=TRUE,Sheet2!AB60,"") -> 0.774 | AG60: =IF(SawtoothWave!B$16=TRUE,Sheet2!AC60,"") -> 0.635 | AH60: =IF(SawtoothWave!B$19=TRUE,Sheet2!AD60,"") -> 0.638 | AI60: =IF(SawtoothWave!B$21=TRUE,Sheet2!AE60,"") -> 0.705
C61: -2.738197488 | D61: 0.2500992078 | E61: 0.05154143307 | F61: -0.06331780063 | G61: -0.09173856723 | H61: =IF(SquareWave!B$14=TRUE,Sheet2!D61,"") -> 0.2500992078 | I61: =IF(SquareWave!$B$16=TRUE,Sheet2!E61,"") ->  | J61: =IF(SquareWave!$B$19=TRUE,Sheet2!F61,"") -> -0.06331780063 | K61: =IF(SquareWave!$B$21=TRUE,Sheet2!G61,"") -> -0.09173856723 | O61: -0.6459143969 | P61: 0.6793454178 | Q61: 0.6351723518 | R61: 0.6473470992 | S61: 0.6556182162 | T61: =IF(TriangleWave!B$14=TRUE,Sheet2!P61,"") -> 0.6793454178 | U61: =IF(TriangleWave!B$16=TRUE,Sheet2!Q61,"") -> 0.6351723518 | V61: =IF(TriangleWave!B$19=TRUE,Sheet2!R61,"") -> 0.6473470992 | W61: =IF(TriangleWave!B$21=TRUE,Sheet2!S61,"") -> 0.6556182162 | AA61: -1.014085603 | AB61: 0.785 | AC61: 0.659 | AD61: 0.639 | AE61: 0.715 | AF61: =IF(SawtoothWave!B$14=TRUE,Sheet2!AB61,"") -> 0.785 | AG61: =IF(SawtoothWave!B$16=TRUE,Sheet2!AC61,"") -> 0.659 | AH61: =IF(SawtoothWave!B$19=TRUE,Sheet2!AD61,"") -> 0.639 | AI61: =IF(SawtoothWave!B$21=TRUE,Sheet2!AE61,"") -> 0.715
C62: -2.677077008 | D62: 0.2148008214 | E62: 0.005918996306 | F62: -0.08708772692 | G62: -0.07710234013 | H62: =IF(SquareWave!B$14=TRUE,Sheet2!D62,"") -> 0.2148008214 | I62: =IF(SquareWave!$B$16=TRUE,Sheet2!E62,"") ->  | J62: =IF(SquareWave!$B$19=TRUE,Sheet2!F62,"") -> -0.08708772692 | K62: =IF(SquareWave!$B$21=TRUE,Sheet2!G62,"") -> -0.07710234013 | O62: -0.6225680934 | P62: 0.6522305544 | Q62: 0.6110326197 | R62: 0.6262359944 | S62: 0.6345071114 | T62: =IF(TriangleWave!B$14=TRUE,Sheet2!P62,"") -> 0.6522305544 | U62: =IF(TriangleWave!B$16=TRUE,Sheet2!Q62,"") -> 0.6110326197 | V62: =IF(TriangleWave!B$19=TRUE,Sheet2!R62,"") -> 0.6262359944 | W62: =IF(TriangleWave!B$21=TRUE,Sheet2!S62,"") -> 0.6345071114 | AA62: -0.9774319066 | AB62: 0.795 | AC62: 0.684 | AD62: 0.641 | AE62: 0.721 | AF62: =IF(SawtoothWave!B$14=TRUE,Sheet2!AB62,"") -> 0.795 | AG62: =IF(SawtoothWave!B$16=TRUE,Sheet2!AC62,"") -> 0.684 | AH62: =IF(SawtoothWave!B$19=TRUE,Sheet2!AD62,"") -> 0.641 | AI62: =IF(SawtoothWave!B$21=TRUE,Sheet2!AE62,"") -> 0.721
C63: -2.615956529 | D63: 0.1805675257 | E63: -0.03163510143 | F63: -0.09417054547 | G63: -0.04757911737 | H63: =IF(SquareWave!B$14=TRUE,Sheet2!D63,"") -> 0.1805675257 | I63: =IF(SquareWave!$B$16=TRUE,Sheet2!E63,"") ->  | J63: =IF(SquareWave!$B$19=TRUE,Sheet2!F63,"") -> -0.09417054547 | K63: =IF(SquareWave!$B$21=TRUE,Sheet2!G63,"") -> -0.04757911737 | O63: -0.5992217899 | P63: 0.6242971448 | Q63: 0.5880608985 | R63: 0.6042710767 | S63: 0.6125421937 | T63: =IF(TriangleWave!B$14=TRUE,Sheet2!P63,"") -> 0.6242971448 | U63: =IF(TriangleWave!B$16=TRUE,Sheet2!Q63,"") -> 0.5880608985 | V63: =IF(TriangleWave!B$19=TRUE,Sheet2!R63,"") -> 0.6042710767 | W63: =IF(TriangleWave!B$21=TRUE,Sheet2!S63,"") -> 0.6125421937 | AA63: -0.9407782101 | AB63: 0.803 | AC63: 0.710 | AD63: 0.647 | AE63: 0.722 | AF63: =IF(SawtoothWave!B$14=TRUE,Sheet2!AB63,"") -> 0.803 | AG63: =IF(SawtoothWave!B$16=TRUE,Sheet2!AC63,"") -> 0.710 | AH63: =IF(SawtoothWave!B$19=TRUE,Sheet2!AD63,"") -> 0.647 | AI63: =IF(SawtoothWave!B$21=TRUE,Sheet2!AE63,"") -> 0.722
C64: -2.554836049 | D64: 0.1475271665 | E64: -0.06088167656 | F64: -0.08715079232 | G64: -0.01235257616 | H64: =IF(SquareWave!B$14=TRUE,Sheet2!D64,"") -> 0.1475271665 | I64: =IF(SquareWave!$B$16=TRUE,Sheet2!E64,"") ->  | J64: =IF(SquareWave!$B$19=TRUE,Sheet2!F64,"") -> -0.08715079232 | K64: =IF(SquareWave!$B$21=TRUE,Sheet2!G64,"") -> -0.01235257616 | O64: -0.5758754864 | P64: 0.5956953876 | Q64: 0.566168135 | R64: 0.5812294027 | S64: 0.5895005197 | T64: =IF(TriangleWave!B$14=TRUE,Sheet2!P64,"") -> 0.5956953876 | U64: =IF(TriangleWave!B$16=TRUE,Sheet2!Q64,"") -> 0.566168135 | V64: =IF(TriangleWave!B$19=TRUE,Sheet2!R64,"") -> 0.5812294027 | W64: =IF(TriangleWave!B$21=TRUE,Sheet2!S64,"") -> 0.5895005197 | AA64: -0.9041245136 | AB64: 0.809 | AC64: 0.736 | AD64: 0.656 | AE64: 0.721 | AF64: =IF(SawtoothWave!B$14=TRUE,Sheet2!AB64,"") -> 0.809 | AG64: =IF(SawtoothWave!B$16=TRUE,Sheet2!AC64,"") -> 0.736 | AH64: =IF(SawtoothWave!B$19=TRUE,Sheet2!AD64,"") -> 0.656 | AI64: =IF(SawtoothWave!B$21=TRUE,Sheet2!AE64,"") -> 0.721
C65: -2.493715569 | D65: 0.1158031349 | E65: -0.08182453364 | F65: -0.06939300856 | G65: 0.02012777362 | H65: =IF(SquareWave!B$14=TRUE,Sheet2!D65,"") -> 0.1158031349 | I65: =IF(SquareWave!$B$16=TRUE,Sheet2!E65,"") ->  | J65: =IF(SquareWave!$B$19=TRUE,Sheet2!F65,"") -> -0.06939300856 | K65: =IF(SquareWave!$B$21=TRUE,Sheet2!G65,"") -> 0.02012777362 | O65: -0.5525291829 | P65: 0.5665790748 | Q65: 0.5451846148 | R65: 0.5570940461 | S65: 0.5653651632 | T65: =IF(TriangleWave!B$14=TRUE,Sheet2!P65,"") -> 0.5665790748 | U65: =IF(TriangleWave!B$16=TRUE,Sheet2!Q65,"") -> 0.5451846148 | V65: =IF(TriangleWave!B$19=TRUE,Sheet2!R65,"") -> 0.5570940461 | W65: =IF(TriangleWave!B$21=TRUE,Sheet2!S65,"") -> 0.5653651632 | AA65: -0.8674708171 | AB65: 0.814 | AC65: 0.762 | AD65: 0.669 | AE65: 0.718 | AF65: =IF(SawtoothWave!B$14=TRUE,Sheet2!AB65,"") -> 0.814 | AG65: =IF(SawtoothWave!B$16=TRUE,Sheet2!AC65,"") -> 0.762 | AH65: =IF(SawtoothWave!B$19=TRUE,Sheet2!AD65,"") -> 0.669 | AI65: =IF(SawtoothWave!B$21=TRUE,Sheet2!AE65,"") -> 0.718
C66: -2.43259509 | D66: 0.0855139058 | E66: -0.09470666159 | F66: -0.04472650315 | G66: 0.04337851764 | H66: =IF(SquareWave!B$14=TRUE,Sheet2!D66,"") -> 0.0855139058 | I66: =IF(SquareWave!$B$16=TRUE,Sheet2!E66,"") ->  | J66: =IF(SquareWave!$B$19=TRUE,Sheet2!F66,"") -> -0.04472650315 | K66: =IF(SquareWave!$B$21=TRUE,Sheet2!G66,"") -> 0.04337851764 | O66: -0.5291828794 | P66: 0.5371047653 | Q66: 0.524874735 | R66: 0.5320485517 | S66: 0.5403196687 | T66: =IF(TriangleWave!B$14=TRUE,Sheet2!P66,"") -> 0.5371047653 | U66: =IF(TriangleWave!B$16=TRUE,Sheet2!Q66,"") -> 0.524874735 | V66: =IF(TriangleWave!B$19=TRUE,Sheet2!R66,"") -> 0.5320485517 | W66: =IF(TriangleWave!B$21=TRUE,Sheet2!S66,"") -> 0.5403196687 | AA66: -0.8308171206 | AB66: 0.817 | AC66: 0.788 | AD66: 0.686 | AE66: 0.714 | AF66: =IF(SawtoothWave!B$14=TRUE,Sheet2!AB66,"") -> 0.817 | AG66: =IF(SawtoothWave!B$16=TRUE,Sheet2!AC66,"") -> 0.788 | AH66: =IF(SawtoothWave!B$19=TRUE,Sheet2!AD66,"") -> 0.686 | AI66: =IF(SawtoothWave!B$21=TRUE,Sheet2!AE66,"") -> 0.714
C67: -2.37147461 | D67: 0.0567725958 | E67: -0.09999855727 | F67: -0.01710133843 | G67: 0.05370481942 | H67: =IF(SquareWave!B$14=TRUE,Sheet2!D67,"") -> 0.0567725958 | I67: =IF(SquareWave!$B$16=TRUE,Sheet2!E67,"") ->  | J67: =IF(SquareWave!$B$19=TRUE,Sheet2!F67,"") -> -0.01710133843 | K67: =IF(SquareWave!$B$21=TRUE,Sheet2!G67,"") -> 0.05370481942 | O67: -0.5058365759 | P67: 0.5074309428 | Q67: 0.5049550721 | R67: 0.5064392627 | S67: 0.5147103798 | T67: =IF(TriangleWave!B$14=TRUE,Sheet2!P67,"") -> 0.5074309428 | U67: =IF(TriangleWave!B$16=TRUE,Sheet2!Q67,"") -> 0.5049550721 | V67: =IF(TriangleWave!B$19=TRUE,Sheet2!R67,"") -> 0.5064392627 | W67: =IF(TriangleWave!B$21=TRUE,Sheet2!S67,"") -> 0.5147103798 | AA67: -0.7941634241 | AB67: 0.818 | AC67: 0.812 | AD67: 0.706 | AE67: 0.712 | AF67: =IF(SawtoothWave!B$14=TRUE,Sheet2!AB67,"") -> 0.818 | AG67: =IF(SawtoothWave!B$16=TRUE,Sheet2!AC67,"") -> 0.812 | AH67: =IF(SawtoothWave!B$19=TRUE,Sheet2!AD67,"") -> 0.706 | AI67: =IF(SawtoothWave!B$21=TRUE,Sheet2!AE67,"") -> 0.712
C68: =C67+dx -> -2.31035413 | D68: =0.5+2/PI()*SIN(C68) -> 0.02968654079 | E68: =D68+2/3/PI()*SIN(3*C68) -> -0.0983790809 | F68: =E68+2/5/PI()*SIN(5*C68) -> 0.009753259539 | G68: =F68+2/7/PI()*SIN(7*C68) -> 0.05049599934 | H68: =IF(SquareWave!B$14=TRUE,Sheet2!D68,"") -> 0.02968654079 | I68: =IF(SquareWave!$B$16=TRUE,Sheet2!E68,"") ->  | J68: =IF(SquareWave!$B$19=TRUE,Sheet2!F68,"") -> 0.009753259539 | K68: =IF(SquareWave!$B$21=TRUE,Sheet2!G68,"") -> 0.05049599934 | O68: =O67+dxx -> -0.4824902724 | P68: =0.5 -4/PI()^2*(COS(PI()*O68)) -> 0.477717164 | Q68: =0.5 -4/PI()^2*(COS(PI()*$O68)) - 4/9/PI()^2*COS(3*PI()*$O68) -> 0.485114839 | R68: =0.5-4/PI()^2*(COS(PI()*$O68))-4/9/PI()^2*COS(3*PI()*$O68)-4/25/PI()^2*COS(5*PI()*$O68) -> 0.4807120281 | S68: =0.5-4/PI()^2*(COS(PI()*$O68))-4/9/PI()^2*COS(3*PI()*$O68)-4/25/PI()^2*COS(5*PI()*$O68)-4/49/PI()^2*COS(7*PI()*3) -> 0.4889831452 | T68: =IF(TriangleWave!B$14=TRUE,Sheet2!P68,"") -> 0.477717164 | U68: =IF(TriangleWave!B$16=TRUE,Sheet2!Q68,"") -> 0.485114839 | V68: =IF(TriangleWave!B$19=TRUE,Sheet2!R68,"") -> 0.4807120281 | W68: =IF(TriangleWave!B$21=TRUE,Sheet2!S68,"") -> 0.4889831452 | AA68: =AA67+dxxx -> -0.7575097276 | AB68: =0.5 -(SIN(PI()*$O68))/PI() -> 0.818 | AC68: =0.5-(SIN(PI()*$O68)+SIN(2*PI()*$O68)/2)/PI() -> 0.835 | AD68: =0.5-(SIN(PI()*$O68)+SIN(2*PI()*$O68)/2 + SIN(3*PI()*$O68)/3 )/PI() -> 0.731 | AE68: =0.5-(SIN(PI()*$O68)+SIN(2*PI()*$O68)/2 + SIN(3*PI()*$O68)/3 + SIN(4*PI()*O68)/4)/PI() -> 0.713 | AF68: =IF(SawtoothWave!B$14=TRUE,Sheet2!AB68,"") -> 0.818 | AG68: =IF(SawtoothWave!B$16=TRUE,Sheet2!AC68,"") -> 0.835 | AH68: =IF(SawtoothWave!B$19=TRUE,Sheet2!AD68,"") -> 0.731 | AI68: =IF(SawtoothWave!B$21=TRUE,Sheet2!AE68,"") -> 0.713
C69: -2.249233651 | D69: 0.00435689502 | E69: -0.09070949785 | F69: 0.03263753125 | G69: 0.03597196995 | H69: =IF(SquareWave!B$14=TRUE,Sheet2!D69,"") -> 0.00435689502 | I69: =IF(SquareWave!$B$16=TRUE,Sheet2!E69,"") ->  | J69: =IF(SquareWave!$B$19=TRUE,Sheet2!F69,"") -> 0.03263753125 | K69: =IF(SquareWave!$B$21=TRUE,Sheet2!G69,"") -> 0.03597196995 | O69: -0.4591439689 | P69: 0.4481232005 | Q69: 0.4650377065 | R69: 0.4553334028 | S69: 0.4636045199 | T69: =IF(TriangleWave!B$14=TRUE,Sheet2!P69,"") -> 0.4481232005 | U69: =IF(TriangleWave!B$16=TRUE,Sheet2!Q69,"") -> 0.4650377065 | V69: =IF(TriangleWave!B$19=TRUE,Sheet2!R69,"") -> 0.4553334028 | W69: =IF(TriangleWave!B$21=TRUE,Sheet2!S69,"") -> 0.4636045199 | AA69: -0.7208560311 | AB69: 0.816 | AC69: 0.856 | AD69: 0.758 | AE69: 0.719 | AF69: =IF(SawtoothWave!B$14=TRUE,Sheet2!AB69,"") -> 0.816 | AG69: =IF(SawtoothWave!B$16=TRUE,Sheet2!AC69,"") -> 0.856 | AH69: =IF(SawtoothWave!B$19=TRUE,Sheet2!AD69,"") -> 0.758 | AI69: =IF(SawtoothWave!B$21=TRUE,Sheet2!AE69,"") -> 0.719
C70: -2.188113171 | D70: -0.01912174669 | E70: -0.0780015891 | F70: 0.04912977741 | G70: 0.01445480026 | H70: =IF(SquareWave!B$14=TRUE,Sheet2!D70,"") -> -0.01912174669 | I70: =IF(SquareWave!$B$16=TRUE,Sheet2!E70,"") ->  | J70: =IF(SquareWave!$B$19=TRUE,Sheet2!F70,"") -> 0.04912977741 | K70: =IF(SquareWave!$B$21=TRUE,Sheet2!G70,"") -> 0.01445480026 | O70: -0.4357976654 | P70: 0.4188081792 | Q70: 0.4444239018 | R70: 0.4307086343 | S70: 0.4389797513 | T70: =IF(TriangleWave!B$14=TRUE,Sheet2!P70,"") -> 0.4188081792 | U70: =IF(TriangleWave!B$16=TRUE,Sheet2!Q70,"") -> 0.4444239018 | V70: =IF(TriangleWave!B$19=TRUE,Sheet2!R70,"") -> 0.4307086343 | W70: =IF(TriangleWave!B$21=TRUE,Sheet2!S70,"") -> 0.4389797513 | AA70: -0.6842023346 | AB70: 0.812 | AC70: 0.874 | AD70: 0.787 | AE70: 0.730 | AF70: =IF(SawtoothWave!B$14=TRUE,Sheet2!AB70,"") -> 0.812 | AG70: =IF(SawtoothWave!B$16=TRUE,Sheet2!AC70,"") -> 0.874 | AH70: =IF(SawtoothWave!B$19=TRUE,Sheet2!AD70,"") -> 0.787 | AI70: =IF(SawtoothWave!B$21=TRUE,Sheet2!AE70,"") -> 0.730
C71: -2.126992692 | D71: -0.04066170217 | E71: -0.06138091063 | F71: 0.05775375419 | G71: -0.008679619548 | H71: =IF(SquareWave!B$14=TRUE,Sheet2!D71,"") -> -0.04066170217 | I71: =IF(SquareWave!$B$16=TRUE,Sheet2!E71,"") ->  | J71: =IF(SquareWave!$B$19=TRUE,Sheet2!F71,"") -> 0.05775375419 | K71: =IF(SquareWave!$B$21=TRUE,Sheet2!G71,"") -> -0.008679619548 | O71: -0.4124513619 | P71: 0.3899297277 | Q71: 0.4230114813 | R71: 0.4071091775 | S71: 0.4153802946 | T71: =IF(TriangleWave!B$14=TRUE,Sheet2!P71,"") -> 0.3899297277 | U71: =IF(TriangleWave!B$16=TRUE,Sheet2!Q71,"") -> 0.4230114813 | V71: =IF(TriangleWave!B$19=TRUE,Sheet2!R71,"") -> 0.4071091775 | W71: =IF(TriangleWave!B$21=TRUE,Sheet2!S71,"") -> 0.4153802946 | AA71: -0.6475486381 | AB71: 0.806 | AC71: 0.890 | AD71: 0.818 | AE71: 0.747 | AF71: =IF(SawtoothWave!B$14=TRUE,Sheet2!AB71,"") -> 0.806 | AG71: =IF(SawtoothWave!B$16=TRUE,Sheet2!AC71,"") -> 0.890 | AH71: =IF(SawtoothWave!B$19=TRUE,Sheet2!AD71,"") -> 0.818 | AI71: =IF(SawtoothWave!B$21=TRUE,Sheet2!AE71,"") -> 0.747
C72: -2.065872212 | D72: -0.06018252938 | E72: -0.0420464443 | F72: 0.05805151993 | G72: -0.02816399738 | H72: =IF(SquareWave!B$14=TRUE,Sheet2!D72,"") -> -0.06018252938 | I72: =IF(SquareWave!$B$16=TRUE,Sheet2!E72,"") ->  | J72: =IF(SquareWave!$B$19=TRUE,Sheet2!F72,"") -> 0.05805151993 | K72: =IF(SquareWave!$B$21=TRUE,Sheet2!G72,"") -> -0.02816399738 | O72: -0.3891050584 | P72: 0.3616431257 | Q72: 0.400595714 | R72: 0.3846211453 | S72: 0.3928922623 | T72: =IF(TriangleWave!B$14=TRUE,Sheet2!P72,"") -> 0.3616431257 | U72: =IF(TriangleWave!B$16=TRUE,Sheet2!Q72,"") -> 0.400595714 | V72: =IF(TriangleWave!B$19=TRUE,Sheet2!R72,"") -> 0.3846211453 | W72: =IF(TriangleWave!B$21=TRUE,Sheet2!S72,"") -> 0.3928922623 | AA72: -0.6108949416 | AB72: 0.799 | AC72: 0.901 | AD72: 0.848 | AE72: 0.770 | AF72: =IF(SawtoothWave!B$14=TRUE,Sheet2!AB72,"") -> 0.799 | AG72: =IF(SawtoothWave!B$16=TRUE,Sheet2!AC72,"") -> 0.901 | AH72: =IF(SawtoothWave!B$19=TRUE,Sheet2!AD72,"") -> 0.848 | AI72: =IF(SawtoothWave!B$21=TRUE,Sheet2!AE72,"") -> 0.770
C73: -2.004751732 | D73: -0.0776113268 | E73: -0.02122800256 | F73: 0.0505573596 | G73: -0.03989782932 | H73: =IF(SquareWave!B$14=TRUE,Sheet2!D73,"") -> -0.0776113268 | I73: =IF(SquareWave!$B$16=TRUE,Sheet2!E73,"") ->  | J73: =IF(SquareWave!$B$19=TRUE,Sheet2!F73,"") -> 0.0505573596 | K73: =IF(SquareWave!$B$21=TRUE,Sheet2!G73,"") -> -0.03989782932 | O73: -0.3657587549 | P73: 0.3341004709 | Q73: 0.3770456069 | R73: 0.3631231546 | S73: 0.3713942716 | T73: =IF(TriangleWave!B$14=TRUE,Sheet2!P73,"") -> 0.3341004709 | U73: =IF(TriangleWave!B$16=TRUE,Sheet2!Q73,"") -> 0.3770456069 | V73: =IF(TriangleWave!B$19=TRUE,Sheet2!R73,"") -> 0.3631231546 | W73: =IF(TriangleWave!B$21=TRUE,Sheet2!S73,"") -> 0.3713942716 | AA73: -0.5742412451 | AB73: 0.790 | AC73: 0.909 | AD73: 0.877 | AE73: 0.798 | AF73: =IF(SawtoothWave!B$14=TRUE,Sheet2!AB73,"") -> 0.790 | AG73: =IF(SawtoothWave!B$16=TRUE,Sheet2!AC73,"") -> 0.909 | AH73: =IF(SawtoothWave!B$19=TRUE,Sheet2!AD73,"") -> 0.877 | AI73: =IF(SawtoothWave!B$21=TRUE,Sheet2!AE73,"") -> 0.798
C74: -1.943631253 | D74: -0.09288300571 | E74: -0.0001428242352 | F74: 0.03667771318 | G74: -0.04171037009 | H74: =IF(SquareWave!B$14=TRUE,Sheet2!D74,"") -> -0.09288300571 | I74: =IF(SquareWave!$B$16=TRUE,Sheet2!E74,"") ->  | J74: =IF(SquareWave!$B$19=TRUE,Sheet2!F74,"") -> 0.03667771318 | K74: =IF(SquareWave!$B$21=TRUE,Sheet2!G74,"") -> -0.04171037009 | O74: -0.3424124514 | P74: 0.3074498604 | Q74: 0.3523167373 | R74: 0.3422978817 | S74: 0.3505689987 | T74: =IF(TriangleWave!B$14=TRUE,Sheet2!P74,"") -> 0.3074498604 | U74: =IF(TriangleWave!B$16=TRUE,Sheet2!Q74,"") -> 0.3523167373 | V74: =IF(TriangleWave!B$19=TRUE,Sheet2!R74,"") -> 0.3422978817 | W74: =IF(TriangleWave!B$21=TRUE,Sheet2!S74,"") -> 0.3505689987 | AA74: -0.5375875486 | AB74: 0.780 | AC74: 0.913 | AD74: 0.904 | AE74: 0.831 | AF74: =IF(SawtoothWave!B$14=TRUE,Sheet2!AB74,"") -> 0.780 | AG74: =IF(SawtoothWave!B$16=TRUE,Sheet2!AC74,"") -> 0.913 | AH74: =IF(SawtoothWave!B$19=TRUE,Sheet2!AD74,"") -> 0.904 | AI74: =IF(SawtoothWave!B$21=TRUE,Sheet2!AE74,"") -> 0.831
C75: -1.882510773 | D75: -0.1059405333 | E75: 0.02004717545 | F75: 0.01849079398 | G75: -0.03369879959 | H75: =IF(SquareWave!B$14=TRUE,Sheet2!D75,"") -> -0.1059405333 | I75: =IF(SquareWave!$B$16=TRUE,Sheet2!E75,"") ->  | J75: =IF(SquareWave!$B$19=TRUE,Sheet2!F75,"") -> 0.01849079398 | K75: =IF(SquareWave!$B$21=TRUE,Sheet2!G75,"") -> -0.03369879959 | O75: -0.3190661479 | P75: 0.281834595 | Q75: 0.32645974 | R75: 0.3216768406 | S75: 0.3299479576 | T75: =IF(TriangleWave!B$14=TRUE,Sheet2!P75,"") -> 0.281834595 | U75: =IF(TriangleWave!B$16=TRUE,Sheet2!Q75,"") -> 0.32645974 | V75: =IF(TriangleWave!B$19=TRUE,Sheet2!R75,"") -> 0.3216768406 | W75: =IF(TriangleWave!B$21=TRUE,Sheet2!S75,"") -> 0.3299479576 | AA75: -0.5009338521 | AB75: 0.768 | AC75: 0.913 | AD75: 0.927 | AE75: 0.866 | AF75: =IF(SawtoothWave!B$14=TRUE,Sheet2!AB75,"") -> 0.768 | AG75: =IF(SawtoothWave!B$16=TRUE,Sheet2!AC75,"") -> 0.913 | AH75: =IF(SawtoothWave!B$19=TRUE,Sheet2!AD75,"") -> 0.927 | AI75: =IF(SawtoothWave!B$21=TRUE,Sheet2!AE75,"") -> 0.866
C76: -1.821390293 | D76: -0.1167351455 | E76: 0.0382760599 | F76: -0.001513013346 | G76: -0.01809565664 | H76: =IF(SquareWave!B$14=TRUE,Sheet2!D76,"") -> -0.1167351455 | I76: =IF(SquareWave!$B$16=TRUE,Sheet2!E76,"") ->  | J76: =IF(SquareWave!$B$19=TRUE,Sheet2!F76,"") -> -0.001513013346 | K76: =IF(SquareWave!$B$21=TRUE,Sheet2!G76,"") -> -0.01809565664 | O76: -0.2957198444 | P76: 0.2573924084 | Q76: 0.2996240049 | R76: 0.3007131167 | S76: 0.3089842337 | T76: =IF(TriangleWave!B$14=TRUE,Sheet2!P76,"") -> 0.2573924084 | U76: =IF(TriangleWave!B$16=TRUE,Sheet2!Q76,"") -> 0.2996240049 | V76: =IF(TriangleWave!B$19=TRUE,Sheet2!R76,"") -> 0.3007131167 | W76: =IF(TriangleWave!B$21=TRUE,Sheet2!S76,"") -> 0.3089842337 | AA76: -0.4642801556 | AB76: 0.755 | AC76: 0.908 | AD76: 0.944 | AE76: 0.901 | AF76: =IF(SawtoothWave!B$14=TRUE,Sheet2!AB76,"") -> 0.755 | AG76: =IF(SawtoothWave!B$16=TRUE,Sheet2!AC76,"") -> 0.908 | AH76: =IF(SawtoothWave!B$19=TRUE,Sheet2!AD76,"") -> 0.944 | AI76: =IF(SawtoothWave!B$21=TRUE,Sheet2!AE76,"") -> 0.901
C77: -1.760269814 | D77: -0.1252265293 | E77: 0.05361106199 | F77: -0.02072351991 | G77: 0.001290217239 | H77: =IF(SquareWave!B$14=TRUE,Sheet2!D77,"") -> -0.1252265293 | I77: =IF(SquareWave!$B$16=TRUE,Sheet2!E77,"") ->  | J77: =IF(SquareWave!$B$19=TRUE,Sheet2!F77,"") -> -0.02072351991 | K77: =IF(SquareWave!$B$21=TRUE,Sheet2!G77,"") -> 0.001290217239 | O77: -0.2723735409 | P77: 0.2342547266 | Q77: 0.2720563745 | R77: 0.2788726617 | S77: 0.2871437787 | T77: =IF(TriangleWave!B$14=TRUE,Sheet2!P77,"") -> 0.2342547266 | U77: =IF(TriangleWave!B$16=TRUE,Sheet2!Q77,"") -> 0.2720563745 | V77: =IF(TriangleWave!B$19=TRUE,Sheet2!R77,"") -> 0.2788726617 | W77: =IF(TriangleWave!B$21=TRUE,Sheet2!S77,"") -> 0.2871437787 | AA77: -0.4276264591 | AB77: 0.740 | AC77: 0.898 | AD77: 0.956 | AE77: 0.933 | AF77: =IF(SawtoothWave!B$14=TRUE,Sheet2!AB77,"") -> 0.740 | AG77: =IF(SawtoothWave!B$16=TRUE,Sheet2!AC77,"") -> 0.898 | AH77: =IF(SawtoothWave!B$19=TRUE,Sheet2!AD77,"") -> 0.956 | AI77: =IF(SawtoothWave!B$21=TRUE,Sheet2!AE77,"") -> 0.933
C78: -1.699149334 | D78: -0.1313829733 | E78: 0.0652850583 | F78: -0.03670657789 | G78: 0.019935021 | H78: =IF(SquareWave!B$14=TRUE,Sheet2!D78,"") -> -0.1313829733 | I78: =IF(SquareWave!$B$16=TRUE,Sheet2!E78,"") ->  | J78: =IF(SquareWave!$B$19=TRUE,Sheet2!F78,"") -> -0.03670657789 | K78: =IF(SquareWave!$B$21=TRUE,Sheet2!G78,"") -> 0.019935021 | O78: -0.2490272374 | P78: 0.2125459614 | Q78: 0.2440948719 | R78: 0.2557318691 | S78: 0.2640029861 | T78: =IF(TriangleWave!B$14=TRUE,Sheet2!P78,"") -> 0.2125459614 | U78: =IF(TriangleWave!B$16=TRUE,Sheet2!Q78,"") -> 0.2440948719 | V78: =IF(TriangleWave!B$19=TRUE,Sheet2!R78,"") -> 0.2557318691 | W78: =IF(TriangleWave!B$21=TRUE,Sheet2!S78,"") -> 0.2640029861 | AA78: -0.3909727626 | AB78: 0.724 | AC78: 0.884 | AD78: 0.959 | AE78: 0.960 | AF78: =IF(SawtoothWave!B$14=TRUE,Sheet2!AB78,"") -> 0.724 | AG78: =IF(SawtoothWave!B$16=TRUE,Sheet2!AC78,"") -> 0.884 | AH78: =IF(SawtoothWave!B$19=TRUE,Sheet2!AD78,"") -> 0.959 | AI78: =IF(SawtoothWave!B$21=TRUE,Sheet2!AE78,"") -> 0.960
C79: -1.638028854 | D79: -0.1351814859 | E79: 0.07272323344 | F79: -0.04747407232 | G79: 0.03358434406 | H79: =IF(SquareWave!B$14=TRUE,Sheet2!D79,"") -> -0.1351814859 | I79: =IF(SquareWave!$B$16=TRUE,Sheet2!E79,"") ->  | J79: =IF(SquareWave!$B$19=TRUE,Sheet2!F79,"") -> -0.04747407232 | K79: =IF(SquareWave!$B$21=TRUE,Sheet2!G79,"") -> 0.03358434406 | O79: -0.2256809339 | P79: 0.192382841 | Q79: 0.2161577313 | R79: 0.2310678899 | S79: 0.239339007 | T79: =IF(TriangleWave!B$14=TRUE,Sheet2!P79,"") -> 0.192382841 | U79: =IF(TriangleWave!B$16=TRUE,Sheet2!Q79,"") -> 0.2161577313 | V79: =IF(TriangleWave!B$19=TRUE,Sheet2!R79,"") -> 0.2310678899 | W79: =IF(TriangleWave!B$21=TRUE,Sheet2!S79,"") -> 0.239339007 | AA79: -0.3543190661 | AB79: 0.707 | AC79: 0.865 | AD79: 0.955 | AE79: 0.979 | AF79: =IF(SawtoothWave!B$14=TRUE,Sheet2!AB79,"") -> 0.707 | AG79: =IF(SawtoothWave!B$16=TRUE,Sheet2!AC79,"") -> 0.865 | AH79: =IF(SawtoothWave!B$19=TRUE,Sheet2!AD79,"") -> 0.955 | AI79: =IF(SawtoothWave!B$21=TRUE,Sheet2!AE79,"") -> 0.979
C80: -1.576908375 | D80: -0.1366078813 | E80: 0.0755630371 | F80: -0.05170146628 | G80: 0.03916099017 | H80: =IF(SquareWave!B$14=TRUE,Sheet2!D80,"") -> -0.1366078813 | I80: =IF(SquareWave!$B$16=TRUE,Sheet2!E80,"") ->  | J80: =IF(SquareWave!$B$19=TRUE,Sheet2!F80,"") -> -0.05170146628 | K80: =IF(SquareWave!$B$21=TRUE,Sheet2!G80,"") -> 0.03916099017 | O80: -0.2023346304 | P80: 0.1738737829 | Q80: 0.1887282319 | R80: 0.2049287215 | S80: 0.2131998386 | T80: =IF(TriangleWave!B$14=TRUE,Sheet2!P80,"") -> 0.1738737829 | U80: =IF(TriangleWave!B$16=TRUE,Sheet2!Q80,"") -> 0.1887282319 | V80: =IF(TriangleWave!B$19=TRUE,Sheet2!R80,"") -> 0.2049287215 | W80: =IF(TriangleWave!B$21=TRUE,Sheet2!S80,"") -> 0.2131998386 | AA80: -0.3176653696 | AB80: 0.689 | AC80: 0.841 | AD80: 0.941 | AE80: 0.986 | AF80: =IF(SawtoothWave!B$14=TRUE,Sheet2!AB80,"") -> 0.689 | AG80: =IF(SawtoothWave!B$16=TRUE,Sheet2!AC80,"") -> 0.841 | AH80: =IF(SawtoothWave!B$19=TRUE,Sheet2!AD80,"") -> 0.941 | AI80: =IF(SawtoothWave!B$21=TRUE,Sheet2!AE80,"") -> 0.986
C81: -1.515787895 | D81: -0.1356568326 | E81: 0.07366676198 | F81: -0.04887156236 | G81: 0.0354147369 | H81: =IF(SquareWave!B$14=TRUE,Sheet2!D81,"") -> -0.1356568326 | I81: =IF(SquareWave!$B$16=TRUE,Sheet2!E81,"") ->  | J81: =IF(SquareWave!$B$19=TRUE,Sheet2!F81,"") -> -0.04887156236 | K81: =IF(SquareWave!$B$21=TRUE,Sheet2!G81,"") -> 0.0354147369 | O81: -0.1789883268 | P81: 0.1571183106 | Q81: 0.1623360395 | R81: 0.1776724345 | S81: 0.1859435515 | T81: =IF(TriangleWave!B$14=TRUE,Sheet2!P81,"") -> 0.1571183106 | U81: =IF(TriangleWave!B$16=TRUE,Sheet2!Q81,"") -> 0.1623360395 | V81: =IF(TriangleWave!B$19=TRUE,Sheet2!R81,"") -> 0.1776724345 | W81: =IF(TriangleWave!B$21=TRUE,Sheet2!S81,"") -> 0.1859435515 | AA81: -0.2810116732 | AB81: 0.670 | AC81: 0.813 | AD81: 0.919 | AE81: 0.981 | AF81: =IF(SawtoothWave!B$14=TRUE,Sheet2!AB81,"") -> 0.670 | AG81: =IF(SawtoothWave!B$16=TRUE,Sheet2!AC81,"") -> 0.813 | AH81: =IF(SawtoothWave!B$19=TRUE,Sheet2!AD81,"") -> 0.919 | AI81: =IF(SawtoothWave!B$21=TRUE,Sheet2!AE81,"") -> 0.981
C82: -1.454667415 | D82: -0.1323318915 | E82: 0.0671263195 | F82: -0.03933041579 | G82: 0.02318504341 | H82: =IF(SquareWave!B$14=TRUE,Sheet2!D82,"") -> -0.1323318915 | I82: =IF(SquareWave!$B$16=TRUE,Sheet2!E82,"") ->  | J82: =IF(SquareWave!$B$19=TRUE,Sheet2!F82,"") -> -0.03933041579 | K82: =IF(SquareWave!$B$21=TRUE,Sheet2!G82,"") -> 0.02318504341 | O82: -0.1556420233 | P82: 0.1422065185 | Q82: 0.1375359293 | R82: 0.149968716 | S82: 0.158239833 | T82: =IF(TriangleWave!B$14=TRUE,Sheet2!P82,"") -> 0.1422065185 | U82: =IF(TriangleWave!B$16=TRUE,Sheet2!Q82,"") -> 0.1375359293 | V82: =IF(TriangleWave!B$19=TRUE,Sheet2!R82,"") -> 0.149968716 | W82: =IF(TriangleWave!B$21=TRUE,Sheet2!S82,"") -> 0.158239833 | AA82: -0.2443579767 | AB82: 0.650 | AC82: 0.782 | AD82: 0.887 | AE82: 0.961 | AF82: =IF(SawtoothWave!B$14=TRUE,Sheet2!AB82,"") -> 0.650 | AG82: =IF(SawtoothWave!B$16=TRUE,Sheet2!AC82,"") -> 0.782 | AH82: =IF(SawtoothWave!B$19=TRUE,Sheet2!AD82,"") -> 0.887 | AI82: =IF(SawtoothWave!B$21=TRUE,Sheet2!AE82,"") -> 0.961
C83: -1.393546936 | D83: -0.1266454753 | E83: 0.05626005238 | F83: -0.02424993629 | G83: 0.005224730505 | H83: =IF(SquareWave!B$14=TRUE,Sheet2!D83,"") -> -0.1266454753 | I83: =IF(SquareWave!$B$16=TRUE,Sheet2!E83,"") ->  | J83: =IF(SquareWave!$B$19=TRUE,Sheet2!F83,"") -> -0.02424993629 | K83: =IF(SquareWave!$B$21=TRUE,Sheet2!G83,"") -> 0.005224730505 | O83: -0.1322957198 | P83: 0.1292185876 | Q83: 0.1148848952 | R83: 0.1227606969 | S83: 0.1310318139 | T83: =IF(TriangleWave!B$14=TRUE,Sheet2!P83,"") -> 0.1292185876 | U83: =IF(TriangleWave!B$16=TRUE,Sheet2!Q83,"") -> 0.1148848952 | V83: =IF(TriangleWave!B$19=TRUE,Sheet2!R83,"") -> 0.1227606969 | W83: =IF(TriangleWave!B$21=TRUE,Sheet2!S83,"") -> 0.1310318139 | AA83: -0.2077042802 | AB83: 0.629 | AC83: 0.746 | AD83: 0.847 | AE83: 0.926 | AF83: =IF(SawtoothWave!B$14=TRUE,Sheet2!AB83,"") -> 0.629 | AG83: =IF(SawtoothWave!B$16=TRUE,Sheet2!AC83,"") -> 0.746 | AH83: =IF(SawtoothWave!B$19=TRUE,Sheet2!AD83,"") -> 0.847 | AI83: =IF(SawtoothWave!B$21=TRUE,Sheet2!AE83,"") -> 0.926
C84: -1.332426456 | D84: -0.11861882 | E84: 0.04160169159 | F84: -0.005500832065 | G84: -0.01438049283 | H84: =IF(SquareWave!B$14=TRUE,Sheet2!D84,"") -> -0.11861882 | I84: =IF(SquareWave!$B$16=TRUE,Sheet2!E84,"") ->  | J84: =IF(SquareWave!$B$19=TRUE,Sheet2!F84,"") -> -0.005500832065 | K84: =IF(SquareWave!$B$21=TRUE,Sheet2!G84,"") -> -0.01438049283 | O84: -0.1089494163 | P84: 0.1182243541 | Q84: 0.09491872671 | R84: 0.09719017821 | S84: 0.1054612952 | T84: =IF(TriangleWave!B$14=TRUE,Sheet2!P84,"") -> 0.1182243541 | U84: =IF(TriangleWave!B$16=TRUE,Sheet2!Q84,"") -> 0.09491872671 | V84: =IF(TriangleWave!B$19=TRUE,Sheet2!R84,"") -> 0.09719017821 | W84: =IF(TriangleWave!B$21=TRUE,Sheet2!S84,"") -> 0.1054612952 | AA84: -0.1710505837 | AB84: 0.607 | AC84: 0.707 | AD84: 0.798 | AE84: 0.876 | AF84: =IF(SawtoothWave!B$14=TRUE,Sheet2!AB84,"") -> 0.607 | AG84: =IF(SawtoothWave!B$16=TRUE,Sheet2!AC84,"") -> 0.707 | AH84: =IF(SawtoothWave!B$19=TRUE,Sheet2!AD84,"") -> 0.798 | AI84: =IF(SawtoothWave!B$21=TRUE,Sheet2!AE84,"") -> 0.876
C85: -1.271305977 | D85: -0.1082819017 | E85: 0.02388182904 | F85: 0.01455167803 | G85: -0.03108153259 | H85: =IF(SquareWave!B$14=TRUE,Sheet2!D85,"") -> -0.1082819017 | I85: =IF(SquareWave!$B$16=TRUE,Sheet2!E85,"") ->  | J85: =IF(SquareWave!$B$19=TRUE,Sheet2!F85,"") -> 0.01455167803 | K85: =IF(SquareWave!$B$21=TRUE,Sheet2!G85,"") -> -0.03108153259 | O85: -0.08560311284 | P85: 0.1092829343 | Q85: 0.07812916508 | R85: 0.07449419694 | S85: 0.08276531397 | T85: =IF(TriangleWave!B$14=TRUE,Sheet2!P85,"") -> 0.1092829343 | U85: =IF(TriangleWave!B$16=TRUE,Sheet2!Q85,"") -> 0.07812916508 | V85: =IF(TriangleWave!B$19=TRUE,Sheet2!R85,"") -> 0.07449419694 | W85: =IF(TriangleWave!B$21=TRUE,Sheet2!S85,"") -> 0.08276531397 | AA85: -0.1343968872 | AB85: 0.585 | AC85: 0.666 | AD85: 0.743 | AE85: 0.813 | AF85: =IF(SawtoothWave!B$14=TRUE,Sheet2!AB85,"") -> 0.585 | AG85: =IF(SawtoothWave!B$16=TRUE,Sheet2!AC85,"") -> 0.666 | AH85: =IF(SawtoothWave!B$19=TRUE,Sheet2!AD85,"") -> 0.743 | AI85: =IF(SawtoothWave!B$21=TRUE,Sheet2!AE85,"") -> 0.813
C86: -1.210185497 | D86: -0.0956733241 | E86: 0.004002529722 | F86: 0.03330935998 | G86: -0.04085088955 | H86: =IF(SquareWave!B$14=TRUE,Sheet2!D86,"") -> -0.0956733241 | I86: =IF(SquareWave!$B$16=TRUE,Sheet2!E86,"") ->  | J86: =IF(SquareWave!$B$19=TRUE,Sheet2!F86,"") -> 0.03330935998 | K86: =IF(SquareWave!$B$21=TRUE,Sheet2!G86,"") -> -0.04085088955 | O86: -0.06225680934 | P86: 0.1024424062 | Q86: 0.06494272446 | R86: 0.05588473368 | S86: 0.06415585072 | T86: =IF(TriangleWave!B$14=TRUE,Sheet2!P86,"") -> 0.1024424062 | U86: =IF(TriangleWave!B$16=TRUE,Sheet2!Q86,"") -> 0.06494272446 | V86: =IF(TriangleWave!B$19=TRUE,Sheet2!R86,"") -> 0.05588473368 | W86: =IF(TriangleWave!B$21=TRUE,Sheet2!S86,"") -> 0.06415585072 | AA86: -0.09774319066 | AB86: 0.562 | AC86: 0.623 | AD86: 0.681 | AE86: 0.737 | AF86: =IF(SawtoothWave!B$14=TRUE,Sheet2!AB86,"") -> 0.562 | AG86: =IF(SawtoothWave!B$16=TRUE,Sheet2!AC86,"") -> 0.623 | AH86: =IF(SawtoothWave!B$19=TRUE,Sheet2!AD86,"") -> 0.681 | AI86: =IF(SawtoothWave!B$21=TRUE,Sheet2!AE86,"") -> 0.737
C87: -1.149065017 | D87: -0.08084017456 | E87: -0.01699406218 | F87: 0.04823393716 | G87: -0.04108413846 | H87: =IF(SquareWave!B$14=TRUE,Sheet2!D87,"") -> -0.08084017456 | I87: =IF(SquareWave!$B$16=TRUE,Sheet2!E87,"") ->  | J87: =IF(SquareWave!$B$19=TRUE,Sheet2!F87,"") -> 0.04823393716 | K87: =IF(SquareWave!$B$21=TRUE,Sheet2!G87,"") -> -0.04108413846 | O87: -0.03891050584 | P87: 0.09773955159 | Q87: 0.05570218528 | R87: 0.04242575066 | S87: 0.05069686769 | T87: =IF(TriangleWave!B$14=TRUE,Sheet2!P87,"") -> 0.09773955159 | U87: =IF(TriangleWave!B$16=TRUE,Sheet2!Q87,"") -> 0.05570218528 | V87: =IF(TriangleWave!B$19=TRUE,Sheet2!R87,"") -> 0.04242575066 | W87: =IF(TriangleWave!B$21=TRUE,Sheet2!S87,"") -> 0.05069686769 | AA87: -0.06108949416 | AB87: 0.539 | AC87: 0.577 | AD87: 0.615 | AE87: 0.653 | AF87: =IF(SawtoothWave!B$14=TRUE,Sheet2!AB87,"") -> 0.539 | AG87: =IF(SawtoothWave!B$16=TRUE,Sheet2!AC87,"") -> 0.577 | AH87: =IF(SawtoothWave!B$19=TRUE,Sheet2!AD87,"") -> 0.615 | AI87: =IF(SawtoothWave!B$21=TRUE,Sheet2!AE87,"") -> 0.653
C88: -1.087944538 | D88: -0.06383784821 | E88: -0.03796206651 | F88: 0.05714253847 | G88: -0.03123157867 | H88: =IF(SquareWave!B$14=TRUE,Sheet2!D88,"") -> -0.06383784821 | I88: =IF(SquareWave!$B$16=TRUE,Sheet2!E88,"") ->  | J88: =IF(SquareWave!$B$19=TRUE,Sheet2!F88,"") -> 0.05714253847 | K88: =IF(SquareWave!$B$21=TRUE,Sheet2!G88,"") -> -0.03123157867 | O88: -0.01556420233 | P88: 0.0951996577 | Q88: 0.05065164118 | R88: 0.03492233217 | S88: 0.0431934492 | T88: =IF(TriangleWave!B$14=TRUE,Sheet2!P88,"") -> 0.0951996577 | U88: =IF(TriangleWave!B$16=TRUE,Sheet2!Q88,"") -> 0.05065164118 | V88: =IF(TriangleWave!B$19=TRUE,Sheet2!R88,"") -> 0.03492233217 | W88: =IF(TriangleWave!B$21=TRUE,Sheet2!S88,"") -> 0.0431934492 | AA88: -0.02443579767 | AB88: 0.516 | AC88: 0.531 | AD88: 0.547 | AE88: 0.562 | AF88: =IF(SawtoothWave!B$14=TRUE,Sheet2!AB88,"") -> 0.516 | AG88: =IF(SawtoothWave!B$16=TRUE,Sheet2!AC88,"") -> 0.531 | AH88: =IF(SawtoothWave!B$19=TRUE,Sheet2!AD88,"") -> 0.547 | AI88: =IF(SawtoothWave!B$21=TRUE,Sheet2!AE88,"") -> 0.562
C89: -1.026824058 | D89: -0.04472984112 | E89: -0.05769193577 | F89: 0.05847609915 | G89: -0.01302244674 | H89: =IF(SquareWave!B$14=TRUE,Sheet2!D89,"") -> -0.04472984112 | I89: =IF(SquareWave!$B$16=TRUE,Sheet2!E89,"") ->  | J89: =IF(SquareWave!$B$19=TRUE,Sheet2!F89,"") -> 0.05847609915 | K89: =IF(SquareWave!$B$21=TRUE,Sheet2!G89,"") -> -0.01302244674 | O89: 0.007782101167 | P89: 0.09483638159 | Q89: 0.04992581233 | R89: 0.03383539439 | S89: 0.04210651143 | T89: =IF(TriangleWave!B$14=TRUE,Sheet2!P89,"") -> 0.09483638159 | U89: =IF(TriangleWave!B$16=TRUE,Sheet2!Q89,"") -> 0.04992581233 | V89: =IF(TriangleWave!B$19=TRUE,Sheet2!R89,"") -> 0.03383539439 | W89: =IF(TriangleWave!B$21=TRUE,Sheet2!S89,"") -> 0.04210651143 | AA89: 0.01221789883 | AB89: 0.492 | AC89: 0.484 | AD89: 0.477 | AE89: 0.469 | AF89: =IF(SawtoothWave!B$14=TRUE,Sheet2!AB89,"") -> 0.492 | AG89: =IF(SawtoothWave!B$16=TRUE,Sheet2!AC89,"") -> 0.484 | AH89: =IF(SawtoothWave!B$19=TRUE,Sheet2!AD89,"") -> 0.477 | AI89: =IF(SawtoothWave!B$21=TRUE,Sheet2!AE89,"") -> 0.469
C90: -0.9657035783 | D90: -0.02358751307 | E90: -0.07495289974 | F90: 0.05151347856 | G90: 0.009779879067 | H90: =IF(SquareWave!B$14=TRUE,Sheet2!D90,"") -> -0.02358751307 | I90: =IF(SquareWave!$B$16=TRUE,Sheet2!E90,"") ->  | J90: =IF(SquareWave!$B$19=TRUE,Sheet2!F90,"") -> 0.05151347856 | K90: =IF(SquareWave!$B$21=TRUE,Sheet2!G90,"") -> 0.009779879067 | O90: 0.03112840467 | P90: 0.09665167662 | Q90: 0.0535441343 | R90: 0.03923239504 | S90: 0.04750351207 | T90: =IF(TriangleWave!B$14=TRUE,Sheet2!P90,"") -> 0.09665167662 | U90: =IF(TriangleWave!B$16=TRUE,Sheet2!Q90,"") -> 0.0535441343 | V90: =IF(TriangleWave!B$19=TRUE,Sheet2!R90,"") -> 0.03923239504 | W90: =IF(TriangleWave!B$21=TRUE,Sheet2!S90,"") -> 0.04750351207 | AA90: 0.04887159533 | AB90: 0.469 | AC90: 0.438 | AD90: 0.407 | AE90: 0.377 | AF90: =IF(SawtoothWave!B$14=TRUE,Sheet2!AB90,"") -> 0.469 | AG90: =IF(SawtoothWave!B$16=TRUE,Sheet2!AC90,"") -> 0.438 | AH90: =IF(SawtoothWave!B$19=TRUE,Sheet2!AD90,"") -> 0.407 | AI90: =IF(SawtoothWave!B$21=TRUE,Sheet2!AE90,"") -> 0.377
C91: -0.9045830987 | D91: -0.000489821172 | E91: -0.08853635597 | F91: 0.0365089499 | G91: 0.03206380672 | H91: =IF(SquareWave!B$14=TRUE,Sheet2!D91,"") -> -0.000489821172 | I91: =IF(SquareWave!$B$16=TRUE,Sheet2!E91,"") ->  | J91: =IF(SquareWave!$B$19=TRUE,Sheet2!F91,"") -> 0.0365089499 | K91: =IF(SquareWave!$B$21=TRUE,Sheet2!G91,"") -> 0.03206380672 | O91: 0.05447470817 | P91: 0.1006357819 | Q91: 0.06140990458 | R91: 0.05078009365 | S91: 0.05905121068 | T91: =IF(TriangleWave!B$14=TRUE,Sheet2!P91,"") -> 0.1006357819 | U91: =IF(TriangleWave!B$16=TRUE,Sheet2!Q91,"") -> 0.06140990458 | V91: =IF(TriangleWave!B$19=TRUE,Sheet2!R91,"") -> 0.05078009365 | W91: =IF(TriangleWave!B$21=TRUE,Sheet2!S91,"") -> 0.05905121068 | AA91: 0.08552529183 | AB91: 0.446 | AC91: 0.392 | AD91: 0.340 | AE91: 0.290 | AF91: =IF(SawtoothWave!B$14=TRUE,Sheet2!AB91,"") -> 0.446 | AG91: =IF(SawtoothWave!B$16=TRUE,Sheet2!AC91,"") -> 0.392 | AH91: =IF(SawtoothWave!B$19=TRUE,Sheet2!AD91,"") -> 0.340 | AI91: =IF(SawtoothWave!B$21=TRUE,Sheet2!AE91,"") -> 0.290
C92: -0.8434626191 | D92: 0.0244769751 | E92: -0.09729874322 | F92: 0.01473776265 | G92: 0.04838242241 | H92: =IF(SquareWave!B$14=TRUE,Sheet2!D92,"") -> 0.0244769751 | I92: =IF(SquareWave!$B$16=TRUE,Sheet2!E92,"") ->  | J92: =IF(SquareWave!$B$19=TRUE,Sheet2!F92,"") -> 0.01473776265 | K92: =IF(SquareWave!$B$21=TRUE,Sheet2!G92,"") -> 0.04838242241 | O92: 0.07782101167 | P92: 0.1067672748 | Q92: 0.07331452738 | R92: 0.06778025241 | S92: 0.07605136944 | T92: =IF(TriangleWave!B$14=TRUE,Sheet2!P92,"") -> 0.1067672748 | U92: =IF(TriangleWave!B$16=TRUE,Sheet2!Q92,"") -> 0.07331452738 | V92: =IF(TriangleWave!B$19=TRUE,Sheet2!R92,"") -> 0.06778025241 | W92: =IF(TriangleWave!B$21=TRUE,Sheet2!S92,"") -> 0.07605136944 | AA92: 0.1221789883 | AB92: 0.423 | AC92: 0.348 | AD92: 0.277 | AE92: 0.211 | AF92: =IF(SawtoothWave!B$14=TRUE,Sheet2!AB92,"") -> 0.423 | AG92: =IF(SawtoothWave!B$16=TRUE,Sheet2!AC92,"") -> 0.348 | AH92: =IF(SawtoothWave!B$19=TRUE,Sheet2!AD92,"") -> 0.277 | AI92: =IF(SawtoothWave!B$21=TRUE,Sheet2!AE92,"") -> 0.211
C93: -0.7823421394 | D93: 0.05121963598 | E93: -0.100202452 | F93: -0.0115569712 | G93: 0.05411221232 | H93: =IF(SquareWave!B$14=TRUE,Sheet2!D93,"") -> 0.05121963598 | I93: =IF(SquareWave!$B$16=TRUE,Sheet2!E93,"") ->  | J93: =IF(SquareWave!$B$19=TRUE,Sheet2!F93,"") -> -0.0115569712 | K93: =IF(SquareWave!$B$21=TRUE,Sheet2!G93,"") -> 0.05411221232 | O93: 0.1011673152 | P93: 0.1150131863 | Q93: 0.08894665426 | R93: 0.08924389197 | S93: 0.097515009 | T93: =IF(TriangleWave!B$14=TRUE,Sheet2!P93,"") -> 0.1150131863 | U93: =IF(TriangleWave!B$16=TRUE,Sheet2!Q93,"") -> 0.08894665426 | V93: =IF(TriangleWave!B$19=TRUE,Sheet2!R93,"") -> 0.08924389197 | W93: =IF(TriangleWave!B$21=TRUE,Sheet2!S93,"") -> 0.097515009 | AA93: 0.1588326848 | AB93: 0.401 | AC93: 0.306 | AD93: 0.220 | AE93: 0.143 | AF93: =IF(SawtoothWave!B$14=TRUE,Sheet2!AB93,"") -> 0.401 | AG93: =IF(SawtoothWave!B$16=TRUE,Sheet2!AC93,"") -> 0.306 | AH93: =IF(SawtoothWave!B$19=TRUE,Sheet2!AD93,"") -> 0.220 | AI93: =IF(SawtoothWave!B$21=TRUE,Sheet2!AE93,"") -> 0.143
C94: -0.7212216598 | D94: 0.07963828967 | E94: -0.09635339084 | F94: -0.03931355511 | G94: 0.04654166329 | H94: =IF(SquareWave!B$14=TRUE,Sheet2!D94,"") -> 0.07963828967 | I94: =IF(SquareWave!$B$16=TRUE,Sheet2!E94,"") ->  | J94: =IF(SquareWave!$B$19=TRUE,Sheet2!F94,"") -> -0.03931355511 | K94: =IF(SquareWave!$B$21=TRUE,Sheet2!G94,"") -> 0.04654166329 | O94: 0.1245136187 | P94: 0.1253291779 | Q94: 0.1079057848 | R94: 0.113995007 | S94: 0.122266124 | T94: =IF(TriangleWave!B$14=TRUE,Sheet2!P94,"") -> 0.1253291779 | U94: =IF(TriangleWave!B$16=TRUE,Sheet2!Q94,"") -> 0.1079057848 | V94: =IF(TriangleWave!B$19=TRUE,Sheet2!R94,"") -> 0.113995007 | W94: =IF(TriangleWave!B$21=TRUE,Sheet2!S94,"") -> 0.122266124 | AA94: 0.1954863813 | AB94: 0.379 | AC94: 0.266 | AD94: 0.169 | AE94: 0.089 | AF94: =IF(SawtoothWave!B$14=TRUE,Sheet2!AB94,"") -> 0.379 | AG94: =IF(SawtoothWave!B$16=TRUE,Sheet2!AC94,"") -> 0.266 | AH94: =IF(SawtoothWave!B$19=TRUE,Sheet2!AD94,"") -> 0.169 | AI94: =IF(SawtoothWave!B$21=TRUE,Sheet2!AE94,"") -> 0.089
C95: -0.6601011801 | D95: 0.1096268053 | E95: -0.08503393783 | F95: -0.06488552802 | G95: 0.02567820606 | H95: =IF(SquareWave!B$14=TRUE,Sheet2!D95,"") -> 0.1096268053 | I95: =IF(SquareWave!$B$16=TRUE,Sheet2!E95,"") ->  | J95: =IF(SquareWave!$B$19=TRUE,Sheet2!F95,"") -> -0.06488552802 | K95: =IF(SquareWave!$B$21=TRUE,Sheet2!G95,"") -> 0.02567820606 | O95: 0.1478599222 | P95: 0.1376597804 | Q95: 0.1297196792 | R95: 0.1407911094 | S95: 0.1490622264 | T95: =IF(TriangleWave!B$14=TRUE,Sheet2!P95,"") -> 0.1376597804 | U95: =IF(TriangleWave!B$16=TRUE,Sheet2!Q95,"") -> 0.1297196792 | V95: =IF(TriangleWave!B$19=TRUE,Sheet2!R95,"") -> 0.1407911094 | W95: =IF(TriangleWave!B$21=TRUE,Sheet2!S95,"") -> 0.1490622264 | AA95: 0.2321400778 | AB95: 0.357 | AC95: 0.230 | AD95: 0.125 | AE95: 0.049 | AF95: =IF(SawtoothWave!B$14=TRUE,Sheet2!AB95,"") -> 0.357 | AG95: =IF(SawtoothWave!B$16=TRUE,Sheet2!AC95,"") -> 0.230 | AH95: =IF(SawtoothWave!B$19=TRUE,Sheet2!AD95,"") -> 0.125 | AI95: =IF(SawtoothWave!B$21=TRUE,Sheet2!AE95,"") -> 0.049
C96: -0.5989807005 | D96: 0.1410731892 | E96: -0.06573016295 | F96: -0.08434029659 | G96: -0.005394392043 | H96: =IF(SquareWave!B$14=TRUE,Sheet2!D96,"") -> 0.1410731892 | I96: =IF(SquareWave!$B$16=TRUE,Sheet2!E96,"") ->  | J96: =IF(SquareWave!$B$19=TRUE,Sheet2!F96,"") -> -0.08434029659 | K96: =IF(SquareWave!$B$21=TRUE,Sheet2!G96,"") -> -0.005394392043 | O96: 0.1712062257 | P96: 0.151938692 | Q96: 0.1538647529 | R96: 0.1684460546 | S96: 0.1767171716 | T96: =IF(TriangleWave!B$14=TRUE,Sheet2!P96,"") -> 0.151938692 | U96: =IF(TriangleWave!B$16=TRUE,Sheet2!Q96,"") -> 0.1538647529 | V96: =IF(TriangleWave!B$19=TRUE,Sheet2!R96,"") -> 0.1684460546 | W96: =IF(TriangleWave!B$21=TRUE,Sheet2!S96,"") -> 0.1767171716 | AA96: 0.2687937743 | AB96: 0.337 | AC96: 0.197 | AD96: 0.091 | AE96: 0.024 | AF96: =IF(SawtoothWave!B$14=TRUE,Sheet2!AB96,"") -> 0.337 | AG96: =IF(SawtoothWave!B$16=TRUE,Sheet2!AC96,"") -> 0.197 | AH96: =IF(SawtoothWave!B$19=TRUE,Sheet2!AD96,"") -> 0.091 | AI96: =IF(SawtoothWave!B$21=TRUE,Sheet2!AE96,"") -> 0.024
C97: -0.5378602208 | D97: 0.1738600033 | E97: -0.03815239512 | F97: -0.09379650401 | G97: -0.04070037408 | H97: =IF(SquareWave!B$14=TRUE,Sheet2!D97,"") -> 0.1738600033 | I97: =IF(SquareWave!$B$16=TRUE,Sheet2!E97,"") ->  | J97: =IF(SquareWave!$B$19=TRUE,Sheet2!F97,"") -> -0.09379650401 | K97: =IF(SquareWave!$B$21=TRUE,Sheet2!G97,"") -> -0.04070037408 | O97: 0.1945525292 | P97: 0.1680891346 | Q97: 0.1797884834 | R97: 0.1959405591 | S97: 0.2042116761 | T97: =IF(TriangleWave!B$14=TRUE,Sheet2!P97,"") -> 0.1680891346 | U97: =IF(TriangleWave!B$16=TRUE,Sheet2!Q97,"") -> 0.1797884834 | V97: =IF(TriangleWave!B$19=TRUE,Sheet2!R97,"") -> 0.1959405591 | W97: =IF(TriangleWave!B$21=TRUE,Sheet2!S97,"") -> 0.2042116761 | AA97: 0.3054474708 | AB97: 0.317 | AC97: 0.168 | AD97: 0.065 | AE97: 0.014 | AF97: =IF(SawtoothWave!B$14=TRUE,Sheet2!AB97,"") -> 0.317 | AG97: =IF(SawtoothWave!B$16=TRUE,Sheet2!AC97,"") -> 0.168 | AH97: =IF(SawtoothWave!B$19=TRUE,Sheet2!AD97,"") -> 0.065 | AI97: =IF(SawtoothWave!B$21=TRUE,Sheet2!AE97,"") -> 0.014
C98: -0.4767397412 | D98: 0.2078648036 | E98: -0.002248432978 | F98: -0.08977007586 | G98: -0.07209560664 | H98: =IF(SquareWave!B$14=TRUE,Sheet2!D98,"") -> 0.2078648036 | I98: =IF(SquareWave!$B$16=TRUE,Sheet2!E98,"") ->  | J98: =IF(SquareWave!$B$19=TRUE,Sheet2!F98,"") -> -0.08977007586 | K98: =IF(SquareWave!$B$21=TRUE,Sheet2!G98,"") -> -0.07209560664 | O98: 0.2178988327 | P98: 0.1860242672 | Q98: 0.2069327633 | R98: 0.2225076259 | S98: 0.2307787429 | T98: =IF(TriangleWave!B$14=TRUE,Sheet2!P98,"") -> 0.1860242672 | U98: =IF(TriangleWave!B$16=TRUE,Sheet2!Q98,"") -> 0.2069327633 | V98: =IF(TriangleWave!B$19=TRUE,Sheet2!R98,"") -> 0.2225076259 | W98: =IF(TriangleWave!B$21=TRUE,Sheet2!S98,"") -> 0.2307787429 | AA98: 0.3421011673 | AB98: 0.299 | AC98: 0.143 | AD98: 0.049 | AE98: 0.018 | AF98: =IF(SawtoothWave!B$14=TRUE,Sheet2!AB98,"") -> 0.299 | AG98: =IF(SawtoothWave!B$16=TRUE,Sheet2!AC98,"") -> 0.143 | AH98: =IF(SawtoothWave!B$19=TRUE,Sheet2!AD98,"") -> 0.049 | AI98: =IF(SawtoothWave!B$21=TRUE,Sheet2!AE98,"") -> 0.018
C99: -0.4156192616 | D99: 0.2429605974 | E99: 0.04179105703 | F99: -0.06949764383 | G99: -0.09043109402 | H99: =IF(SquareWave!B$14=TRUE,Sheet2!D99,"") -> 0.2429605974 | I99: =IF(SquareWave!$B$16=TRUE,Sheet2!E99,"") ->  | J99: =IF(SquareWave!$B$19=TRUE,Sheet2!F99,"") -> -0.06949764383 | K99: =IF(SquareWave!$B$21=TRUE,Sheet2!G99,"") -> -0.09043109402 | O99: 0.2412451362 | P99: 0.2056476522 | Q99: 0.2347570916 | R99: 0.2476835147 | S99: 0.2559546318 | T99: =IF(TriangleWave!B$14=TRUE,Sheet2!P99,"") -> 0.2056476522 | U99: =IF(TriangleWave!B$16=TRUE,Sheet2!Q99,"") -> 0.2347570916 | V99: =IF(TriangleWave!B$19=TRUE,Sheet2!R99,"") -> 0.2476835147 | W99: =IF(TriangleWave!B$21=TRUE,Sheet2!S99,"") -> 0.2559546318 | AA99: 0.3787548638 | AB99: 0.281 | AC99: 0.122 | AD99: 0.041 | AE99: 0.033 | AF99: =IF(SawtoothWave!B$14=TRUE,Sheet2!AB99,"") -> 0.281 | AG99: =IF(SawtoothWave!B$16=TRUE,Sheet2!AC99,"") -> 0.122 | AH99: =IF(SawtoothWave!B$19=TRUE,Sheet2!AD99,"") -> 0.041 | AI99: =IF(SawtoothWave!B$21=TRUE,Sheet2!AE99,"") -> 0.033
C100: -0.3544987819 | D100: 0.2790163178 | E100: 0.09353514973 | F100: -0.03120768185 | G100: -0.0869752811 | H100: =IF(SquareWave!B$14=TRUE,Sheet2!D100,"") -> 0.2790163178 | I100: =IF(SquareWave!$B$16=TRUE,Sheet2!E100,"") ->  | J100: =IF(SquareWave!$B$19=TRUE,Sheet2!F100,"") -> -0.03120768185 | K100: =IF(SquareWave!$B$21=TRUE,Sheet2!G100,"") -> -0.0869752811 | O100: 0.2645914397 | P100: 0.2268537744 | Q100: 0.2627605052 | R100: 0.2713194657 | S100: 0.2795905827 | T100: =IF(TriangleWave!B$14=TRUE,Sheet2!P100,"") -> 0.2268537744 | U100: =IF(TriangleWave!B$16=TRUE,Sheet2!Q100,"") -> 0.2627605052 | V100: =IF(TriangleWave!B$19=TRUE,Sheet2!R100,"") -> 0.2713194657 | W100: =IF(TriangleWave!B$21=TRUE,Sheet2!S100,"") -> 0.2795905827 | AA100: 0.4154085603 | AB100: 0.265 | AC100: 0.106 | AD100: 0.042 | AE100: 0.057 | AF100: =IF(SawtoothWave!B$14=TRUE,Sheet2!AB100,"") -> 0.265 | AG100: =IF(SawtoothWave!B$16=TRUE,Sheet2!AC100,"") -> 0.106 | AH100: =IF(SawtoothWave!B$19=TRUE,Sheet2!AD100,"") -> 0.042 | AI100: =IF(SawtoothWave!B$21=TRUE,Sheet2!AE100,"") -> 0.057
C101: -0.2933783023 | D101: 0.3158973129 | E101: 0.1523232041 | F101: 0.02568593958 | G101: -0.05486232445 | H101: =IF(SquareWave!B$14=TRUE,Sheet2!D101,"") -> 0.3158973129 | I101: =IF(SquareWave!$B$16=TRUE,Sheet2!E101,"") ->  | J101: =IF(SquareWave!$B$19=TRUE,Sheet2!F101,"") -> 0.02568593958 | K101: =IF(SquareWave!$B$21=TRUE,Sheet2!G101,"") -> -0.05486232445 | O101: 0.2879377432 | P101: 0.2495286081 | Q101: 0.290501214 | R101: 0.2935544968 | S101: 0.3018256138 | T101: =IF(TriangleWave!B$14=TRUE,Sheet2!P101,"") -> 0.2495286081 | U101: =IF(TriangleWave!B$16=TRUE,Sheet2!Q101,"") -> 0.290501214 | V101: =IF(TriangleWave!B$19=TRUE,Sheet2!R101,"") -> 0.2935544968 | W101: =IF(TriangleWave!B$21=TRUE,Sheet2!S101,"") -> 0.3018256138 | AA101: 0.4520622568 | AB101: 0.250 | AC101: 0.095 | AD101: 0.051 | AE101: 0.088 | AF101: =IF(SawtoothWave!B$14=TRUE,Sheet2!AB101,"") -> 0.250 | AG101: =IF(SawtoothWave!B$16=TRUE,Sheet2!AC101,"") -> 0.095 | AH101: =IF(SawtoothWave!B$19=TRUE,Sheet2!AD101,"") -> 0.051 | AI101: =IF(SawtoothWave!B$21=TRUE,Sheet2!AE101,"") -> 0.088
C102: -0.2322578226 | D102: 0.3534658487 | E102: 0.2172830011 | F102: 0.1004865552 | G102: 0.009678436302 | H102: =IF(SquareWave!B$14=TRUE,Sheet2!D102,"") -> 0.3534658487 | I102: =IF(SquareWave!$B$16=TRUE,Sheet2!E102,"") ->  | J102: =IF(SquareWave!$B$19=TRUE,Sheet2!F102,"") -> 0.1004865552 | K102: =IF(SquareWave!$B$21=TRUE,Sheet2!G102,"") -> 0.009678436302 | O102: 0.3112840467 | P102: 0.2735502305 | Q102: 0.3176130197 | R102: 0.3147545833 | S102: 0.3230257003 | T102: =IF(TriangleWave!B$14=TRUE,Sheet2!P102,"") -> 0.2735502305 | U102: =IF(TriangleWave!B$16=TRUE,Sheet2!Q102,"") -> 0.3176130197 | V102: =IF(TriangleWave!B$19=TRUE,Sheet2!R102,"") -> 0.3147545833 | W102: =IF(TriangleWave!B$21=TRUE,Sheet2!S102,"") -> 0.3230257003 | AA102: 0.4887159533 | AB102: 0.236 | AC102: 0.089 | AD102: 0.067 | AE102: 0.122 | AF102: =IF(SawtoothWave!B$14=TRUE,Sheet2!AB102,"") -> 0.236 | AG102: =IF(SawtoothWave!B$16=TRUE,Sheet2!AC102,"") -> 0.089 | AH102: =IF(SawtoothWave!B$19=TRUE,Sheet2!AD102,"") -> 0.067 | AI102: =IF(SawtoothWave!B$21=TRUE,Sheet2!AE102,"") -> 0.122
C103: -0.171137343 | D103: 0.3915816236 | E103: 0.2873558836 | F103: 0.1912235766 | G103: 0.1065260044 | H103: =IF(SquareWave!B$14=TRUE,Sheet2!D103,"") -> 0.3915816236 | I103: =IF(SquareWave!$B$16=TRUE,Sheet2!E103,"") ->  | J103: =IF(SquareWave!$B$19=TRUE,Sheet2!F103,"") -> 0.1912235766 | K103: =IF(SquareWave!$B$21=TRUE,Sheet2!G103,"") -> 0.1065260044 | O103: 0.3346303502 | P103: 0.2987894768 | Q103: 0.3438177495 | R103: 0.3354277236 | S103: 0.3436988406 | T103: =IF(TriangleWave!B$14=TRUE,Sheet2!P103,"") -> 0.2987894768 | U103: =IF(TriangleWave!B$16=TRUE,Sheet2!Q103,"") -> 0.3438177495 | V103: =IF(TriangleWave!B$19=TRUE,Sheet2!R103,"") -> 0.3354277236 | W103: =IF(TriangleWave!B$21=TRUE,Sheet2!S103,"") -> 0.3436988406 | AA103: 0.5253696498 | AB103: 0.224 | AC103: 0.087 | AD103: 0.088 | AE103: 0.157 | AF103: =IF(SawtoothWave!B$14=TRUE,Sheet2!AB103,"") -> 0.224 | AG103: =IF(SawtoothWave!B$16=TRUE,Sheet2!AC103,"") -> 0.087 | AH103: =IF(SawtoothWave!B$19=TRUE,Sheet2!AD103,"") -> 0.088 | AI103: =IF(SawtoothWave!B$21=TRUE,Sheet2!AE103,"") -> 0.157
C104: -0.1100168634 | D104: 0.4301022925 | E104: 0.3613280699 | F104: 0.2947683129 | G104: 0.2314501123 | H104: =IF(SquareWave!B$14=TRUE,Sheet2!D104,"") -> 0.4301022925 | I104: =IF(SquareWave!$B$16=TRUE,Sheet2!E104,"") ->  | J104: =IF(SquareWave!$B$19=TRUE,Sheet2!F104,"") -> 0.2947683129 | K104: =IF(SquareWave!$B$21=TRUE,Sheet2!G104,"") -> 0.2314501123 | O104: 0.3579766537 | P104: 0.3251106352 | Q104: 0.368933136 | R104: 0.3561272701 | S104: 0.3643983871 | T104: =IF(TriangleWave!B$14=TRUE,Sheet2!P104,"") -> 0.3251106352 | U104: =IF(TriangleWave!B$16=TRUE,Sheet2!Q104,"") -> 0.368933136 | V104: =IF(TriangleWave!B$19=TRUE,Sheet2!R104,"") -> 0.3561272701 | W104: =IF(TriangleWave!B$21=TRUE,Sheet2!S104,"") -> 0.3643983871 | AA104: 0.5620233463 | AB104: 0.213 | AC104: 0.089 | AD104: 0.113 | AE104: 0.191 | AF104: =IF(SawtoothWave!B$14=TRUE,Sheet2!AB104,"") -> 0.213 | AG104: =IF(SawtoothWave!B$16=TRUE,Sheet2!AC104,"") -> 0.089 | AH104: =IF(SawtoothWave!B$19=TRUE,Sheet2!AD104,"") -> 0.113 | AI104: =IF(SawtoothWave!B$21=TRUE,Sheet2!AE104,"") -> 0.191
C105: -0.04889638371 | D105: 0.4688839978 | E105: 0.4378671084 | F105: 0.4070478764 | G105: 0.3765237137 | H105: =IF(SquareWave!B$14=TRUE,Sheet2!D105,"") -> 0.4688839978 | I105: =IF(SquareWave!$B$16=TRUE,Sheet2!E105,"") ->  | J105: =IF(SquareWave!$B$19=TRUE,Sheet2!F105,"") -> 0.4070478764 | K105: =IF(SquareWave!$B$21=TRUE,Sheet2!G105,"") -> 0.3765237137 | O105: 0.3813229572 | P105: 0.3523721765 | Q105: 0.3928757922 | R105: 0.377357077 | S105: 0.385628194 | T105: =IF(TriangleWave!B$14=TRUE,Sheet2!P105,"") -> 0.3523721765 | U105: =IF(TriangleWave!B$16=TRUE,Sheet2!Q105,"") -> 0.3928757922 | V105: =IF(TriangleWave!B$19=TRUE,Sheet2!R105,"") -> 0.377357077 | W105: =IF(TriangleWave!B$21=TRUE,Sheet2!S105,"") -> 0.385628194 | AA105: 0.5986770428 | AB105: 0.204 | AC105: 0.096 | AD105: 0.142 | AE105: 0.221 | AF105: =IF(SawtoothWave!B$14=TRUE,Sheet2!AB105,"") -> 0.204 | AG105: =IF(SawtoothWave!B$16=TRUE,Sheet2!AC105,"") -> 0.096 | AH105: =IF(SawtoothWave!B$19=TRUE,Sheet2!AD105,"") -> 0.142 | AI105: =IF(SawtoothWave!B$21=TRUE,Sheet2!AE105,"") -> 0.221
C106: 0.01222409593 | D106: 0.5077819074 | E106: 0.5155622643 | F106: 0.5233395211 | G106: 0.531112129 | H106: =IF(SquareWave!B$14=TRUE,Sheet2!D106,"") -> 0.5077819074 | I106: =IF(SquareWave!$B$16=TRUE,Sheet2!E106,"") ->  | J106: =IF(SquareWave!$B$19=TRUE,Sheet2!F106,"") -> 0.5233395211 | K106: =IF(SquareWave!$B$21=TRUE,Sheet2!G106,"") -> 0.531112129 | O106: 0.4046692607 | P106: 0.3804275149 | Q106: 0.4156591683 | R106: 0.3994913634 | S106: 0.4077624804 | T106: =IF(TriangleWave!B$14=TRUE,Sheet2!P106,"") -> 0.3804275149 | U106: =IF(TriangleWave!B$16=TRUE,Sheet2!Q106,"") -> 0.4156591683 | V106: =IF(TriangleWave!B$19=TRUE,Sheet2!R106,"") -> 0.3994913634 | W106: =IF(TriangleWave!B$21=TRUE,Sheet2!S106,"") -> 0.4077624804 | AA106: 0.6353307393 | AB106: 0.196 | AC106: 0.106 | AD106: 0.172 | AE106: 0.246 | AF106: =IF(SawtoothWave!B$14=TRUE,Sheet2!AB106,"") -> 0.196 | AG106: =IF(SawtoothWave!B$16=TRUE,Sheet2!AC106,"") -> 0.106 | AH106: =IF(SawtoothWave!B$19=TRUE,Sheet2!AD106,"") -> 0.172 | AI106: =IF(SawtoothWave!B$21=TRUE,Sheet2!AE106,"") -> 0.246
C107: 0.07334457557 | D107: 0.546650755 | E107: 0.5929675038 | F107: 0.6386205448 | G107: 0.6832887191 | H107: =IF(SquareWave!B$14=TRUE,Sheet2!D107,"") -> 0.546650755 | I107: =IF(SquareWave!$B$16=TRUE,Sheet2!E107,"") ->  | J107: =IF(SquareWave!$B$19=TRUE,Sheet2!F107,"") -> 0.6386205448 | K107: =IF(SquareWave!$B$21=TRUE,Sheet2!G107,"") -> 0.6832887191 | O107: 0.4280155642 | P107: 0.4091257964 | Q107: 0.4373866235 | R107: 0.4227198078 | S107: 0.4309909249 | T107: =IF(TriangleWave!B$14=TRUE,Sheet2!P107,"") -> 0.4091257964 | U107: =IF(TriangleWave!B$16=TRUE,Sheet2!Q107,"") -> 0.4373866235 | V107: =IF(TriangleWave!B$19=TRUE,Sheet2!R107,"") -> 0.4227198078 | W107: =IF(TriangleWave!B$21=TRUE,Sheet2!S107,"") -> 0.4309909249 | AA107: 0.6719844358 | AB107: 0.190 | AC107: 0.120 | AD107: 0.203 | AE107: 0.265 | AF107: =IF(SawtoothWave!B$14=TRUE,Sheet2!AB107,"") -> 0.190 | AG107: =IF(SawtoothWave!B$16=TRUE,Sheet2!AC107,"") -> 0.120 | AH107: =IF(SawtoothWave!B$19=TRUE,Sheet2!AD107,"") -> 0.203 | AI107: =IF(SawtoothWave!B$21=TRUE,Sheet2!AE107,"") -> 0.265
C108: 0.1344650552 | D108: 0.5853453831 | E108: 0.6686456472 | F108: 0.7479438856 | G108: 0.821455087 | H108: =IF(SquareWave!B$14=TRUE,Sheet2!D108,"") -> 0.5853453831 | I108: =IF(SquareWave!$B$16=TRUE,Sheet2!E108,"") ->  | J108: =IF(SquareWave!$B$19=TRUE,Sheet2!F108,"") -> 0.7479438856 | K108: =IF(SquareWave!$B$21=TRUE,Sheet2!G108,"") -> 0.821455087 | O108: 0.4513618677 | P108: 0.43831271 | Q108: 0.4582399787 | R108: 0.4470246217 | S108: 0.4552957388 | T108: =IF(TriangleWave!B$14=TRUE,Sheet2!P108,"") -> 0.43831271 | U108: =IF(TriangleWave!B$16=TRUE,Sheet2!Q108,"") -> 0.4582399787 | V108: =IF(TriangleWave!B$19=TRUE,Sheet2!R108,"") -> 0.4470246217 | W108: =IF(TriangleWave!B$21=TRUE,Sheet2!S108,"") -> 0.4552957388 | AA108: 0.7086381323 | AB108: 0.185 | AC108: 0.138 | AD108: 0.233 | AE108: 0.278 | AF108: =IF(SawtoothWave!B$14=TRUE,Sheet2!AB108,"") -> 0.185 | AG108: =IF(SawtoothWave!B$16=TRUE,Sheet2!AC108,"") -> 0.138 | AH108: =IF(SawtoothWave!B$19=TRUE,Sheet2!AD108,"") -> 0.233 | AI108: =IF(SawtoothWave!B$21=TRUE,Sheet2!AE108,"") -> 0.278
C109: 0.1955855349 | D109: 0.6237212845 | E109: 0.741212229 | F109: 0.8468072373 | G109: 0.9359092599 | H109: =IF(SquareWave!B$14=TRUE,Sheet2!D109,"") -> 0.6237212845 | I109: =IF(SquareWave!$B$16=TRUE,Sheet2!E109,"") ->  | J109: =IF(SquareWave!$B$19=TRUE,Sheet2!F109,"") -> 0.8468072373 | K109: =IF(SquareWave!$B$21=TRUE,Sheet2!G109,"") -> 0.9359092599 | O109: 0.4747081712 | P109: 0.4678313171 | Q109: 0.4784641379 | R109: 0.4721917164 | S109: 0.4804628335 | T109: =IF(TriangleWave!B$14=TRUE,Sheet2!P109,"") -> 0.4678313171 | U109: =IF(TriangleWave!B$16=TRUE,Sheet2!Q109,"") -> 0.4784641379 | V109: =IF(TriangleWave!B$19=TRUE,Sheet2!R109,"") -> 0.4721917164 | W109: =IF(TriangleWave!B$21=TRUE,Sheet2!S109,"") -> 0.4804628335 | AA109: 0.7452918288 | AB109: 0.183 | AC109: 0.158 | AD109: 0.261 | AE109: 0.285 | AF109: =IF(SawtoothWave!B$14=TRUE,Sheet2!AB109,"") -> 0.183 | AG109: =IF(SawtoothWave!B$16=TRUE,Sheet2!AC109,"") -> 0.158 | AH109: =IF(SawtoothWave!B$19=TRUE,Sheet2!AD109,"") -> 0.261 | AI109: =IF(SawtoothWave!B$21=TRUE,Sheet2!AE109,"") -> 0.285
C110: 0.2567060145 | D110: 0.6616351427 | E110: 0.8093776107 | F110: 0.931484086 | G110: 1.020114094 | H110: =IF(SquareWave!B$14=TRUE,Sheet2!D110,"") -> 0.6616351427 | I110: =IF(SquareWave!$B$16=TRUE,Sheet2!E110,"") ->  | J110: =IF(SquareWave!$B$19=TRUE,Sheet2!F110,"") -> 0.931484086 | K110: =IF(SquareWave!$B$21=TRUE,Sheet2!G110,"") -> 1.020114094 | O110: 0.4980544747 | P110: 0.4975228957 | Q110: 0.498348556 | R110: 0.4978532092 | S110: 0.5061243262 | T110: =IF(TriangleWave!B$14=TRUE,Sheet2!P110,"") -> 0.4975228957 | U110: =IF(TriangleWave!B$16=TRUE,Sheet2!Q110,"") -> 0.498348556 | V110: =IF(TriangleWave!B$19=TRUE,Sheet2!R110,"") -> 0.4978532092 | W110: =IF(TriangleWave!B$21=TRUE,Sheet2!S110,"") -> 0.5061243262 | AA110: 0.7819455253 | AB110: 0.182 | AC110: 0.180 | AD110: 0.286 | AE110: 0.288 | AF110: =IF(SawtoothWave!B$14=TRUE,Sheet2!AB110,"") -> 0.182 | AG110: =IF(SawtoothWave!B$16=TRUE,Sheet2!AC110,"") -> 0.180 | AH110: =IF(SawtoothWave!B$19=TRUE,Sheet2!AD110,"") -> 0.286 | AI110: =IF(SawtoothWave!B$21=TRUE,Sheet2!AE110,"") -> 0.288
C111: 0.3178264941 | D111: 0.6989453662 | E111: 0.8719859484 | F111: 0.9992884994 | G111: 1.07146875 | H111: =IF(SquareWave!B$14=TRUE,Sheet2!D111,"") -> 0.6989453662 | I111: =IF(SquareWave!$B$16=TRUE,Sheet2!E111,"") ->  | J111: =IF(SquareWave!$B$19=TRUE,Sheet2!F111,"") -> 0.9992884994 | K111: =IF(SquareWave!$B$21=TRUE,Sheet2!G111,"") -> 1.07146875 | O111: 0.5214007782 | P111: 0.5272277937 | Q111: 0.5182064803 | R111: 0.5235540819 | S111: 0.531825199 | T111: =IF(TriangleWave!B$14=TRUE,Sheet2!P111,"") -> 0.5272277937 | U111: =IF(TriangleWave!B$16=TRUE,Sheet2!Q111,"") -> 0.5182064803 | V111: =IF(TriangleWave!B$19=TRUE,Sheet2!R111,"") -> 0.5235540819 | W111: =IF(TriangleWave!B$21=TRUE,Sheet2!S111,"") -> 0.531825199 | AA111: 0.8185992218 | AB111: 0.182 | AC111: 0.204 | AD111: 0.308 | AE111: 0.287 | AF111: =IF(SawtoothWave!B$14=TRUE,Sheet2!AB111,"") -> 0.182 | AG111: =IF(SawtoothWave!B$16=TRUE,Sheet2!AC111,"") -> 0.204 | AH111: =IF(SawtoothWave!B$19=TRUE,Sheet2!AD111,"") -> 0.308 | AI111: =IF(SawtoothWave!B$21=TRUE,Sheet2!AE111,"") -> 0.287
C112: 0.3789469738 | D112: 0.7355126183 | E112: 0.9280497272 | F112: 1.048751451 | G112: 1.091469675 | H112: =IF(SquareWave!B$14=TRUE,Sheet2!D112,"") -> 0.7355126183 | I112: =IF(SquareWave!$B$16=TRUE,Sheet2!E112,"") ->  | J112: =IF(SquareWave!$B$19=TRUE,Sheet2!F112,"") -> 1.048751451 | K112: =IF(SquareWave!$B$21=TRUE,Sheet2!G112,"") -> 1.091469675 | O112: 0.5447470817 | P112: 0.5567862875 | Q112: 0.5383530064 | R112: 0.5488324047 | S112: 0.5571035217 | T112: =IF(TriangleWave!B$14=TRUE,Sheet2!P112,"") -> 0.5567862875 | U112: =IF(TriangleWave!B$16=TRUE,Sheet2!Q112,"") -> 0.5383530064 | V112: =IF(TriangleWave!B$19=TRUE,Sheet2!R112,"") -> 0.5488324047 | W112: =IF(TriangleWave!B$21=TRUE,Sheet2!S112,"") -> 0.5571035217 | AA112: 0.8552529183 | AB112: 0.185 | AC112: 0.229 | AD112: 0.326 | AE112: 0.283 | AF112: =IF(SawtoothWave!B$14=TRUE,Sheet2!AB112,"") -> 0.185 | AG112: =IF(SawtoothWave!B$16=TRUE,Sheet2!AC112,"") -> 0.229 | AH112: =IF(SawtoothWave!B$19=TRUE,Sheet2!AD112,"") -> 0.326 | AI112: =IF(SawtoothWave!B$21=TRUE,Sheet2!AE112,"") -> 0.283
C113: 0.4400674534 | D113: 0.7712003367 | E113: 0.9767787185 | F113: 1.0796944 | G113: 1.085249584 | H113: =IF(SquareWave!B$14=TRUE,Sheet2!D113,"") -> 0.7712003367 | I113: =IF(SquareWave!$B$16=TRUE,Sheet2!E113,"") ->  | J113: =IF(SquareWave!$B$19=TRUE,Sheet2!F113,"") -> 1.0796944 | K113: =IF(SquareWave!$B$21=TRUE,Sheet2!G113,"") -> 1.085249584 | O113: 0.5680933852 | P113: 0.5860394405 | Q113: 0.5590830414 | R113: 0.5733006312 | S113: 0.5815717482 | T113: =IF(TriangleWave!B$14=TRUE,Sheet2!P113,"") -> 0.5860394405 | U113: =IF(TriangleWave!B$16=TRUE,Sheet2!Q113,"") -> 0.5590830414 | V113: =IF(TriangleWave!B$19=TRUE,Sheet2!R113,"") -> 0.5733006312 | W113: =IF(TriangleWave!B$21=TRUE,Sheet2!S113,"") -> 0.5815717482 | AA113: 0.8919066148 | AB113: 0.189 | AC113: 0.255 | AD113: 0.340 | AE113: 0.280 | AF113: =IF(SawtoothWave!B$14=TRUE,Sheet2!AB113,"") -> 0.189 | AG113: =IF(SawtoothWave!B$16=TRUE,Sheet2!AC113,"") -> 0.255 | AH113: =IF(SawtoothWave!B$19=TRUE,Sheet2!AD113,"") -> 0.340 | AI113: =IF(SawtoothWave!B$21=TRUE,Sheet2!AE113,"") -> 0.280
C114: 0.5011879331 | D114: 0.8058752438 | E114: 1.017602406 | F114: 1.093195031 | G114: 1.060585716 | H114: =IF(SquareWave!B$14=TRUE,Sheet2!D114,"") -> 0.8058752438 | I114: =IF(SquareWave!$B$16=TRUE,Sheet2!E114,"") ->  | J114: =IF(SquareWave!$B$19=TRUE,Sheet2!F114,"") -> 1.093195031 | K114: =IF(SquareWave!$B$21=TRUE,Sheet2!G114,"") -> 1.060585716 | O114: 0.5914396887 | P114: 0.614829958 | Q114: 0.5806502737 | R114: 0.5967153259 | S114: 0.6049864429 | T114: =IF(TriangleWave!B$14=TRUE,Sheet2!P114,"") -> 0.614829958 | U114: =IF(TriangleWave!B$16=TRUE,Sheet2!Q114,"") -> 0.5806502737 | V114: =IF(TriangleWave!B$19=TRUE,Sheet2!R114,"") -> 0.5967153259 | W114: =IF(TriangleWave!B$21=TRUE,Sheet2!S114,"") -> 0.6049864429 | AA114: 0.9285603113 | AB114: 0.195 | AC114: 0.281 | AD114: 0.350 | AE114: 0.278 | AF114: =IF(SawtoothWave!B$14=TRUE,Sheet2!AB114,"") -> 0.195 | AG114: =IF(SawtoothWave!B$16=TRUE,Sheet2!AC114,"") -> 0.281 | AH114: =IF(SawtoothWave!B$19=TRUE,Sheet2!AD114,"") -> 0.350 | AI114: =IF(SawtoothWave!B$21=TRUE,Sheet2!AE114,"") -> 0.278
C115: 0.5623084127 | D115: 0.8394078445 | E115: 1.050185142 | F115: 1.091449675 | G115: 1.026554495 | H115: =IF(SquareWave!B$14=TRUE,Sheet2!D115,"") -> 0.8394078445 | I115: =IF(SquareWave!$B$16=TRUE,Sheet2!E115,"") ->  | J115: =IF(SquareWave!$B$19=TRUE,Sheet2!F115,"") -> 1.091449675 | K115: =IF(SquareWave!$B$21=TRUE,Sheet2!G115,"") -> 1.026554495 | O115: 0.6147859922 | P115: 0.6430030331 | Q115: 0.6032482018 | R115: 0.6190243021 | S115: 0.6272954192 | T115: =IF(TriangleWave!B$14=TRUE,Sheet2!P115,"") -> 0.6430030331 | U115: =IF(TriangleWave!B$16=TRUE,Sheet2!Q115,"") -> 0.6032482018 | V115: =IF(TriangleWave!B$19=TRUE,Sheet2!R115,"") -> 0.6190243021 | W115: =IF(TriangleWave!B$21=TRUE,Sheet2!S115,"") -> 0.6272954192 | AA115: 0.9652140078 | AB115: 0.202 | AC115: 0.307 | AD115: 0.357 | AE115: 0.278 | AF115: =IF(SawtoothWave!B$14=TRUE,Sheet2!AB115,"") -> 0.202 | AG115: =IF(SawtoothWave!B$16=TRUE,Sheet2!AC115,"") -> 0.307 | AH115: =IF(SawtoothWave!B$19=TRUE,Sheet2!AD115,"") -> 0.357 | AI115: =IF(SawtoothWave!B$21=TRUE,Sheet2!AE115,"") -> 0.278
C116: 0.6234288923 | D116: 0.8716729095 | E116: 1.074433543 | F116: 1.077546074 | G116: 0.9920639833 | H116: =IF(SquareWave!B$14=TRUE,Sheet2!D116,"") -> 0.8716729095 | I116: =IF(SquareWave!$B$16=TRUE,Sheet2!E116,"") ->  | J116: =IF(SquareWave!$B$19=TRUE,Sheet2!F116,"") -> 1.077546074 | K116: =IF(SquareWave!$B$21=TRUE,Sheet2!G116,"") -> 0.9920639833 | O116: 0.6381322957 | P116: 0.6704071787 | Q116: 0.6269941714 | R116: 0.6403833317 | S116: 0.6486544488 | T116: =IF(TriangleWave!B$14=TRUE,Sheet2!P116,"") -> 0.6704071787 | U116: =IF(TriangleWave!B$16=TRUE,Sheet2!Q116,"") -> 0.6269941714 | V116: =IF(TriangleWave!B$19=TRUE,Sheet2!R116,"") -> 0.6403833317 | W116: =IF(TriangleWave!B$21=TRUE,Sheet2!S116,"") -> 0.6486544488 | AA116: 1.001867704 | AB116: 0.211 | AC116: 0.333 | AD116: 0.361 | AE116: 0.282 | AF116: =IF(SawtoothWave!B$14=TRUE,Sheet2!AB116,"") -> 0.211 | AG116: =IF(SawtoothWave!B$16=TRUE,Sheet2!AC116,"") -> 0.333 | AH116: =IF(SawtoothWave!B$19=TRUE,Sheet2!AD116,"") -> 0.361 | AI116: =IF(SawtoothWave!B$21=TRUE,Sheet2!AE116,"") -> 0.282
C117: 0.684549372 | D117: 0.9025499434 | E117: 1.090495893 | F117: 1.055167987 | G117: 0.9645092407 | H117: =IF(SquareWave!B$14=TRUE,Sheet2!D117,"") -> 0.9025499434 | I117: =IF(SquareWave!$B$16=TRUE,Sheet2!E117,"") ->  | J117: =IF(SquareWave!$B$19=TRUE,Sheet2!F117,"") -> 1.055167987 | K117: =IF(SquareWave!$B$21=TRUE,Sheet2!G117,"") -> 0.9645092407 | O117: 0.6614785992 | P117: 0.6968950421 | Q117: 0.6519172263 | R117: 0.6611388865 | S117: 0.6694100035 | T117: =IF(TriangleWave!B$14=TRUE,Sheet2!P117,"") -> 0.6968950421 | U117: =IF(TriangleWave!B$16=TRUE,Sheet2!Q117,"") -> 0.6519172263 | V117: =IF(TriangleWave!B$19=TRUE,Sheet2!R117,"") -> 0.6611388865 | W117: =IF(TriangleWave!B$21=TRUE,Sheet2!S117,"") -> 0.6694100035 | AA117: 1.038521401 | AB117: 0.222 | AC117: 0.357 | AD117: 0.362 | AE117: 0.291 | AF117: =IF(SawtoothWave!B$14=TRUE,Sheet2!AB117,"") -> 0.222 | AG117: =IF(SawtoothWave!B$16=TRUE,Sheet2!AC117,"") -> 0.357 | AH117: =IF(SawtoothWave!B$19=TRUE,Sheet2!AD117,"") -> 0.362 | AI117: =IF(SawtoothWave!B$21=TRUE,Sheet2!AE117,"") -> 0.291
C118: 0.7456698516 | D118: 0.9319236343 | E118: 1.098753575 | F118: 1.028259008 | G118: 0.9487670788 | H118: =IF(SquareWave!B$14=TRUE,Sheet2!D118,"") -> 0.9319236343 | I118: =IF(SquareWave!$B$16=TRUE,Sheet2!E118,"") ->  | J118: =IF(SquareWave!$B$19=TRUE,Sheet2!F118,"") -> 1.028259008 | K118: =IF(SquareWave!$B$21=TRUE,Sheet2!G118,"") -> 0.9487670788 | O118: 0.6848249027 | P118: 0.7223241979 | Q118: 0.6779503959 | R118: 0.6817782114 | S118: 0.6900493284 | T118: =IF(TriangleWave!B$14=TRUE,Sheet2!P118,"") -> 0.7223241979 | U118: =IF(TriangleWave!B$16=TRUE,Sheet2!Q118,"") -> 0.6779503959 | V118: =IF(TriangleWave!B$19=TRUE,Sheet2!R118,"") -> 0.6817782114 | W118: =IF(TriangleWave!B$21=TRUE,Sheet2!S118,"") -> 0.6900493284 | AA118: 1.075175097 | AB118: 0.234 | AC118: 0.380 | AD118: 0.362 | AE118: 0.304 | AF118: =IF(SawtoothWave!B$14=TRUE,Sheet2!AB118,"") -> 0.234 | AG118: =IF(SawtoothWave!B$16=TRUE,Sheet2!AC118,"") -> 0.380 | AH118: =IF(SawtoothWave!B$19=TRUE,Sheet2!AD118,"") -> 0.362 | AI118: =IF(SawtoothWave!B$21=TRUE,Sheet2!AE118,"") -> 0.304
C119: 0.8067903313 | D119: 0.9596842847 | E119: 1.099804855 | F119: 1.000676234 | G119: 0.9466815015 | H119: =IF(SquareWave!B$14=TRUE,Sheet2!D119,"") -> 0.9596842847 | I119: =IF(SquareWave!$B$16=TRUE,Sheet2!E119,"") ->  | J119: =IF(SquareWave!$B$19=TRUE,Sheet2!F119,"") -> 1.000676234 | K119: =IF(SquareWave!$B$21=TRUE,Sheet2!G119,"") -> 0.9466815015 | O119: 0.7081712062 | P119: 0.7465579129 | Q119: 0.7049278216 | R119: 0.7028527496 | S119: 0.7111238666 | T119: =IF(TriangleWave!B$14=TRUE,Sheet2!P119,"") -> 0.7465579129 | U119: =IF(TriangleWave!B$16=TRUE,Sheet2!Q119,"") -> 0.7049278216 | V119: =IF(TriangleWave!B$19=TRUE,Sheet2!R119,"") -> 0.7028527496 | W119: =IF(TriangleWave!B$21=TRUE,Sheet2!S119,"") -> 0.7111238666 | AA119: 1.111828794 | AB119: 0.247 | AC119: 0.401 | AD119: 0.361 | AE119: 0.321 | AF119: =IF(SawtoothWave!B$14=TRUE,Sheet2!AB119,"") -> 0.247 | AG119: =IF(SawtoothWave!B$16=TRUE,Sheet2!AC119,"") -> 0.401 | AH119: =IF(SawtoothWave!B$19=TRUE,Sheet2!AD119,"") -> 0.361 | AI119: =IF(SawtoothWave!B$21=TRUE,Sheet2!AE119,"") -> 0.321
C120: 0.8679108109 | D120: 0.985728221 | E120: 1.094441553 | F120: 0.9758649521 | G120: 0.957101298 | H120: =IF(SquareWave!B$14=TRUE,Sheet2!D120,"") -> 0.985728221 | I120: =IF(SquareWave!$B$16=TRUE,Sheet2!E120,"") ->  | J120: =IF(SquareWave!$B$19=TRUE,Sheet2!F120,"") -> 0.9758649521 | K120: =IF(SquareWave!$B$21=TRUE,Sheet2!G120,"") -> 0.957101298 | O120: 0.7315175097 | P120: 0.7694658822 | Q120: 0.7325868971 | R120: 0.7248848916 | S120: 0.7331560086 | T120: =IF(TriangleWave!B$14=TRUE,Sheet2!P120,"") -> 0.7694658822 | U120: =IF(TriangleWave!B$16=TRUE,Sheet2!Q120,"") -> 0.7325868971 | V120: =IF(TriangleWave!B$19=TRUE,Sheet2!R120,"") -> 0.7248848916 | W120: =IF(TriangleWave!B$21=TRUE,Sheet2!S120,"") -> 0.7331560086 | AA120: 1.14848249 | AB120: 0.262 | AC120: 0.420 | AD120: 0.359 | AE120: 0.341 | AF120: =IF(SawtoothWave!B$14=TRUE,Sheet2!AB120,"") -> 0.262 | AG120: =IF(SawtoothWave!B$16=TRUE,Sheet2!AC120,"") -> 0.420 | AH120: =IF(SawtoothWave!B$19=TRUE,Sheet2!AD120,"") -> 0.359 | AI120: =IF(SawtoothWave!B$21=TRUE,Sheet2!AE120,"") -> 0.341
C121: 0.9290312906 | D121: 1.009958181 | E121: 1.083619408 | F121: 0.9565831112 | G121: 0.9764331464 | H121: =IF(SquareWave!B$14=TRUE,Sheet2!D121,"") -> 1.009958181 | I121: =IF(SquareWave!$B$16=TRUE,Sheet2!E121,"") ->  | J121: =IF(SquareWave!$B$19=TRUE,Sheet2!F121,"") -> 0.9565831112 | K121: =IF(SquareWave!$B$21=TRUE,Sheet2!G121,"") -> 0.9764331464 | O121: 0.7548638132 | P121: 0.7909249292 | Q121: 0.7605753486 | R121: 0.7482706622 | S121: 0.7565417792 | T121: =IF(TriangleWave!B$14=TRUE,Sheet2!P121,"") -> 0.7909249292 | U121: =IF(TriangleWave!B$16=TRUE,Sheet2!Q121,"") -> 0.7605753486 | V121: =IF(TriangleWave!B$19=TRUE,Sheet2!R121,"") -> 0.7482706622 | W121: =IF(TriangleWave!B$21=TRUE,Sheet2!S121,"") -> 0.7565417792 | AA121: 1.185136187 | AB121: 0.278 | AC121: 0.437 | AD121: 0.359 | AE121: 0.364 | AF121: =IF(SawtoothWave!B$14=TRUE,Sheet2!AB121,"") -> 0.278 | AG121: =IF(SawtoothWave!B$16=TRUE,Sheet2!AC121,"") -> 0.437 | AH121: =IF(SawtoothWave!B$19=TRUE,Sheet2!AD121,"") -> 0.359 | AI121: =IF(SawtoothWave!B$21=TRUE,Sheet2!AE121,"") -> 0.364
C122: 0.9901517702 | D122: 1.032283676 | E122: 1.068423135 | F122: 0.9446993712 | G122: 0.9995846376 | H122: =IF(SquareWave!B$14=TRUE,Sheet2!D122,"") -> 1.032283676 | I122: =IF(SquareWave!$B$16=TRUE,Sheet2!E122,"") ->  | J122: =IF(SquareWave!$B$19=TRUE,Sheet2!F122,"") -> 0.9446993712 | K122: =IF(SquareWave!$B$21=TRUE,Sheet2!G122,"") -> 0.9995846376 | O122: 0.7782101167 | P122: 0.8108196683 | Q122: 0.7884629435 | R122: 0.7731919176 | S122: 0.7814630347 | T122: =IF(TriangleWave!B$14=TRUE,Sheet2!P122,"") -> 0.8108196683 | U122: =IF(TriangleWave!B$16=TRUE,Sheet2!Q122,"") -> 0.7884629435 | V122: =IF(TriangleWave!B$19=TRUE,Sheet2!R122,"") -> 0.7731919176 | W122: =IF(TriangleWave!B$21=TRUE,Sheet2!S122,"") -> 0.7814630347 | AA122: 1.221789883 | AB122: 0.296 | AC122: 0.452 | AD122: 0.360 | AE122: 0.388 | AF122: =IF(SawtoothWave!B$14=TRUE,Sheet2!AB122,"") -> 0.296 | AG122: =IF(SawtoothWave!B$16=TRUE,Sheet2!AC122,"") -> 0.452 | AH122: =IF(SawtoothWave!B$19=TRUE,Sheet2!AD122,"") -> 0.360 | AI122: =IF(SawtoothWave!B$21=TRUE,Sheet2!AE122,"") -> 0.388
C123: 1.05127225 | D123: 1.052621332 | E123: 1.050027363 | F123: 0.9410813945 | G123: 1.02110747 | H123: =IF(SquareWave!B$14=TRUE,Sheet2!D123,"") -> 1.052621332 | I123: =IF(SquareWave!$B$16=TRUE,Sheet2!E123,"") ->  | J123: =IF(SquareWave!$B$19=TRUE,Sheet2!F123,"") -> 0.9410813945 | K123: =IF(SquareWave!$B$21=TRUE,Sheet2!G123,"") -> 1.02110747 | O123: 0.8015564202 | P123: 0.8290431252 | Q123: 0.8157572935 | R123: 0.7995507487 | S123: 0.8078218658 | T123: =IF(TriangleWave!B$14=TRUE,Sheet2!P123,"") -> 0.8290431252 | U123: =IF(TriangleWave!B$16=TRUE,Sheet2!Q123,"") -> 0.8157572935 | V123: =IF(TriangleWave!B$19=TRUE,Sheet2!R123,"") -> 0.7995507487 | W123: =IF(TriangleWave!B$21=TRUE,Sheet2!S123,"") -> 0.8078218658 | AA123: 1.25844358 | AB123: 0.314 | AC123: 0.465 | AD123: 0.364 | AE123: 0.412 | AF123: =IF(SawtoothWave!B$14=TRUE,Sheet2!AB123,"") -> 0.314 | AG123: =IF(SawtoothWave!B$16=TRUE,Sheet2!AC123,"") -> 0.465 | AH123: =IF(SawtoothWave!B$19=TRUE,Sheet2!AD123,"") -> 0.364 | AI123: =IF(SawtoothWave!B$21=TRUE,Sheet2!AE123,"") -> 0.412
C124: 1.112392729 | D124: 1.070895195 | E124: 1.029654767 | F124: 0.9455824248 | G124: 1.036322637 | H124: =IF(SquareWave!B$14=TRUE,Sheet2!D124,"") -> 1.070895195 | I124: =IF(SquareWave!$B$16=TRUE,Sheet2!E124,"") ->  | J124: =IF(SquareWave!$B$19=TRUE,Sheet2!F124,"") -> 0.9455824248 | K124: =IF(SquareWave!$B$21=TRUE,Sheet2!G124,"") -> 1.036322637 | O124: 0.8249027237 | P124: 0.845497312 | Q124: 0.8419230139 | R124: 0.826936181 | S124: 0.835207298 | T124: =IF(TriangleWave!B$14=TRUE,Sheet2!P124,"") -> 0.845497312 | U124: =IF(TriangleWave!B$16=TRUE,Sheet2!Q124,"") -> 0.8419230139 | V124: =IF(TriangleWave!B$19=TRUE,Sheet2!R124,"") -> 0.826936181 | W124: =IF(TriangleWave!B$21=TRUE,Sheet2!S124,"") -> 0.835207298 | AA124: 1.295097276 | AB124: 0.334 | AC124: 0.475 | AD124: 0.370 | AE124: 0.434 | AF124: =IF(SawtoothWave!B$14=TRUE,Sheet2!AB124,"") -> 0.334 | AG124: =IF(SawtoothWave!B$16=TRUE,Sheet2!AC124,"") -> 0.475 | AH124: =IF(SawtoothWave!B$19=TRUE,Sheet2!AD124,"") -> 0.370 | AI124: =IF(SawtoothWave!B$21=TRUE,Sheet2!AE124,"") -> 0.434
C125: 1.173513209 | D125: 1.087037022 | E125: 1.008532815 | F125: 0.9571249349 | G125: 1.042221124 | H125: =IF(SquareWave!B$14=TRUE,Sheet2!D125,"") -> 1.087037022 | I125: =IF(SquareWave!$B$16=TRUE,Sheet2!E125,"") ->  | J125: =IF(SquareWave!$B$19=TRUE,Sheet2!F125,"") -> 0.9571249349 | K125: =IF(SquareWave!$B$21=TRUE,Sheet2!G125,"") -> 1.042221124 | O125: 0.8482490272 | P125: 0.8600937543 | Q125: 0.8664033418 | R125: 0.8546292479 | S125: 0.862900365 | T125: =IF(TriangleWave!B$14=TRUE,Sheet2!P125,"") -> 0.8600937543 | U125: =IF(TriangleWave!B$16=TRUE,Sheet2!Q125,"") -> 0.8664033418 | V125: =IF(TriangleWave!B$19=TRUE,Sheet2!R125,"") -> 0.8546292479 | W125: =IF(TriangleWave!B$21=TRUE,Sheet2!S125,"") -> 0.862900365 | AA125: 1.331750973 | AB125: 0.354 | AC125: 0.484 | AD125: 0.379 | AE125: 0.454 | AF125: =IF(SawtoothWave!B$14=TRUE,Sheet2!AB125,"") -> 0.354 | AG125: =IF(SawtoothWave!B$16=TRUE,Sheet2!AC125,"") -> 0.484 | AH125: =IF(SawtoothWave!B$19=TRUE,Sheet2!AD125,"") -> 0.379 | AI125: =IF(SawtoothWave!B$21=TRUE,Sheet2!AE125,"") -> 0.454
C126: 1.234633689 | D126: 1.100986529 | E126: 0.9878505806 | F126: 0.9738710391 | G126: 1.03798252 | H126: =IF(SquareWave!B$14=TRUE,Sheet2!D126,"") -> 1.100986529 | I126: =IF(SquareWave!$B$16=TRUE,Sheet2!E126,"") ->  | J126: =IF(SquareWave!$B$19=TRUE,Sheet2!F126,"") -> 0.9738710391 | K126: =IF(SquareWave!$B$21=TRUE,Sheet2!G126,"") -> 1.03798252 | O126: 0.8715953307 | P126: 0.8727539669 | Q126: 0.8886431928 | R126: 0.8816476183 | S126: 0.8899187353 | T126: =IF(TriangleWave!B$14=TRUE,Sheet2!P126,"") -> 0.8727539669 | U126: =IF(TriangleWave!B$16=TRUE,Sheet2!Q126,"") -> 0.8886431928 | V126: =IF(TriangleWave!B$19=TRUE,Sheet2!R126,"") -> 0.8816476183 | W126: =IF(TriangleWave!B$21=TRUE,Sheet2!S126,"") -> 0.8899187353 | AA126: 1.368404669 | AB126: 0.375 | AC126: 0.490 | AD126: 0.391 | AE126: 0.470 | AF126: =IF(SawtoothWave!B$14=TRUE,Sheet2!AB126,"") -> 0.375 | AG126: =IF(SawtoothWave!B$16=TRUE,Sheet2!AC126,"") -> 0.490 | AH126: =IF(SawtoothWave!B$19=TRUE,Sheet2!AD126,"") -> 0.391 | AI126: =IF(SawtoothWave!B$21=TRUE,Sheet2!AE126,"") -> 0.470
C127: 1.295754168 | D127: 1.112691622 | E127: 0.9687170769 | F127: 0.9934613338 | G127: 1.025030431 | H127: =IF(SquareWave!B$14=TRUE,Sheet2!D127,"") -> 1.112691622 | I127: =IF(SquareWave!$B$16=TRUE,Sheet2!E127,"") ->  | J127: =IF(SquareWave!$B$19=TRUE,Sheet2!F127,"") -> 0.9934613338 | K127: =IF(SquareWave!$B$21=TRUE,Sheet2!G127,"") -> 1.025030431 | O127: 0.8949416342 | P127: 0.8834098756 | Q127: 0.9081125643 | R127: 0.906825817 | S127: 0.915096934 | T127: =IF(TriangleWave!B$14=TRUE,Sheet2!P127,"") -> 0.8834098756 | U127: =IF(TriangleWave!B$16=TRUE,Sheet2!Q127,"") -> 0.9081125643 | V127: =IF(TriangleWave!B$19=TRUE,Sheet2!R127,"") -> 0.906825817 | W127: =IF(TriangleWave!B$21=TRUE,Sheet2!S127,"") -> 0.915096934 | AA127: 1.405058366 | AB127: 0.397 | AC127: 0.494 | AD127: 0.406 | AE127: 0.483 | AF127: =IF(SawtoothWave!B$14=TRUE,Sheet2!AB127,"") -> 0.397 | AG127: =IF(SawtoothWave!B$16=TRUE,Sheet2!AC127,"") -> 0.494 | AH127: =IF(SawtoothWave!B$19=TRUE,Sheet2!AD127,"") -> 0.406 | AI127: =IF(SawtoothWave!B$21=TRUE,Sheet2!AE127,"") -> 0.483
C128: 1.356874648 | D128: 1.122108587 | E128: 0.9521225266 | F128: 1.013297575 | G128: 1.006633182 | H128: =IF(SquareWave!B$14=TRUE,Sheet2!D128,"") -> 1.122108587 | I128: =IF(SquareWave!$B$16=TRUE,Sheet2!E128,"") ->  | J128: =IF(SquareWave!$B$19=TRUE,Sheet2!F128,"") -> 1.013297575 | K128: =IF(SquareWave!$B$21=TRUE,Sheet2!G128,"") -> 1.006633182 | O128: 0.9182879377 | P128: 0.8920041834 | Q128: 0.9243291755 | R128: 0.9289223738 | S128: 0.9371934909 | T128: =IF(TriangleWave!B$14=TRUE,Sheet2!P128,"") -> 0.8920041834 | U128: =IF(TriangleWave!B$16=TRUE,Sheet2!Q128,"") -> 0.9243291755 | V128: =IF(TriangleWave!B$19=TRUE,Sheet2!R128,"") -> 0.9289223738 | W128: =IF(TriangleWave!B$21=TRUE,Sheet2!S128,"") -> 0.9371934909 | AA128: 1.441712062 | AB128: 0.419 | AC128: 0.497 | AD128: 0.423 | AE128: 0.492 | AF128: =IF(SawtoothWave!B$14=TRUE,Sheet2!AB128,"") -> 0.419 | AG128: =IF(SawtoothWave!B$16=TRUE,Sheet2!AC128,"") -> 0.497 | AH128: =IF(SawtoothWave!B$19=TRUE,Sheet2!AD128,"") -> 0.423 | AI128: =IF(SawtoothWave!B$21=TRUE,Sheet2!AE128,"") -> 0.492
C129: 1.417995128 | D129: 1.129202256 | E129: 0.9389038581 | F129: 1.030840715 | G129: 0.9871442516 | H129: =IF(SquareWave!B$14=TRUE,Sheet2!D129,"") -> 1.129202256 | I129: =IF(SquareWave!$B$16=TRUE,Sheet2!E129,"") ->  | J129: =IF(SquareWave!$B$19=TRUE,Sheet2!F129,"") -> 1.030840715 | K129: =IF(SquareWave!$B$21=TRUE,Sheet2!G129,"") -> 0.9871442516 | O129: 0.9416342412 | P129: 0.8984906785 | Q129: 0.9368792687 | R129: 0.9467415852 | S129: 0.9550127023 | T129: =IF(TriangleWave!B$14=TRUE,Sheet2!P129,"") -> 0.8984906785 | U129: =IF(TriangleWave!B$16=TRUE,Sheet2!Q129,"") -> 0.9368792687 | V129: =IF(TriangleWave!B$19=TRUE,Sheet2!R129,"") -> 0.9467415852 | W129: =IF(TriangleWave!B$21=TRUE,Sheet2!S129,"") -> 0.9550127023 | AA129: 1.478365759 | AB129: 0.442 | AC129: 0.499 | AD129: 0.444 | AE129: 0.497 | AF129: =IF(SawtoothWave!B$14=TRUE,Sheet2!AB129,"") -> 0.442 | AG129: =IF(SawtoothWave!B$16=TRUE,Sheet2!AC129,"") -> 0.499 | AH129: =IF(SawtoothWave!B$19=TRUE,Sheet2!AD129,"") -> 0.444 | AI129: =IF(SawtoothWave!B$21=TRUE,Sheet2!AE129,"") -> 0.497
C130: 1.479115607 | D130: 1.133946139 | E130: 0.929715598 | F130: 1.043894637 | G130: 0.9710434683 | H130: =IF(SquareWave!B$14=TRUE,Sheet2!D130,"") -> 1.133946139 | I130: =IF(SquareWave!$B$16=TRUE,Sheet2!E130,"") ->  | J130: =IF(SquareWave!$B$19=TRUE,Sheet2!F130,"") -> 1.043894637 | K130: =IF(SquareWave!$B$21=TRUE,Sheet2!G130,"") -> 0.9710434683 | O130: 0.9649805447 | P130: 0.902834483 | Q130: 0.9454355803 | R130: 0.9592554728 | S130: 0.9675265898 | T130: =IF(TriangleWave!B$14=TRUE,Sheet2!P130,"") -> 0.902834483 | U130: =IF(TriangleWave!B$16=TRUE,Sheet2!Q130,"") -> 0.9454355803 | V130: =IF(TriangleWave!B$19=TRUE,Sheet2!R130,"") -> 0.9592554728 | W130: =IF(TriangleWave!B$21=TRUE,Sheet2!S130,"") -> 0.9675265898 | AA130: 1.515019455 | AB130: 0.465 | AC130: 0.500 | AD130: 0.465 | AE130: 0.499 | AF130: =IF(SawtoothWave!B$14=TRUE,Sheet2!AB130,"") -> 0.465 | AG130: =IF(SawtoothWave!B$16=TRUE,Sheet2!AC130,"") -> 0.500 | AH130: =IF(SawtoothWave!B$19=TRUE,Sheet2!AD130,"") -> 0.465 | AI130: =IF(SawtoothWave!B$21=TRUE,Sheet2!AE130,"") -> 0.499
C131: 1.540236087 | D131: 1.136322517 | E131: 0.9250071374 | F131: 1.050847589 | G131: 0.9619749334 | H131: =IF(SquareWave!B$14=TRUE,Sheet2!D131,"") -> 1.136322517 | I131: =IF(SquareWave!$B$16=TRUE,Sheet2!E131,"") ->  | J131: =IF(SquareWave!$B$19=TRUE,Sheet2!F131,"") -> 1.050847589 | K131: =IF(SquareWave!$B$21=TRUE,Sheet2!G131,"") -> 0.9619749334 | O131: 0.9883268482 | P131: 0.9050122402 | Q131: 0.9497716272 | R131: 0.9657112543 | S131: 0.9739823713 | T131: =IF(TriangleWave!B$14=TRUE,Sheet2!P131,"") -> 0.9050122402 | U131: =IF(TriangleWave!B$16=TRUE,Sheet2!Q131,"") -> 0.9497716272 | V131: =IF(TriangleWave!B$19=TRUE,Sheet2!R131,"") -> 0.9657112543 | W131: =IF(TriangleWave!B$21=TRUE,Sheet2!S131,"") -> 0.9739823713 | AA131: 1.551673152 | AB131: 0.488 | AC131: 0.500 | AD131: 0.488 | AE131: 0.500 | AF131: =IF(SawtoothWave!B$14=TRUE,Sheet2!AB131,"") -> 0.488 | AG131: =IF(SawtoothWave!B$16=TRUE,Sheet2!AC131,"") -> 0.500 | AH131: =IF(SawtoothWave!B$19=TRUE,Sheet2!AD131,"") -> 0.488 | AI131: =IF(SawtoothWave!B$21=TRUE,Sheet2!AE131,"") -> 0.500
C132: =C131+dx -> 1.601356567 | D132: =0.5+2/PI()*SIN(C132) -> 1.136322517 | E132: =D132+2/3/PI()*SIN(3*C132) -> 0.9250071374 | F132: =E132+2/5/PI()*SIN(5*C132) -> 1.050847589 | G132: =F132+2/7/PI()*SIN(7*C132) -> 0.9619749334 | H132: =IF(SquareWave!B$14=TRUE,Sheet2!D132,"") -> 1.136322517 | I132: =IF(SquareWave!$B$16=TRUE,Sheet2!E132,"") ->  | J132: =IF(SquareWave!$B$19=TRUE,Sheet2!F132,"") -> 1.050847589 | K132: =IF(SquareWave!$B$21=TRUE,Sheet2!G132,"") -> 0.9619749334 | O132: =O131+dxx -> 1.011673152 | P132: =0.5 -4/PI()^2*(COS(PI()*O132)) -> 0.9050122402 | Q132: =0.5 -4/PI()^2*(COS(PI()*$O132)) - 4/9/PI()^2*COS(3*PI()*$O132) -> 0.9497716272 | R132: =0.5-4/PI()^2*(COS(PI()*$O132))-4/9/PI()^2*COS(3*PI()*$O132)-4/25/PI()^2*COS(5*PI()*$O132) -> 0.9657112543 | S132: =0.5-4/PI()^2*(COS(PI()*$O132))-4/9/PI()^2*COS(3*PI()*$O132)-4/25/PI()^2*COS(5*PI()*$O132)-4/49/PI()^2*COS(7*PI()*3) -> 0.9739823713 | T132: =IF(TriangleWave!B$14=TRUE,Sheet2!P132,"") -> 0.9050122402 | U132: =IF(TriangleWave!B$16=TRUE,Sheet2!Q132,"") -> 0.9497716272 | V132: =IF(TriangleWave!B$19=TRUE,Sheet2!R132,"") -> 0.9657112543 | W132: =IF(TriangleWave!B$21=TRUE,Sheet2!S132,"") -> 0.9739823713 | AA132: =AA131+dxxx -> 1.588326848 | AB132: =0.5 -(SIN(PI()*$O132))/PI() -> 0.512 | AC132: =0.5-(SIN(PI()*$O132)+SIN(2*PI()*$O132)/2)/PI() -> 0.500 | AD132: =0.5-(SIN(PI()*$O132)+SIN(2*PI()*$O132)/2 + SIN(3*PI()*$O132)/3 )/PI() -> 0.512 | AE132: =0.5-(SIN(PI()*$O132)+SIN(2*PI()*$O132)/2 + SIN(3*PI()*$O132)/3 + SIN(4*PI()*O132)/4)/PI() -> 0.500 | AF132: =IF(SawtoothWave!B$14=TRUE,Sheet2!AB132,"") -> 0.512 | AG132: =IF(SawtoothWave!B$16=TRUE,Sheet2!AC132,"") -> 0.500 | AH132: =IF(SawtoothWave!B$19=TRUE,Sheet2!AD132,"") -> 0.512 | AI132: =IF(SawtoothWave!B$21=TRUE,Sheet2!AE132,"") -> 0.500
C133: 1.662477046 | D133: 1.133946139 | E133: 0.929715598 | F133: 1.043894637 | G133: 0.9710434683 | H133: =IF(SquareWave!B$14=TRUE,Sheet2!D133,"") -> 1.133946139 | I133: =IF(SquareWave!$B$16=TRUE,Sheet2!E133,"") ->  | J133: =IF(SquareWave!$B$19=TRUE,Sheet2!F133,"") -> 1.043894637 | K133: =IF(SquareWave!$B$21=TRUE,Sheet2!G133,"") -> 0.9710434683 | O133: 1.035019455 | P133: 0.902834483 | Q133: 0.9454355803 | R133: 0.9592554728 | S133: 0.9675265898 | T133: =IF(TriangleWave!B$14=TRUE,Sheet2!P133,"") -> 0.902834483 | U133: =IF(TriangleWave!B$16=TRUE,Sheet2!Q133,"") -> 0.9454355803 | V133: =IF(TriangleWave!B$19=TRUE,Sheet2!R133,"") -> 0.9592554728 | W133: =IF(TriangleWave!B$21=TRUE,Sheet2!S133,"") -> 0.9675265898 | AA133: 1.624980545 | AB133: 0.535 | AC133: 0.500 | AD133: 0.535 | AE133: 0.501 | AF133: =IF(SawtoothWave!B$14=TRUE,Sheet2!AB133,"") -> 0.535 | AG133: =IF(SawtoothWave!B$16=TRUE,Sheet2!AC133,"") -> 0.500 | AH133: =IF(SawtoothWave!B$19=TRUE,Sheet2!AD133,"") -> 0.535 | AI133: =IF(SawtoothWave!B$21=TRUE,Sheet2!AE133,"") -> 0.501
C134: 1.723597526 | D134: 1.129202256 | E134: 0.9389038581 | F134: 1.030840715 | G134: 0.9871442516 | H134: =IF(SquareWave!B$14=TRUE,Sheet2!D134,"") -> 1.129202256 | I134: =IF(SquareWave!$B$16=TRUE,Sheet2!E134,"") ->  | J134: =IF(SquareWave!$B$19=TRUE,Sheet2!F134,"") -> 1.030840715 | K134: =IF(SquareWave!$B$21=TRUE,Sheet2!G134,"") -> 0.9871442516 | O134: 1.058365759 | P134: 0.8984906785 | Q134: 0.9368792687 | R134: 0.9467415852 | S134: 0.9550127023 | T134: =IF(TriangleWave!B$14=TRUE,Sheet2!P134,"") -> 0.8984906785 | U134: =IF(TriangleWave!B$16=TRUE,Sheet2!Q134,"") -> 0.9368792687 | V134: =IF(TriangleWave!B$19=TRUE,Sheet2!R134,"") -> 0.9467415852 | W134: =IF(TriangleWave!B$21=TRUE,Sheet2!S134,"") -> 0.9550127023 | AA134: 1.661634241 | AB134: 0.558 | AC134: 0.501 | AD134: 0.556 | AE134: 0.503 | AF134: =IF(SawtoothWave!B$14=TRUE,Sheet2!AB134,"") -> 0.558 | AG134: =IF(SawtoothWave!B$16=TRUE,Sheet2!AC134,"") -> 0.501 | AH134: =IF(SawtoothWave!B$19=TRUE,Sheet2!AD134,"") -> 0.556 | AI134: =IF(SawtoothWave!B$21=TRUE,Sheet2!AE134,"") -> 0.503
C135: 1.784718006 | D135: 1.122108587 | E135: 0.9521225266 | F135: 1.013297575 | G135: 1.006633182 | H135: =IF(SquareWave!B$14=TRUE,Sheet2!D135,"") -> 1.122108587 | I135: =IF(SquareWave!$B$16=TRUE,Sheet2!E135,"") ->  | J135: =IF(SquareWave!$B$19=TRUE,Sheet2!F135,"") -> 1.013297575 | K135: =IF(SquareWave!$B$21=TRUE,Sheet2!G135,"") -> 1.006633182 | O135: 1.081712062 | P135: 0.8920041834 | Q135: 0.9243291755 | R135: 0.9289223738 | S135: 0.9371934909 | T135: =IF(TriangleWave!B$14=TRUE,Sheet2!P135,"") -> 0.8920041834 | U135: =IF(TriangleWave!B$16=TRUE,Sheet2!Q135,"") -> 0.9243291755 | V135: =IF(TriangleWave!B$19=TRUE,Sheet2!R135,"") -> 0.9289223738 | W135: =IF(TriangleWave!B$21=TRUE,Sheet2!S135,"") -> 0.9371934909 | AA135: 1.698287938 | AB135: 0.581 | AC135: 0.503 | AD135: 0.577 | AE135: 0.508 | AF135: =IF(SawtoothWave!B$14=TRUE,Sheet2!AB135,"") -> 0.581 | AG135: =IF(SawtoothWave!B$16=TRUE,Sheet2!AC135,"") -> 0.503 | AH135: =IF(SawtoothWave!B$19=TRUE,Sheet2!AD135,"") -> 0.577 | AI135: =IF(SawtoothWave!B$21=TRUE,Sheet2!AE135,"") -> 0.508
C136: 1.845838485 | D136: 1.112691622 | E136: 0.9687170769 | F136: 0.9934613338 | G136: 1.025030431 | H136: =IF(SquareWave!B$14=TRUE,Sheet2!D136,"") -> 1.112691622 | I136: =IF(SquareWave!$B$16=TRUE,Sheet2!E136,"") ->  | J136: =IF(SquareWave!$B$19=TRUE,Sheet2!F136,"") -> 0.9934613338 | K136: =IF(SquareWave!$B$21=TRUE,Sheet2!G136,"") -> 1.025030431 | O136: 1.105058366 | P136: 0.8834098756 | Q136: 0.9081125643 | R136: 0.906825817 | S136: 0.915096934 | T136: =IF(TriangleWave!B$14=TRUE,Sheet2!P136,"") -> 0.8834098756 | U136: =IF(TriangleWave!B$16=TRUE,Sheet2!Q136,"") -> 0.9081125643 | V136: =IF(TriangleWave!B$19=TRUE,Sheet2!R136,"") -> 0.906825817 | W136: =IF(TriangleWave!B$21=TRUE,Sheet2!S136,"") -> 0.915096934 | AA136: 1.734941634 | AB136: 0.603 | AC136: 0.506 | AD136: 0.594 | AE136: 0.517 | AF136: =IF(SawtoothWave!B$14=TRUE,Sheet2!AB136,"") -> 0.603 | AG136: =IF(SawtoothWave!B$16=TRUE,Sheet2!AC136,"") -> 0.506 | AH136: =IF(SawtoothWave!B$19=TRUE,Sheet2!AD136,"") -> 0.594 | AI136: =IF(SawtoothWave!B$21=TRUE,Sheet2!AE136,"") -> 0.517
C137: 1.906958965 | D137: 1.100986529 | E137: 0.9878505806 | F137: 0.9738710391 | G137: 1.03798252 | H137: =IF(SquareWave!B$14=TRUE,Sheet2!D137,"") -> 1.100986529 | I137: =IF(SquareWave!$B$16=TRUE,Sheet2!E137,"") ->  | J137: =IF(SquareWave!$B$19=TRUE,Sheet2!F137,"") -> 0.9738710391 | K137: =IF(SquareWave!$B$21=TRUE,Sheet2!G137,"") -> 1.03798252 | O137: 1.128404669 | P137: 0.8727539669 | Q137: 0.8886431928 | R137: 0.8816476183 | S137: 0.8899187353 | T137: =IF(TriangleWave!B$14=TRUE,Sheet2!P137,"") -> 0.8727539669 | U137: =IF(TriangleWave!B$16=TRUE,Sheet2!Q137,"") -> 0.8886431928 | V137: =IF(TriangleWave!B$19=TRUE,Sheet2!R137,"") -> 0.8816476183 | W137: =IF(TriangleWave!B$21=TRUE,Sheet2!S137,"") -> 0.8899187353 | AA137: 1.771595331 | AB137: 0.625 | AC137: 0.510 | AD137: 0.609 | AE137: 0.530 | AF137: =IF(SawtoothWave!B$14=TRUE,Sheet2!AB137,"") -> 0.625 | AG137: =IF(SawtoothWave!B$16=TRUE,Sheet2!AC137,"") -> 0.510 | AH137: =IF(SawtoothWave!B$19=TRUE,Sheet2!AD137,"") -> 0.609 | AI137: =IF(SawtoothWave!B$21=TRUE,Sheet2!AE137,"") -> 0.530
C138: 1.968079444 | D138: 1.087037022 | E138: 1.008532815 | F138: 0.9571249349 | G138: 1.042221124 | H138: =IF(SquareWave!B$14=TRUE,Sheet2!D138,"") -> 1.087037022 | I138: =IF(SquareWave!$B$16=TRUE,Sheet2!E138,"") ->  | J138: =IF(SquareWave!$B$19=TRUE,Sheet2!F138,"") -> 0.9571249349 | K138: =IF(SquareWave!$B$21=TRUE,Sheet2!G138,"") -> 1.042221124 | O138: 1.151750973 | P138: 0.8600937543 | Q138: 0.8664033418 | R138: 0.8546292479 | S138: 0.862900365 | T138: =IF(TriangleWave!B$14=TRUE,Sheet2!P138,"") -> 0.8600937543 | U138: =IF(TriangleWave!B$16=TRUE,Sheet2!Q138,"") -> 0.8664033418 | V138: =IF(TriangleWave!B$19=TRUE,Sheet2!R138,"") -> 0.8546292479 | W138: =IF(TriangleWave!B$21=TRUE,Sheet2!S138,"") -> 0.862900365 | AA138: 1.808249027 | AB138: 0.646 | AC138: 0.516 | AD138: 0.621 | AE138: 0.546 | AF138: =IF(SawtoothWave!B$14=TRUE,Sheet2!AB138,"") -> 0.646 | AG138: =IF(SawtoothWave!B$16=TRUE,Sheet2!AC138,"") -> 0.516 | AH138: =IF(SawtoothWave!B$19=TRUE,Sheet2!AD138,"") -> 0.621 | AI138: =IF(SawtoothWave!B$21=TRUE,Sheet2!AE138,"") -> 0.546
C139: 2.029199924 | D139: 1.070895195 | E139: 1.029654767 | F139: 0.9455824248 | G139: 1.036322637 | H139: =IF(SquareWave!B$14=TRUE,Sheet2!D139,"") -> 1.070895195 | I139: =IF(SquareWave!$B$16=TRUE,Sheet2!E139,"") ->  | J139: =IF(SquareWave!$B$19=TRUE,Sheet2!F139,"") -> 0.9455824248 | K139: =IF(SquareWave!$B$21=TRUE,Sheet2!G139,"") -> 1.036322637 | O139: 1.175097276 | P139: 0.845497312 | Q139: 0.8419230139 | R139: 0.826936181 | S139: 0.835207298 | T139: =IF(TriangleWave!B$14=TRUE,Sheet2!P139,"") -> 0.845497312 | U139: =IF(TriangleWave!B$16=TRUE,Sheet2!Q139,"") -> 0.8419230139 | V139: =IF(TriangleWave!B$19=TRUE,Sheet2!R139,"") -> 0.826936181 | W139: =IF(TriangleWave!B$21=TRUE,Sheet2!S139,"") -> 0.835207298 | AA139: 1.844902724 | AB139: 0.666 | AC139: 0.525 | AD139: 0.630 | AE139: 0.566 | AF139: =IF(SawtoothWave!B$14=TRUE,Sheet2!AB139,"") -> 0.666 | AG139: =IF(SawtoothWave!B$16=TRUE,Sheet2!AC139,"") -> 0.525 | AH139: =IF(SawtoothWave!B$19=TRUE,Sheet2!AD139,"") -> 0.630 | AI139: =IF(SawtoothWave!B$21=TRUE,Sheet2!AE139,"") -> 0.566
C140: 2.090320404 | D140: 1.052621332 | E140: 1.050027363 | F140: 0.9410813945 | G140: 1.02110747 | H140: =IF(SquareWave!B$14=TRUE,Sheet2!D140,"") -> 1.052621332 | I140: =IF(SquareWave!$B$16=TRUE,Sheet2!E140,"") ->  | J140: =IF(SquareWave!$B$19=TRUE,Sheet2!F140,"") -> 0.9410813945 | K140: =IF(SquareWave!$B$21=TRUE,Sheet2!G140,"") -> 1.02110747 | O140: 1.19844358 | P140: 0.8290431252 | Q140: 0.8157572935 | R140: 0.7995507487 | S140: 0.8078218658 | T140: =IF(TriangleWave!B$14=TRUE,Sheet2!P140,"") -> 0.8290431252 | U140: =IF(TriangleWave!B$16=TRUE,Sheet2!Q140,"") -> 0.8157572935 | V140: =IF(TriangleWave!B$19=TRUE,Sheet2!R140,"") -> 0.7995507487 | W140: =IF(TriangleWave!B$21=TRUE,Sheet2!S140,"") -> 0.8078218658 | AA140: 1.88155642 | AB140: 0.686 | AC140: 0.535 | AD140: 0.636 | AE140: 0.588 | AF140: =IF(SawtoothWave!B$14=TRUE,Sheet2!AB140,"") -> 0.686 | AG140: =IF(SawtoothWave!B$16=TRUE,Sheet2!AC140,"") -> 0.535 | AH140: =IF(SawtoothWave!B$19=TRUE,Sheet2!AD140,"") -> 0.636 | AI140: =IF(SawtoothWave!B$21=TRUE,Sheet2!AE140,"") -> 0.588
C141: 2.151440883 | D141: 1.032283676 | E141: 1.068423135 | F141: 0.9446993712 | G141: 0.9995846376 | H141: =IF(SquareWave!B$14=TRUE,Sheet2!D141,"") -> 1.032283676 | I141: =IF(SquareWave!$B$16=TRUE,Sheet2!E141,"") ->  | J141: =IF(SquareWave!$B$19=TRUE,Sheet2!F141,"") -> 0.9446993712 | K141: =IF(SquareWave!$B$21=TRUE,Sheet2!G141,"") -> 0.9995846376 | O141: 1.221789883 | P141: 0.8108196683 | Q141: 0.7884629435 | R141: 0.7731919176 | S141: 0.7814630347 | T141: =IF(TriangleWave!B$14=TRUE,Sheet2!P141,"") -> 0.8108196683 | U141: =IF(TriangleWave!B$16=TRUE,Sheet2!Q141,"") -> 0.7884629435 | V141: =IF(TriangleWave!B$19=TRUE,Sheet2!R141,"") -> 0.7731919176 | W141: =IF(TriangleWave!B$21=TRUE,Sheet2!S141,"") -> 0.7814630347 | AA141: 1.918210117 | AB141: 0.704 | AC141: 0.548 | AD141: 0.640 | AE141: 0.612 | AF141: =IF(SawtoothWave!B$14=TRUE,Sheet2!AB141,"") -> 0.704 | AG141: =IF(SawtoothWave!B$16=TRUE,Sheet2!AC141,"") -> 0.548 | AH141: =IF(SawtoothWave!B$19=TRUE,Sheet2!AD141,"") -> 0.640 | AI141: =IF(SawtoothWave!B$21=TRUE,Sheet2!AE141,"") -> 0.612
C142: 2.212561363 | D142: 1.009958181 | E142: 1.083619408 | F142: 0.9565831112 | G142: 0.9764331464 | H142: =IF(SquareWave!B$14=TRUE,Sheet2!D142,"") -> 1.009958181 | I142: =IF(SquareWave!$B$16=TRUE,Sheet2!E142,"") ->  | J142: =IF(SquareWave!$B$19=TRUE,Sheet2!F142,"") -> 0.9565831112 | K142: =IF(SquareWave!$B$21=TRUE,Sheet2!G142,"") -> 0.9764331464 | O142: 1.245136187 | P142: 0.7909249292 | Q142: 0.7605753486 | R142: 0.7482706622 | S142: 0.7565417792 | T142: =IF(TriangleWave!B$14=TRUE,Sheet2!P142,"") -> 0.7909249292 | U142: =IF(TriangleWave!B$16=TRUE,Sheet2!Q142,"") -> 0.7605753486 | V142: =IF(TriangleWave!B$19=TRUE,Sheet2!R142,"") -> 0.7482706622 | W142: =IF(TriangleWave!B$21=TRUE,Sheet2!S142,"") -> 0.7565417792 | AA142: 1.954863813 | AB142: 0.722 | AC142: 0.563 | AD142: 0.641 | AE142: 0.636 | AF142: =IF(SawtoothWave!B$14=TRUE,Sheet2!AB142,"") -> 0.722 | AG142: =IF(SawtoothWave!B$16=TRUE,Sheet2!AC142,"") -> 0.563 | AH142: =IF(SawtoothWave!B$19=TRUE,Sheet2!AD142,"") -> 0.641 | AI142: =IF(SawtoothWave!B$21=TRUE,Sheet2!AE142,"") -> 0.636
C143: 2.273681843 | D143: 0.985728221 | E143: 1.094441553 | F143: 0.9758649521 | G143: 0.957101298 | H143: =IF(SquareWave!B$14=TRUE,Sheet2!D143,"") -> 0.985728221 | I143: =IF(SquareWave!$B$16=TRUE,Sheet2!E143,"") ->  | J143: =IF(SquareWave!$B$19=TRUE,Sheet2!F143,"") -> 0.9758649521 | K143: =IF(SquareWave!$B$21=TRUE,Sheet2!G143,"") -> 0.957101298 | O143: 1.26848249 | P143: 0.7694658822 | Q143: 0.7325868971 | R143: 0.7248848916 | S143: 0.7331560086 | T143: =IF(TriangleWave!B$14=TRUE,Sheet2!P143,"") -> 0.7694658822 | U143: =IF(TriangleWave!B$16=TRUE,Sheet2!Q143,"") -> 0.7325868971 | V143: =IF(TriangleWave!B$19=TRUE,Sheet2!R143,"") -> 0.7248848916 | W143: =IF(TriangleWave!B$21=TRUE,Sheet2!S143,"") -> 0.7331560086 | AA143: 1.99151751 | AB143: 0.738 | AC143: 0.580 | AD143: 0.641 | AE143: 0.659 | AF143: =IF(SawtoothWave!B$14=TRUE,Sheet2!AB143,"") -> 0.738 | AG143: =IF(SawtoothWave!B$16=TRUE,Sheet2!AC143,"") -> 0.580 | AH143: =IF(SawtoothWave!B$19=TRUE,Sheet2!AD143,"") -> 0.641 | AI143: =IF(SawtoothWave!B$21=TRUE,Sheet2!AE143,"") -> 0.659
C144: 2.334802322 | D144: 0.9596842847 | E144: 1.099804855 | F144: 1.000676234 | G144: 0.9466815015 | H144: =IF(SquareWave!B$14=TRUE,Sheet2!D144,"") -> 0.9596842847 | I144: =IF(SquareWave!$B$16=TRUE,Sheet2!E144,"") ->  | J144: =IF(SquareWave!$B$19=TRUE,Sheet2!F144,"") -> 1.000676234 | K144: =IF(SquareWave!$B$21=TRUE,Sheet2!G144,"") -> 0.9466815015 | O144: 1.291828794 | P144: 0.7465579129 | Q144: 0.7049278216 | R144: 0.7028527496 | S144: 0.7111238666 | T144: =IF(TriangleWave!B$14=TRUE,Sheet2!P144,"") -> 0.7465579129 | U144: =IF(TriangleWave!B$16=TRUE,Sheet2!Q144,"") -> 0.7049278216 | V144: =IF(TriangleWave!B$19=TRUE,Sheet2!R144,"") -> 0.7028527496 | W144: =IF(TriangleWave!B$21=TRUE,Sheet2!S144,"") -> 0.7111238666 | AA144: 2.028171206 | AB144: 0.753 | AC144: 0.599 | AD144: 0.639 | AE144: 0.679 | AF144: =IF(SawtoothWave!B$14=TRUE,Sheet2!AB144,"") -> 0.753 | AG144: =IF(SawtoothWave!B$16=TRUE,Sheet2!AC144,"") -> 0.599 | AH144: =IF(SawtoothWave!B$19=TRUE,Sheet2!AD144,"") -> 0.639 | AI144: =IF(SawtoothWave!B$21=TRUE,Sheet2!AE144,"") -> 0.679
C145: 2.395922802 | D145: 0.9319236343 | E145: 1.098753575 | F145: 1.028259008 | G145: 0.9487670788 | H145: =IF(SquareWave!B$14=TRUE,Sheet2!D145,"") -> 0.9319236343 | I145: =IF(SquareWave!$B$16=TRUE,Sheet2!E145,"") ->  | J145: =IF(SquareWave!$B$19=TRUE,Sheet2!F145,"") -> 1.028259008 | K145: =IF(SquareWave!$B$21=TRUE,Sheet2!G145,"") -> 0.9487670788 | O145: 1.315175097 | P145: 0.7223241979 | Q145: 0.6779503959 | R145: 0.6817782114 | S145: 0.6900493284 | T145: =IF(TriangleWave!B$14=TRUE,Sheet2!P145,"") -> 0.7223241979 | U145: =IF(TriangleWave!B$16=TRUE,Sheet2!Q145,"") -> 0.6779503959 | V145: =IF(TriangleWave!B$19=TRUE,Sheet2!R145,"") -> 0.6817782114 | W145: =IF(TriangleWave!B$21=TRUE,Sheet2!S145,"") -> 0.6900493284 | AA145: 2.064824903 | AB145: 0.766 | AC145: 0.620 | AD145: 0.638 | AE145: 0.696 | AF145: =IF(SawtoothWave!B$14=TRUE,Sheet2!AB145,"") -> 0.766 | AG145: =IF(SawtoothWave!B$16=TRUE,Sheet2!AC145,"") -> 0.620 | AH145: =IF(SawtoothWave!B$19=TRUE,Sheet2!AD145,"") -> 0.638 | AI145: =IF(SawtoothWave!B$21=TRUE,Sheet2!AE145,"") -> 0.696
C146: 2.457043282 | D146: 0.9025499434 | E146: 1.090495893 | F146: 1.055167987 | G146: 0.9645092407 | H146: =IF(SquareWave!B$14=TRUE,Sheet2!D146,"") -> 0.9025499434 | I146: =IF(SquareWave!$B$16=TRUE,Sheet2!E146,"") ->  | J146: =IF(SquareWave!$B$19=TRUE,Sheet2!F146,"") -> 1.055167987 | K146: =IF(SquareWave!$B$21=TRUE,Sheet2!G146,"") -> 0.9645092407 | O146: 1.338521401 | P146: 0.6968950421 | Q146: 0.6519172263 | R146: 0.6611388865 | S146: 0.6694100035 | T146: =IF(TriangleWave!B$14=TRUE,Sheet2!P146,"") -> 0.6968950421 | U146: =IF(TriangleWave!B$16=TRUE,Sheet2!Q146,"") -> 0.6519172263 | V146: =IF(TriangleWave!B$19=TRUE,Sheet2!R146,"") -> 0.6611388865 | W146: =IF(TriangleWave!B$21=TRUE,Sheet2!S146,"") -> 0.6694100035 | AA146: 2.101478599 | AB146: 0.778 | AC146: 0.643 | AD146: 0.638 | AE146: 0.709 | AF146: =IF(SawtoothWave!B$14=TRUE,Sheet2!AB146,"") -> 0.778 | AG146: =IF(SawtoothWave!B$16=TRUE,Sheet2!AC146,"") -> 0.643 | AH146: =IF(SawtoothWave!B$19=TRUE,Sheet2!AD146,"") -> 0.638 | AI146: =IF(SawtoothWave!B$21=TRUE,Sheet2!AE146,"") -> 0.709
C147: 2.518163761 | D147: 0.8716729095 | E147: 1.074433543 | F147: 1.077546074 | G147: 0.9920639833 | H147: =IF(SquareWave!B$14=TRUE,Sheet2!D147,"") -> 0.8716729095 | I147: =IF(SquareWave!$B$16=TRUE,Sheet2!E147,"") ->  | J147: =IF(SquareWave!$B$19=TRUE,Sheet2!F147,"") -> 1.077546074 | K147: =IF(SquareWave!$B$21=TRUE,Sheet2!G147,"") -> 0.9920639833 | O147: 1.361867704 | P147: 0.6704071787 | Q147: 0.6269941714 | R147: 0.6403833317 | S147: 0.6486544488 | T147: =IF(TriangleWave!B$14=TRUE,Sheet2!P147,"") -> 0.6704071787 | U147: =IF(TriangleWave!B$16=TRUE,Sheet2!Q147,"") -> 0.6269941714 | V147: =IF(TriangleWave!B$19=TRUE,Sheet2!R147,"") -> 0.6403833317 | W147: =IF(TriangleWave!B$21=TRUE,Sheet2!S147,"") -> 0.6486544488 | AA147: 2.138132296 | AB147: 0.789 | AC147: 0.667 | AD147: 0.639 | AE147: 0.718 | AF147: =IF(SawtoothWave!B$14=TRUE,Sheet2!AB147,"") -> 0.789 | AG147: =IF(SawtoothWave!B$16=TRUE,Sheet2!AC147,"") -> 0.667 | AH147: =IF(SawtoothWave!B$19=TRUE,Sheet2!AD147,"") -> 0.639 | AI147: =IF(SawtoothWave!B$21=TRUE,Sheet2!AE147,"") -> 0.718
C148: 2.579284241 | D148: 0.8394078445 | E148: 1.050185142 | F148: 1.091449675 | G148: 1.026554495 | H148: =IF(SquareWave!B$14=TRUE,Sheet2!D148,"") -> 0.8394078445 | I148: =IF(SquareWave!$B$16=TRUE,Sheet2!E148,"") ->  | J148: =IF(SquareWave!$B$19=TRUE,Sheet2!F148,"") -> 1.091449675 | K148: =IF(SquareWave!$B$21=TRUE,Sheet2!G148,"") -> 1.026554495 | O148: 1.385214008 | P148: 0.6430030331 | Q148: 0.6032482018 | R148: 0.6190243021 | S148: 0.6272954192 | T148: =IF(TriangleWave!B$14=TRUE,Sheet2!P148,"") -> 0.6430030331 | U148: =IF(TriangleWave!B$16=TRUE,Sheet2!Q148,"") -> 0.6032482018 | V148: =IF(TriangleWave!B$19=TRUE,Sheet2!R148,"") -> 0.6190243021 | W148: =IF(TriangleWave!B$21=TRUE,Sheet2!S148,"") -> 0.6272954192 | AA148: 2.174785992 | AB148: 0.798 | AC148: 0.693 | AD148: 0.643 | AE148: 0.722 | AF148: =IF(SawtoothWave!B$14=TRUE,Sheet2!AB148,"") -> 0.798 | AG148: =IF(SawtoothWave!B$16=TRUE,Sheet2!AC148,"") -> 0.693 | AH148: =IF(SawtoothWave!B$19=TRUE,Sheet2!AD148,"") -> 0.643 | AI148: =IF(SawtoothWave!B$21=TRUE,Sheet2!AE148,"") -> 0.722
C149: 2.640404721 | D149: 0.8058752438 | E149: 1.017602406 | F149: 1.093195031 | G149: 1.060585716 | H149: =IF(SquareWave!B$14=TRUE,Sheet2!D149,"") -> 0.8058752438 | I149: =IF(SquareWave!$B$16=TRUE,Sheet2!E149,"") ->  | J149: =IF(SquareWave!$B$19=TRUE,Sheet2!F149,"") -> 1.093195031 | K149: =IF(SquareWave!$B$21=TRUE,Sheet2!G149,"") -> 1.060585716 | O149: 1.408560311 | P149: 0.614829958 | Q149: 0.5806502737 | R149: 0.5967153259 | S149: 0.6049864429 | T149: =IF(TriangleWave!B$14=TRUE,Sheet2!P149,"") -> 0.614829958 | U149: =IF(TriangleWave!B$16=TRUE,Sheet2!Q149,"") -> 0.5806502737 | V149: =IF(TriangleWave!B$19=TRUE,Sheet2!R149,"") -> 0.5967153259 | W149: =IF(TriangleWave!B$21=TRUE,Sheet2!S149,"") -> 0.6049864429 | AA149: 2.211439689 | AB149: 0.805 | AC149: 0.719 | AD149: 0.650 | AE149: 0.722 | AF149: =IF(SawtoothWave!B$14=TRUE,Sheet2!AB149,"") -> 0.805 | AG149: =IF(SawtoothWave!B$16=TRUE,Sheet2!AC149,"") -> 0.719 | AH149: =IF(SawtoothWave!B$19=TRUE,Sheet2!AD149,"") -> 0.650 | AI149: =IF(SawtoothWave!B$21=TRUE,Sheet2!AE149,"") -> 0.722
C150: 2.7015252 | D150: 0.7712003367 | E150: 0.9767787185 | F150: 1.0796944 | G150: 1.085249584 | H150: =IF(SquareWave!B$14=TRUE,Sheet2!D150,"") -> 0.7712003367 | I150: =IF(SquareWave!$B$16=TRUE,Sheet2!E150,"") ->  | J150: =IF(SquareWave!$B$19=TRUE,Sheet2!F150,"") -> 1.0796944 | K150: =IF(SquareWave!$B$21=TRUE,Sheet2!G150,"") -> 1.085249584 | O150: 1.431906615 | P150: 0.5860394405 | Q150: 0.5590830414 | R150: 0.5733006312 | S150: 0.5815717482 | T150: =IF(TriangleWave!B$14=TRUE,Sheet2!P150,"") -> 0.5860394405 | U150: =IF(TriangleWave!B$16=TRUE,Sheet2!Q150,"") -> 0.5590830414 | V150: =IF(TriangleWave!B$19=TRUE,Sheet2!R150,"") -> 0.5733006312 | W150: =IF(TriangleWave!B$21=TRUE,Sheet2!S150,"") -> 0.5815717482 | AA150: 2.248093385 | AB150: 0.811 | AC150: 0.745 | AD150: 0.660 | AE150: 0.720 | AF150: =IF(SawtoothWave!B$14=TRUE,Sheet2!AB150,"") -> 0.811 | AG150: =IF(SawtoothWave!B$16=TRUE,Sheet2!AC150,"") -> 0.745 | AH150: =IF(SawtoothWave!B$19=TRUE,Sheet2!AD150,"") -> 0.660 | AI150: =IF(SawtoothWave!B$21=TRUE,Sheet2!AE150,"") -> 0.720
C151: 2.76264568 | D151: 0.7355126183 | E151: 0.9280497272 | F151: 1.048751451 | G151: 1.091469675 | H151: =IF(SquareWave!B$14=TRUE,Sheet2!D151,"") -> 0.7355126183 | I151: =IF(SquareWave!$B$16=TRUE,Sheet2!E151,"") ->  | J151: =IF(SquareWave!$B$19=TRUE,Sheet2!F151,"") -> 1.048751451 | K151: =IF(SquareWave!$B$21=TRUE,Sheet2!G151,"") -> 1.091469675 | O151: 1.455252918 | P151: 0.5567862875 | Q151: 0.5383530064 | R151: 0.5488324047 | S151: 0.5571035217 | T151: =IF(TriangleWave!B$14=TRUE,Sheet2!P151,"") -> 0.5567862875 | U151: =IF(TriangleWave!B$16=TRUE,Sheet2!Q151,"") -> 0.5383530064 | V151: =IF(TriangleWave!B$19=TRUE,Sheet2!R151,"") -> 0.5488324047 | W151: =IF(TriangleWave!B$21=TRUE,Sheet2!S151,"") -> 0.5571035217 | AA151: 2.284747082 | AB151: 0.815 | AC151: 0.771 | AD151: 0.674 | AE151: 0.717 | AF151: =IF(SawtoothWave!B$14=TRUE,Sheet2!AB151,"") -> 0.815 | AG151: =IF(SawtoothWave!B$16=TRUE,Sheet2!AC151,"") -> 0.771 | AH151: =IF(SawtoothWave!B$19=TRUE,Sheet2!AD151,"") -> 0.674 | AI151: =IF(SawtoothWave!B$21=TRUE,Sheet2!AE151,"") -> 0.717
C152: 2.823766159 | D152: 0.6989453662 | E152: 0.8719859484 | F152: 0.9992884994 | G152: 1.07146875 | H152: =IF(SquareWave!B$14=TRUE,Sheet2!D152,"") -> 0.6989453662 | I152: =IF(SquareWave!$B$16=TRUE,Sheet2!E152,"") ->  | J152: =IF(SquareWave!$B$19=TRUE,Sheet2!F152,"") -> 0.9992884994 | K152: =IF(SquareWave!$B$21=TRUE,Sheet2!G152,"") -> 1.07146875 | O152: 1.478599222 | P152: 0.5272277937 | Q152: 0.5182064803 | R152: 0.5235540819 | S152: 0.531825199 | T152: =IF(TriangleWave!B$14=TRUE,Sheet2!P152,"") -> 0.5272277937 | U152: =IF(TriangleWave!B$16=TRUE,Sheet2!Q152,"") -> 0.5182064803 | V152: =IF(TriangleWave!B$19=TRUE,Sheet2!R152,"") -> 0.5235540819 | W152: =IF(TriangleWave!B$21=TRUE,Sheet2!S152,"") -> 0.531825199 | AA152: 2.321400778 | AB152: 0.818 | AC152: 0.796 | AD152: 0.692 | AE152: 0.713 | AF152: =IF(SawtoothWave!B$14=TRUE,Sheet2!AB152,"") -> 0.818 | AG152: =IF(SawtoothWave!B$16=TRUE,Sheet2!AC152,"") -> 0.796 | AH152: =IF(SawtoothWave!B$19=TRUE,Sheet2!AD152,"") -> 0.692 | AI152: =IF(SawtoothWave!B$21=TRUE,Sheet2!AE152,"") -> 0.713
C153: 2.884886639 | D153: 0.6616351427 | E153: 0.8093776107 | F153: 0.931484086 | G153: 1.020114094 | H153: =IF(SquareWave!B$14=TRUE,Sheet2!D153,"") -> 0.6616351427 | I153: =IF(SquareWave!$B$16=TRUE,Sheet2!E153,"") ->  | J153: =IF(SquareWave!$B$19=TRUE,Sheet2!F153,"") -> 0.931484086 | K153: =IF(SquareWave!$B$21=TRUE,Sheet2!G153,"") -> 1.020114094 | O153: 1.501945525 | P153: 0.4975228957 | Q153: 0.498348556 | R153: 0.4978532092 | S153: 0.5061243262 | T153: =IF(TriangleWave!B$14=TRUE,Sheet2!P153,"") -> 0.4975228957 | U153: =IF(TriangleWave!B$16=TRUE,Sheet2!Q153,"") -> 0.498348556 | V153: =IF(TriangleWave!B$19=TRUE,Sheet2!R153,"") -> 0.4978532092 | W153: =IF(TriangleWave!B$21=TRUE,Sheet2!S153,"") -> 0.5061243262 | AA153: 2.358054475 | AB153: 0.818 | AC153: 0.820 | AD153: 0.714 | AE153: 0.712 | AF153: =IF(SawtoothWave!B$14=TRUE,Sheet2!AB153,"") -> 0.818 | AG153: =IF(SawtoothWave!B$16=TRUE,Sheet2!AC153,"") -> 0.820 | AH153: =IF(SawtoothWave!B$19=TRUE,Sheet2!AD153,"") -> 0.714 | AI153: =IF(SawtoothWave!B$21=TRUE,Sheet2!AE153,"") -> 0.712
C154: 2.946007119 | D154: 0.6237212845 | E154: 0.741212229 | F154: 0.8468072373 | G154: 0.9359092599 | H154: =IF(SquareWave!B$14=TRUE,Sheet2!D154,"") -> 0.6237212845 | I154: =IF(SquareWave!$B$16=TRUE,Sheet2!E154,"") ->  | J154: =IF(SquareWave!$B$19=TRUE,Sheet2!F154,"") -> 0.8468072373 | K154: =IF(SquareWave!$B$21=TRUE,Sheet2!G154,"") -> 0.9359092599 | O154: 1.525291829 | P154: 0.4678313171 | Q154: 0.4784641379 | R154: 0.4721917164 | S154: 0.4804628335 | T154: =IF(TriangleWave!B$14=TRUE,Sheet2!P154,"") -> 0.4678313171 | U154: =IF(TriangleWave!B$16=TRUE,Sheet2!Q154,"") -> 0.4784641379 | V154: =IF(TriangleWave!B$19=TRUE,Sheet2!R154,"") -> 0.4721917164 | W154: =IF(TriangleWave!B$21=TRUE,Sheet2!S154,"") -> 0.4804628335 | AA154: 2.394708171 | AB154: 0.817 | AC154: 0.842 | AD154: 0.739 | AE154: 0.715 | AF154: =IF(SawtoothWave!B$14=TRUE,Sheet2!AB154,"") -> 0.817 | AG154: =IF(SawtoothWave!B$16=TRUE,Sheet2!AC154,"") -> 0.842 | AH154: =IF(SawtoothWave!B$19=TRUE,Sheet2!AD154,"") -> 0.739 | AI154: =IF(SawtoothWave!B$21=TRUE,Sheet2!AE154,"") -> 0.715
C155: 3.007127598 | D155: 0.5853453831 | E155: 0.6686456472 | F155: 0.7479438856 | G155: 0.821455087 | H155: =IF(SquareWave!B$14=TRUE,Sheet2!D155,"") -> 0.5853453831 | I155: =IF(SquareWave!$B$16=TRUE,Sheet2!E155,"") ->  | J155: =IF(SquareWave!$B$19=TRUE,Sheet2!F155,"") -> 0.7479438856 | K155: =IF(SquareWave!$B$21=TRUE,Sheet2!G155,"") -> 0.821455087 | O155: 1.548638132 | P155: 0.43831271 | Q155: 0.4582399787 | R155: 0.4470246217 | S155: 0.4552957388 | T155: =IF(TriangleWave!B$14=TRUE,Sheet2!P155,"") -> 0.43831271 | U155: =IF(TriangleWave!B$16=TRUE,Sheet2!Q155,"") -> 0.4582399787 | V155: =IF(TriangleWave!B$19=TRUE,Sheet2!R155,"") -> 0.4470246217 | W155: =IF(TriangleWave!B$21=TRUE,Sheet2!S155,"") -> 0.4552957388 | AA155: 2.431361868 | AB155: 0.815 | AC155: 0.862 | AD155: 0.767 | AE155: 0.722 | AF155: =IF(SawtoothWave!B$14=TRUE,Sheet2!AB155,"") -> 0.815 | AG155: =IF(SawtoothWave!B$16=TRUE,Sheet2!AC155,"") -> 0.862 | AH155: =IF(SawtoothWave!B$19=TRUE,Sheet2!AD155,"") -> 0.767 | AI155: =IF(SawtoothWave!B$21=TRUE,Sheet2!AE155,"") -> 0.722
C156: 3.068248078 | D156: 0.546650755 | E156: 0.5929675038 | F156: 0.6386205448 | G156: 0.6832887191 | H156: =IF(SquareWave!B$14=TRUE,Sheet2!D156,"") -> 0.546650755 | I156: =IF(SquareWave!$B$16=TRUE,Sheet2!E156,"") ->  | J156: =IF(SquareWave!$B$19=TRUE,Sheet2!F156,"") -> 0.6386205448 | K156: =IF(SquareWave!$B$21=TRUE,Sheet2!G156,"") -> 0.6832887191 | O156: 1.571984436 | P156: 0.4091257964 | Q156: 0.4373866235 | R156: 0.4227198078 | S156: 0.4309909249 | T156: =IF(TriangleWave!B$14=TRUE,Sheet2!P156,"") -> 0.4091257964 | U156: =IF(TriangleWave!B$16=TRUE,Sheet2!Q156,"") -> 0.4373866235 | V156: =IF(TriangleWave!B$19=TRUE,Sheet2!R156,"") -> 0.4227198078 | W156: =IF(TriangleWave!B$21=TRUE,Sheet2!S156,"") -> 0.4309909249 | AA156: 2.468015564 | AB156: 0.810 | AC156: 0.880 | AD156: 0.797 | AE156: 0.735 | AF156: =IF(SawtoothWave!B$14=TRUE,Sheet2!AB156,"") -> 0.810 | AG156: =IF(SawtoothWave!B$16=TRUE,Sheet2!AC156,"") -> 0.880 | AH156: =IF(SawtoothWave!B$19=TRUE,Sheet2!AD156,"") -> 0.797 | AI156: =IF(SawtoothWave!B$21=TRUE,Sheet2!AE156,"") -> 0.735
C157: 3.129368558 | D157: 0.5077819074 | E157: 0.5155622643 | F157: 0.5233395211 | G157: 0.531112129 | H157: =IF(SquareWave!B$14=TRUE,Sheet2!D157,"") -> 0.5077819074 | I157: =IF(SquareWave!$B$16=TRUE,Sheet2!E157,"") ->  | J157: =IF(SquareWave!$B$19=TRUE,Sheet2!F157,"") -> 0.5233395211 | K157: =IF(SquareWave!$B$21=TRUE,Sheet2!G157,"") -> 0.531112129 | O157: 1.595330739 | P157: 0.3804275149 | Q157: 0.4156591683 | R157: 0.3994913634 | S157: 0.4077624804 | T157: =IF(TriangleWave!B$14=TRUE,Sheet2!P157,"") -> 0.3804275149 | U157: =IF(TriangleWave!B$16=TRUE,Sheet2!Q157,"") -> 0.4156591683 | V157: =IF(TriangleWave!B$19=TRUE,Sheet2!R157,"") -> 0.3994913634 | W157: =IF(TriangleWave!B$21=TRUE,Sheet2!S157,"") -> 0.4077624804 | AA157: 2.504669261 | AB157: 0.804 | AC157: 0.894 | AD157: 0.828 | AE157: 0.754 | AF157: =IF(SawtoothWave!B$14=TRUE,Sheet2!AB157,"") -> 0.804 | AG157: =IF(SawtoothWave!B$16=TRUE,Sheet2!AC157,"") -> 0.894 | AH157: =IF(SawtoothWave!B$19=TRUE,Sheet2!AD157,"") -> 0.828 | AI157: =IF(SawtoothWave!B$21=TRUE,Sheet2!AE157,"") -> 0.754
C158: 3.190489037 | D158: 0.4688839978 | E158: 0.4378671084 | F158: 0.4070478764 | G158: 0.3765237137 | H158: =IF(SquareWave!B$14=TRUE,Sheet2!D158,"") -> 0.4688839978 | I158: =IF(SquareWave!$B$16=TRUE,Sheet2!E158,"") ->  | J158: =IF(SquareWave!$B$19=TRUE,Sheet2!F158,"") -> 0.4070478764 | K158: =IF(SquareWave!$B$21=TRUE,Sheet2!G158,"") -> 0.3765237137 | O158: 1.618677043 | P158: 0.3523721765 | Q158: 0.3928757922 | R158: 0.377357077 | S158: 0.385628194 | T158: =IF(TriangleWave!B$14=TRUE,Sheet2!P158,"") -> 0.3523721765 | U158: =IF(TriangleWave!B$16=TRUE,Sheet2!Q158,"") -> 0.3928757922 | V158: =IF(TriangleWave!B$19=TRUE,Sheet2!R158,"") -> 0.377357077 | W158: =IF(TriangleWave!B$21=TRUE,Sheet2!S158,"") -> 0.385628194 | AA158: 2.541322957 | AB158: 0.796 | AC158: 0.904 | AD158: 0.858 | AE158: 0.779 | AF158: =IF(SawtoothWave!B$14=TRUE,Sheet2!AB158,"") -> 0.796 | AG158: =IF(SawtoothWave!B$16=TRUE,Sheet2!AC158,"") -> 0.904 | AH158: =IF(SawtoothWave!B$19=TRUE,Sheet2!AD158,"") -> 0.858 | AI158: =IF(SawtoothWave!B$21=TRUE,Sheet2!AE158,"") -> 0.779
C159: 3.251609517 | D159: 0.4301022925 | E159: 0.3613280699 | F159: 0.2947683129 | G159: 0.2314501123 | H159: =IF(SquareWave!B$14=TRUE,Sheet2!D159,"") -> 0.4301022925 | I159: =IF(SquareWave!$B$16=TRUE,Sheet2!E159,"") ->  | J159: =IF(SquareWave!$B$19=TRUE,Sheet2!F159,"") -> 0.2947683129 | K159: =IF(SquareWave!$B$21=TRUE,Sheet2!G159,"") -> 0.2314501123 | O159: 1.642023346 | P159: 0.3251106352 | Q159: 0.368933136 | R159: 0.3561272701 | S159: 0.3643983871 | T159: =IF(TriangleWave!B$14=TRUE,Sheet2!P159,"") -> 0.3251106352 | U159: =IF(TriangleWave!B$16=TRUE,Sheet2!Q159,"") -> 0.368933136 | V159: =IF(TriangleWave!B$19=TRUE,Sheet2!R159,"") -> 0.3561272701 | W159: =IF(TriangleWave!B$21=TRUE,Sheet2!S159,"") -> 0.3643983871 | AA159: 2.577976654 | AB159: 0.787 | AC159: 0.911 | AD159: 0.887 | AE159: 0.809 | AF159: =IF(SawtoothWave!B$14=TRUE,Sheet2!AB159,"") -> 0.787 | AG159: =IF(SawtoothWave!B$16=TRUE,Sheet2!AC159,"") -> 0.911 | AH159: =IF(SawtoothWave!B$19=TRUE,Sheet2!AD159,"") -> 0.887 | AI159: =IF(SawtoothWave!B$21=TRUE,Sheet2!AE159,"") -> 0.809
C160: 3.312729997 | D160: 0.3915816236 | E160: 0.2873558836 | F160: 0.1912235766 | G160: 0.1065260044 | H160: =IF(SquareWave!B$14=TRUE,Sheet2!D160,"") -> 0.3915816236 | I160: =IF(SquareWave!$B$16=TRUE,Sheet2!E160,"") ->  | J160: =IF(SquareWave!$B$19=TRUE,Sheet2!F160,"") -> 0.1912235766 | K160: =IF(SquareWave!$B$21=TRUE,Sheet2!G160,"") -> 0.1065260044 | O160: 1.66536965 | P160: 0.2987894768 | Q160: 0.3438177495 | R160: 0.3354277236 | S160: 0.3436988406 | T160: =IF(TriangleWave!B$14=TRUE,Sheet2!P160,"") -> 0.2987894768 | U160: =IF(TriangleWave!B$16=TRUE,Sheet2!Q160,"") -> 0.3438177495 | V160: =IF(TriangleWave!B$19=TRUE,Sheet2!R160,"") -> 0.3354277236 | W160: =IF(TriangleWave!B$21=TRUE,Sheet2!S160,"") -> 0.3436988406 | AA160: 2.61463035 | AB160: 0.776 | AC160: 0.913 | AD160: 0.912 | AE160: 0.843 | AF160: =IF(SawtoothWave!B$14=TRUE,Sheet2!AB160,"") -> 0.776 | AG160: =IF(SawtoothWave!B$16=TRUE,Sheet2!AC160,"") -> 0.913 | AH160: =IF(SawtoothWave!B$19=TRUE,Sheet2!AD160,"") -> 0.912 | AI160: =IF(SawtoothWave!B$21=TRUE,Sheet2!AE160,"") -> 0.843
C161: 3.373850476 | D161: 0.3534658487 | E161: 0.2172830011 | F161: 0.1004865552 | G161: 0.009678436302 | H161: =IF(SquareWave!B$14=TRUE,Sheet2!D161,"") -> 0.3534658487 | I161: =IF(SquareWave!$B$16=TRUE,Sheet2!E161,"") ->  | J161: =IF(SquareWave!$B$19=TRUE,Sheet2!F161,"") -> 0.1004865552 | K161: =IF(SquareWave!$B$21=TRUE,Sheet2!G161,"") -> 0.009678436302 | O161: 1.688715953 | P161: 0.2735502305 | Q161: 0.3176130197 | R161: 0.3147545833 | S161: 0.3230257003 | T161: =IF(TriangleWave!B$14=TRUE,Sheet2!P161,"") -> 0.2735502305 | U161: =IF(TriangleWave!B$16=TRUE,Sheet2!Q161,"") -> 0.3176130197 | V161: =IF(TriangleWave!B$19=TRUE,Sheet2!R161,"") -> 0.3147545833 | W161: =IF(TriangleWave!B$21=TRUE,Sheet2!S161,"") -> 0.3230257003 | AA161: 2.651284047 | AB161: 0.764 | AC161: 0.911 | AD161: 0.933 | AE161: 0.878 | AF161: =IF(SawtoothWave!B$14=TRUE,Sheet2!AB161,"") -> 0.764 | AG161: =IF(SawtoothWave!B$16=TRUE,Sheet2!AC161,"") -> 0.911 | AH161: =IF(SawtoothWave!B$19=TRUE,Sheet2!AD161,"") -> 0.933 | AI161: =IF(SawtoothWave!B$21=TRUE,Sheet2!AE161,"") -> 0.878
C162: 3.434970956 | D162: 0.3158973129 | E162: 0.1523232041 | F162: 0.02568593958 | G162: -0.05486232445 | H162: =IF(SquareWave!B$14=TRUE,Sheet2!D162,"") -> 0.3158973129 | I162: =IF(SquareWave!$B$16=TRUE,Sheet2!E162,"") ->  | J162: =IF(SquareWave!$B$19=TRUE,Sheet2!F162,"") -> 0.02568593958 | K162: =IF(SquareWave!$B$21=TRUE,Sheet2!G162,"") -> -0.05486232445 | O162: 1.712062257 | P162: 0.2495286081 | Q162: 0.290501214 | R162: 0.2935544968 | S162: 0.3018256138 | T162: =IF(TriangleWave!B$14=TRUE,Sheet2!P162,"") -> 0.2495286081 | U162: =IF(TriangleWave!B$16=TRUE,Sheet2!Q162,"") -> 0.290501214 | V162: =IF(TriangleWave!B$19=TRUE,Sheet2!R162,"") -> 0.2935544968 | W162: =IF(TriangleWave!B$21=TRUE,Sheet2!S162,"") -> 0.3018256138 | AA162: 2.687937743 | AB162: 0.750 | AC162: 0.905 | AD162: 0.949 | AE162: 0.912 | AF162: =IF(SawtoothWave!B$14=TRUE,Sheet2!AB162,"") -> 0.750 | AG162: =IF(SawtoothWave!B$16=TRUE,Sheet2!AC162,"") -> 0.905 | AH162: =IF(SawtoothWave!B$19=TRUE,Sheet2!AD162,"") -> 0.949 | AI162: =IF(SawtoothWave!B$21=TRUE,Sheet2!AE162,"") -> 0.912
C163: 3.496091436 | D163: 0.2790163178 | E163: 0.09353514973 | F163: -0.03120768185 | G163: -0.0869752811 | H163: =IF(SquareWave!B$14=TRUE,Sheet2!D163,"") -> 0.2790163178 | I163: =IF(SquareWave!$B$16=TRUE,Sheet2!E163,"") ->  | J163: =IF(SquareWave!$B$19=TRUE,Sheet2!F163,"") -> -0.03120768185 | K163: =IF(SquareWave!$B$21=TRUE,Sheet2!G163,"") -> -0.0869752811 | O163: 1.73540856 | P163: 0.2268537744 | Q163: 0.2627605052 | R163: 0.2713194657 | S163: 0.2795905827 | T163: =IF(TriangleWave!B$14=TRUE,Sheet2!P163,"") -> 0.2268537744 | U163: =IF(TriangleWave!B$16=TRUE,Sheet2!Q163,"") -> 0.2627605052 | V163: =IF(TriangleWave!B$19=TRUE,Sheet2!R163,"") -> 0.2713194657 | W163: =IF(TriangleWave!B$21=TRUE,Sheet2!S163,"") -> 0.2795905827 | AA163: 2.72459144 | AB163: 0.735 | AC163: 0.894 | AD163: 0.958 | AE163: 0.943 | AF163: =IF(SawtoothWave!B$14=TRUE,Sheet2!AB163,"") -> 0.735 | AG163: =IF(SawtoothWave!B$16=TRUE,Sheet2!AC163,"") -> 0.894 | AH163: =IF(SawtoothWave!B$19=TRUE,Sheet2!AD163,"") -> 0.958 | AI163: =IF(SawtoothWave!B$21=TRUE,Sheet2!AE163,"") -> 0.943
C164: 3.557211915 | D164: 0.2429605974 | E164: 0.04179105703 | F164: -0.06949764383 | G164: -0.09043109402 | H164: =IF(SquareWave!B$14=TRUE,Sheet2!D164,"") -> 0.2429605974 | I164: =IF(SquareWave!$B$16=TRUE,Sheet2!E164,"") ->  | J164: =IF(SquareWave!$B$19=TRUE,Sheet2!F164,"") -> -0.06949764383 | K164: =IF(SquareWave!$B$21=TRUE,Sheet2!G164,"") -> -0.09043109402 | O164: 1.758754864 | P164: 0.2056476522 | Q164: 0.2347570916 | R164: 0.2476835147 | S164: 0.2559546318 | T164: =IF(TriangleWave!B$14=TRUE,Sheet2!P164,"") -> 0.2056476522 | U164: =IF(TriangleWave!B$16=TRUE,Sheet2!Q164,"") -> 0.2347570916 | V164: =IF(TriangleWave!B$19=TRUE,Sheet2!R164,"") -> 0.2476835147 | W164: =IF(TriangleWave!B$21=TRUE,Sheet2!S164,"") -> 0.2559546318 | AA164: 2.761245136 | AB164: 0.719 | AC164: 0.878 | AD164: 0.959 | AE164: 0.967 | AF164: =IF(SawtoothWave!B$14=TRUE,Sheet2!AB164,"") -> 0.719 | AG164: =IF(SawtoothWave!B$16=TRUE,Sheet2!AC164,"") -> 0.878 | AH164: =IF(SawtoothWave!B$19=TRUE,Sheet2!AD164,"") -> 0.959 | AI164: =IF(SawtoothWave!B$21=TRUE,Sheet2!AE164,"") -> 0.967
C165: 3.618332395 | D165: 0.2078648036 | E165: -0.002248432978 | F165: -0.08977007586 | G165: -0.07209560664 | H165: =IF(SquareWave!B$14=TRUE,Sheet2!D165,"") -> 0.2078648036 | I165: =IF(SquareWave!$B$16=TRUE,Sheet2!E165,"") ->  | J165: =IF(SquareWave!$B$19=TRUE,Sheet2!F165,"") -> -0.08977007586 | K165: =IF(SquareWave!$B$21=TRUE,Sheet2!G165,"") -> -0.07209560664 | O165: 1.782101167 | P165: 0.1860242672 | Q165: 0.2069327633 | R165: 0.2225076259 | S165: 0.2307787429 | T165: =IF(TriangleWave!B$14=TRUE,Sheet2!P165,"") -> 0.1860242672 | U165: =IF(TriangleWave!B$16=TRUE,Sheet2!Q165,"") -> 0.2069327633 | V165: =IF(TriangleWave!B$19=TRUE,Sheet2!R165,"") -> 0.2225076259 | W165: =IF(TriangleWave!B$21=TRUE,Sheet2!S165,"") -> 0.2307787429 | AA165: 2.797898833 | AB165: 0.701 | AC165: 0.857 | AD165: 0.951 | AE165: 0.982 | AF165: =IF(SawtoothWave!B$14=TRUE,Sheet2!AB165,"") -> 0.701 | AG165: =IF(SawtoothWave!B$16=TRUE,Sheet2!AC165,"") -> 0.857 | AH165: =IF(SawtoothWave!B$19=TRUE,Sheet2!AD165,"") -> 0.951 | AI165: =IF(SawtoothWave!B$21=TRUE,Sheet2!AE165,"") -> 0.982
C166: 3.679452874 | D166: 0.1738600033 | E166: -0.03815239512 | F166: -0.09379650401 | G166: -0.04070037408 | H166: =IF(SquareWave!B$14=TRUE,Sheet2!D166,"") -> 0.1738600033 | I166: =IF(SquareWave!$B$16=TRUE,Sheet2!E166,"") ->  | J166: =IF(SquareWave!$B$19=TRUE,Sheet2!F166,"") -> -0.09379650401 | K166: =IF(SquareWave!$B$21=TRUE,Sheet2!G166,"") -> -0.04070037408 | O166: 1.805447471 | P166: 0.1680891346 | Q166: 0.1797884834 | R166: 0.1959405591 | S166: 0.2042116761 | T166: =IF(TriangleWave!B$14=TRUE,Sheet2!P166,"") -> 0.1680891346 | U166: =IF(TriangleWave!B$16=TRUE,Sheet2!Q166,"") -> 0.1797884834 | V166: =IF(TriangleWave!B$19=TRUE,Sheet2!R166,"") -> 0.1959405591 | W166: =IF(TriangleWave!B$21=TRUE,Sheet2!S166,"") -> 0.2042116761 | AA166: 2.834552529 | AB166: 0.683 | AC166: 0.832 | AD166: 0.935 | AE166: 0.986 | AF166: =IF(SawtoothWave!B$14=TRUE,Sheet2!AB166,"") -> 0.683 | AG166: =IF(SawtoothWave!B$16=TRUE,Sheet2!AC166,"") -> 0.832 | AH166: =IF(SawtoothWave!B$19=TRUE,Sheet2!AD166,"") -> 0.935 | AI166: =IF(SawtoothWave!B$21=TRUE,Sheet2!AE166,"") -> 0.986
C167: 3.740573354 | D167: 0.1410731892 | E167: -0.06573016295 | F167: -0.08434029659 | G167: -0.005394392043 | H167: =IF(SquareWave!B$14=TRUE,Sheet2!D167,"") -> 0.1410731892 | I167: =IF(SquareWave!$B$16=TRUE,Sheet2!E167,"") ->  | J167: =IF(SquareWave!$B$19=TRUE,Sheet2!F167,"") -> -0.08434029659 | K167: =IF(SquareWave!$B$21=TRUE,Sheet2!G167,"") -> -0.005394392043 | O167: 1.828793774 | P167: 0.151938692 | Q167: 0.1538647529 | R167: 0.1684460546 | S167: 0.1767171716 | T167: =IF(TriangleWave!B$14=TRUE,Sheet2!P167,"") -> 0.151938692 | U167: =IF(TriangleWave!B$16=TRUE,Sheet2!Q167,"") -> 0.1538647529 | V167: =IF(TriangleWave!B$19=TRUE,Sheet2!R167,"") -> 0.1684460546 | W167: =IF(TriangleWave!B$21=TRUE,Sheet2!S167,"") -> 0.1767171716 | AA167: 2.871206226 | AB167: 0.663 | AC167: 0.803 | AD167: 0.909 | AE167: 0.976 | AF167: =IF(SawtoothWave!B$14=TRUE,Sheet2!AB167,"") -> 0.663 | AG167: =IF(SawtoothWave!B$16=TRUE,Sheet2!AC167,"") -> 0.803 | AH167: =IF(SawtoothWave!B$19=TRUE,Sheet2!AD167,"") -> 0.909 | AI167: =IF(SawtoothWave!B$21=TRUE,Sheet2!AE167,"") -> 0.976
C168: 3.801693834 | D168: 0.1096268053 | E168: -0.08503393783 | F168: -0.06488552802 | G168: 0.02567820606 | H168: =IF(SquareWave!B$14=TRUE,Sheet2!D168,"") -> 0.1096268053 | I168: =IF(SquareWave!$B$16=TRUE,Sheet2!E168,"") ->  | J168: =IF(SquareWave!$B$19=TRUE,Sheet2!F168,"") -> -0.06488552802 | K168: =IF(SquareWave!$B$21=TRUE,Sheet2!G168,"") -> 0.02567820606 | O168: 1.852140078 | P168: 0.1376597804 | Q168: 0.1297196792 | R168: 0.1407911094 | S168: 0.1490622264 | T168: =IF(TriangleWave!B$14=TRUE,Sheet2!P168,"") -> 0.1376597804 | U168: =IF(TriangleWave!B$16=TRUE,Sheet2!Q168,"") -> 0.1297196792 | V168: =IF(TriangleWave!B$19=TRUE,Sheet2!R168,"") -> 0.1407911094 | W168: =IF(TriangleWave!B$21=TRUE,Sheet2!S168,"") -> 0.1490622264 | AA168: 2.907859922 | AB168: 0.643 | AC168: 0.770 | AD168: 0.875 | AE168: 0.951 | AF168: =IF(SawtoothWave!B$14=TRUE,Sheet2!AB168,"") -> 0.643 | AG168: =IF(SawtoothWave!B$16=TRUE,Sheet2!AC168,"") -> 0.770 | AH168: =IF(SawtoothWave!B$19=TRUE,Sheet2!AD168,"") -> 0.875 | AI168: =IF(SawtoothWave!B$21=TRUE,Sheet2!AE168,"") -> 0.951
C169: 3.862814313 | D169: 0.07963828967 | E169: -0.09635339084 | F169: -0.03931355511 | G169: 0.04654166329 | H169: =IF(SquareWave!B$14=TRUE,Sheet2!D169,"") -> 0.07963828967 | I169: =IF(SquareWave!$B$16=TRUE,Sheet2!E169,"") ->  | J169: =IF(SquareWave!$B$19=TRUE,Sheet2!F169,"") -> -0.03931355511 | K169: =IF(SquareWave!$B$21=TRUE,Sheet2!G169,"") -> 0.04654166329 | O169: 1.875486381 | P169: 0.1253291779 | Q169: 0.1079057848 | R169: 0.113995007 | S169: 0.122266124 | T169: =IF(TriangleWave!B$14=TRUE,Sheet2!P169,"") -> 0.1253291779 | U169: =IF(TriangleWave!B$16=TRUE,Sheet2!Q169,"") -> 0.1079057848 | V169: =IF(TriangleWave!B$19=TRUE,Sheet2!R169,"") -> 0.113995007 | W169: =IF(TriangleWave!B$21=TRUE,Sheet2!S169,"") -> 0.122266124 | AA169: 2.944513619 | AB169: 0.621 | AC169: 0.734 | AD169: 0.831 | AE169: 0.911 | AF169: =IF(SawtoothWave!B$14=TRUE,Sheet2!AB169,"") -> 0.621 | AG169: =IF(SawtoothWave!B$16=TRUE,Sheet2!AC169,"") -> 0.734 | AH169: =IF(SawtoothWave!B$19=TRUE,Sheet2!AD169,"") -> 0.831 | AI169: =IF(SawtoothWave!B$21=TRUE,Sheet2!AE169,"") -> 0.911
C170: 3.923934793 | D170: 0.05121963598 | E170: -0.100202452 | F170: -0.0115569712 | G170: 0.05411221232 | H170: =IF(SquareWave!B$14=TRUE,Sheet2!D170,"") -> 0.05121963598 | I170: =IF(SquareWave!$B$16=TRUE,Sheet2!E170,"") ->  | J170: =IF(SquareWave!$B$19=TRUE,Sheet2!F170,"") -> -0.0115569712 | K170: =IF(SquareWave!$B$21=TRUE,Sheet2!G170,"") -> 0.05411221232 | O170: 1.898832685 | P170: 0.1150131863 | Q170: 0.08894665426 | R170: 0.08924389197 | S170: 0.097515009 | T170: =IF(TriangleWave!B$14=TRUE,Sheet2!P170,"") -> 0.1150131863 | U170: =IF(TriangleWave!B$16=TRUE,Sheet2!Q170,"") -> 0.08894665426 | V170: =IF(TriangleWave!B$19=TRUE,Sheet2!R170,"") -> 0.08924389197 | W170: =IF(TriangleWave!B$21=TRUE,Sheet2!S170,"") -> 0.097515009 | AA170: 2.981167315 | AB170: 0.599 | AC170: 0.694 | AD170: 0.780 | AE170: 0.857 | AF170: =IF(SawtoothWave!B$14=TRUE,Sheet2!AB170,"") -> 0.599 | AG170: =IF(SawtoothWave!B$16=TRUE,Sheet2!AC170,"") -> 0.694 | AH170: =IF(SawtoothWave!B$19=TRUE,Sheet2!AD170,"") -> 0.780 | AI170: =IF(SawtoothWave!B$21=TRUE,Sheet2!AE170,"") -> 0.857
C171: 3.985055273 | D171: 0.0244769751 | E171: -0.09729874322 | F171: 0.01473776265 | G171: 0.04838242241 | H171: =IF(SquareWave!B$14=TRUE,Sheet2!D171,"") -> 0.0244769751 | I171: =IF(SquareWave!$B$16=TRUE,Sheet2!E171,"") ->  | J171: =IF(SquareWave!$B$19=TRUE,Sheet2!F171,"") -> 0.01473776265 | K171: =IF(SquareWave!$B$21=TRUE,Sheet2!G171,"") -> 0.04838242241 | O171: 1.922178988 | P171: 0.1067672748 | Q171: 0.07331452738 | R171: 0.06778025241 | S171: 0.07605136944 | T171: =IF(TriangleWave!B$14=TRUE,Sheet2!P171,"") -> 0.1067672748 | U171: =IF(TriangleWave!B$16=TRUE,Sheet2!Q171,"") -> 0.07331452738 | V171: =IF(TriangleWave!B$19=TRUE,Sheet2!R171,"") -> 0.06778025241 | W171: =IF(TriangleWave!B$21=TRUE,Sheet2!S171,"") -> 0.07605136944 | AA171: 3.017821012 | AB171: 0.577 | AC171: 0.652 | AD171: 0.723 | AE171: 0.789 | AF171: =IF(SawtoothWave!B$14=TRUE,Sheet2!AB171,"") -> 0.577 | AG171: =IF(SawtoothWave!B$16=TRUE,Sheet2!AC171,"") -> 0.652 | AH171: =IF(SawtoothWave!B$19=TRUE,Sheet2!AD171,"") -> 0.723 | AI171: =IF(SawtoothWave!B$21=TRUE,Sheet2!AE171,"") -> 0.789
C172: 4.046175752 | D172: -0.000489821172 | E172: -0.08853635597 | F172: 0.0365089499 | G172: 0.03206380672 | H172: =IF(SquareWave!B$14=TRUE,Sheet2!D172,"") -> -0.000489821172 | I172: =IF(SquareWave!$B$16=TRUE,Sheet2!E172,"") ->  | J172: =IF(SquareWave!$B$19=TRUE,Sheet2!F172,"") -> 0.0365089499 | K172: =IF(SquareWave!$B$21=TRUE,Sheet2!G172,"") -> 0.03206380672 | O172: 1.945525292 | P172: 0.1006357819 | Q172: 0.06140990458 | R172: 0.05078009365 | S172: 0.05905121068 | T172: =IF(TriangleWave!B$14=TRUE,Sheet2!P172,"") -> 0.1006357819 | U172: =IF(TriangleWave!B$16=TRUE,Sheet2!Q172,"") -> 0.06140990458 | V172: =IF(TriangleWave!B$19=TRUE,Sheet2!R172,"") -> 0.05078009365 | W172: =IF(TriangleWave!B$21=TRUE,Sheet2!S172,"") -> 0.05905121068 | AA172: 3.054474708 | AB172: 0.554 | AC172: 0.608 | AD172: 0.660 | AE172: 0.710 | AF172: =IF(SawtoothWave!B$14=TRUE,Sheet2!AB172,"") -> 0.554 | AG172: =IF(SawtoothWave!B$16=TRUE,Sheet2!AC172,"") -> 0.608 | AH172: =IF(SawtoothWave!B$19=TRUE,Sheet2!AD172,"") -> 0.660 | AI172: =IF(SawtoothWave!B$21=TRUE,Sheet2!AE172,"") -> 0.710
C173: 4.107296232 | D173: -0.02358751307 | E173: -0.07495289974 | F173: 0.05151347856 | G173: 0.009779879067 | H173: =IF(SquareWave!B$14=TRUE,Sheet2!D173,"") -> -0.02358751307 | I173: =IF(SquareWave!$B$16=TRUE,Sheet2!E173,"") ->  | J173: =IF(SquareWave!$B$19=TRUE,Sheet2!F173,"") -> 0.05151347856 | K173: =IF(SquareWave!$B$21=TRUE,Sheet2!G173,"") -> 0.009779879067 | O173: 1.968871595 | P173: 0.09665167662 | Q173: 0.0535441343 | R173: 0.03923239504 | S173: 0.04750351207 | T173: =IF(TriangleWave!B$14=TRUE,Sheet2!P173,"") -> 0.09665167662 | U173: =IF(TriangleWave!B$16=TRUE,Sheet2!Q173,"") -> 0.0535441343 | V173: =IF(TriangleWave!B$19=TRUE,Sheet2!R173,"") -> 0.03923239504 | W173: =IF(TriangleWave!B$21=TRUE,Sheet2!S173,"") -> 0.04750351207 | AA173: 3.091128405 | AB173: 0.531 | AC173: 0.562 | AD173: 0.593 | AE173: 0.623 | AF173: =IF(SawtoothWave!B$14=TRUE,Sheet2!AB173,"") -> 0.531 | AG173: =IF(SawtoothWave!B$16=TRUE,Sheet2!AC173,"") -> 0.562 | AH173: =IF(SawtoothWave!B$19=TRUE,Sheet2!AD173,"") -> 0.593 | AI173: =IF(SawtoothWave!B$21=TRUE,Sheet2!AE173,"") -> 0.623
C174: 4.168416712 | D174: -0.04472984112 | E174: -0.05769193577 | F174: 0.05847609915 | G174: -0.01302244674 | H174: =IF(SquareWave!B$14=TRUE,Sheet2!D174,"") -> -0.04472984112 | I174: =IF(SquareWave!$B$16=TRUE,Sheet2!E174,"") ->  | J174: =IF(SquareWave!$B$19=TRUE,Sheet2!F174,"") -> 0.05847609915 | K174: =IF(SquareWave!$B$21=TRUE,Sheet2!G174,"") -> -0.01302244674 | O174: 1.992217899 | P174: 0.09483638159 | Q174: 0.04992581233 | R174: 0.03383539439 | S174: 0.04210651143 | T174: =IF(TriangleWave!B$14=TRUE,Sheet2!P174,"") -> 0.09483638159 | U174: =IF(TriangleWave!B$16=TRUE,Sheet2!Q174,"") -> 0.04992581233 | V174: =IF(TriangleWave!B$19=TRUE,Sheet2!R174,"") -> 0.03383539439 | W174: =IF(TriangleWave!B$21=TRUE,Sheet2!S174,"") -> 0.04210651143 | AA174: 3.127782101 | AB174: 0.508 | AC174: 0.516 | AD174: 0.523 | AE174: 0.531 | AF174: =IF(SawtoothWave!B$14=TRUE,Sheet2!AB174,"") -> 0.508 | AG174: =IF(SawtoothWave!B$16=TRUE,Sheet2!AC174,"") -> 0.516 | AH174: =IF(SawtoothWave!B$19=TRUE,Sheet2!AD174,"") -> 0.523 | AI174: =IF(SawtoothWave!B$21=TRUE,Sheet2!AE174,"") -> 0.531
C175: 4.229537191 | D175: -0.06383784821 | E175: -0.03796206651 | F175: 0.05714253847 | G175: -0.03123157867 | H175: =IF(SquareWave!B$14=TRUE,Sheet2!D175,"") -> -0.06383784821 | I175: =IF(SquareWave!$B$16=TRUE,Sheet2!E175,"") ->  | J175: =IF(SquareWave!$B$19=TRUE,Sheet2!F175,"") -> 0.05714253847 | K175: =IF(SquareWave!$B$21=TRUE,Sheet2!G175,"") -> -0.03123157867 | O175: 2.015564202 | P175: 0.0951996577 | Q175: 0.05065164118 | R175: 0.03492233217 | S175: 0.0431934492 | T175: =IF(TriangleWave!B$14=TRUE,Sheet2!P175,"") -> 0.0951996577 | U175: =IF(TriangleWave!B$16=TRUE,Sheet2!Q175,"") -> 0.05065164118 | V175: =IF(TriangleWave!B$19=TRUE,Sheet2!R175,"") -> 0.03492233217 | W175: =IF(TriangleWave!B$21=TRUE,Sheet2!S175,"") -> 0.0431934492 | AA175: 3.164435798 | AB175: 0.484 | AC175: 0.469 | AD175: 0.453 | AE175: 0.438 | AF175: =IF(SawtoothWave!B$14=TRUE,Sheet2!AB175,"") -> 0.484 | AG175: =IF(SawtoothWave!B$16=TRUE,Sheet2!AC175,"") -> 0.469 | AH175: =IF(SawtoothWave!B$19=TRUE,Sheet2!AD175,"") -> 0.453 | AI175: =IF(SawtoothWave!B$21=TRUE,Sheet2!AE175,"") -> 0.438
C176: 4.290657671 | D176: -0.08084017456 | E176: -0.01699406218 | F176: 0.04823393716 | G176: -0.04108413846 | H176: =IF(SquareWave!B$14=TRUE,Sheet2!D176,"") -> -0.08084017456 | I176: =IF(SquareWave!$B$16=TRUE,Sheet2!E176,"") ->  | J176: =IF(SquareWave!$B$19=TRUE,Sheet2!F176,"") -> 0.04823393716 | K176: =IF(SquareWave!$B$21=TRUE,Sheet2!G176,"") -> -0.04108413846 | O176: 2.038910506 | P176: 0.09773955159 | Q176: 0.05570218528 | R176: 0.04242575066 | S176: 0.05069686769 | T176: =IF(TriangleWave!B$14=TRUE,Sheet2!P176,"") -> 0.09773955159 | U176: =IF(TriangleWave!B$16=TRUE,Sheet2!Q176,"") -> 0.05570218528 | V176: =IF(TriangleWave!B$19=TRUE,Sheet2!R176,"") -> 0.04242575066 | W176: =IF(TriangleWave!B$21=TRUE,Sheet2!S176,"") -> 0.05069686769 | AA176: 3.201089494 | AB176: 0.461 | AC176: 0.423 | AD176: 0.385 | AE176: 0.347 | AF176: =IF(SawtoothWave!B$14=TRUE,Sheet2!AB176,"") -> 0.461 | AG176: =IF(SawtoothWave!B$16=TRUE,Sheet2!AC176,"") -> 0.423 | AH176: =IF(SawtoothWave!B$19=TRUE,Sheet2!AD176,"") -> 0.385 | AI176: =IF(SawtoothWave!B$21=TRUE,Sheet2!AE176,"") -> 0.347
C177: 4.35177815 | D177: -0.0956733241 | E177: 0.004002529722 | F177: 0.03330935998 | G177: -0.04085088955 | H177: =IF(SquareWave!B$14=TRUE,Sheet2!D177,"") -> -0.0956733241 | I177: =IF(SquareWave!$B$16=TRUE,Sheet2!E177,"") ->  | J177: =IF(SquareWave!$B$19=TRUE,Sheet2!F177,"") -> 0.03330935998 | K177: =IF(SquareWave!$B$21=TRUE,Sheet2!G177,"") -> -0.04085088955 | O177: 2.062256809 | P177: 0.1024424062 | Q177: 0.06494272446 | R177: 0.05588473368 | S177: 0.06415585072 | T177: =IF(TriangleWave!B$14=TRUE,Sheet2!P177,"") -> 0.1024424062 | U177: =IF(TriangleWave!B$16=TRUE,Sheet2!Q177,"") -> 0.06494272446 | V177: =IF(TriangleWave!B$19=TRUE,Sheet2!R177,"") -> 0.05588473368 | W177: =IF(TriangleWave!B$21=TRUE,Sheet2!S177,"") -> 0.06415585072 | AA177: 3.237743191 | AB177: 0.438 | AC177: 0.377 | AD177: 0.319 | AE177: 0.263 | AF177: =IF(SawtoothWave!B$14=TRUE,Sheet2!AB177,"") -> 0.438 | AG177: =IF(SawtoothWave!B$16=TRUE,Sheet2!AC177,"") -> 0.377 | AH177: =IF(SawtoothWave!B$19=TRUE,Sheet2!AD177,"") -> 0.319 | AI177: =IF(SawtoothWave!B$21=TRUE,Sheet2!AE177,"") -> 0.263
C178: 4.41289863 | D178: -0.1082819017 | E178: 0.02388182904 | F178: 0.01455167803 | G178: -0.03108153259 | H178: =IF(SquareWave!B$14=TRUE,Sheet2!D178,"") -> -0.1082819017 | I178: =IF(SquareWave!$B$16=TRUE,Sheet2!E178,"") ->  | J178: =IF(SquareWave!$B$19=TRUE,Sheet2!F178,"") -> 0.01455167803 | K178: =IF(SquareWave!$B$21=TRUE,Sheet2!G178,"") -> -0.03108153259 | O178: 2.085603113 | P178: 0.1092829343 | Q178: 0.07812916508 | R178: 0.07449419694 | S178: 0.08276531397 | T178: =IF(TriangleWave!B$14=TRUE,Sheet2!P178,"") -> 0.1092829343 | U178: =IF(TriangleWave!B$16=TRUE,Sheet2!Q178,"") -> 0.07812916508 | V178: =IF(TriangleWave!B$19=TRUE,Sheet2!R178,"") -> 0.07449419694 | W178: =IF(TriangleWave!B$21=TRUE,Sheet2!S178,"") -> 0.08276531397 | AA178: 3.274396887 | AB178: 0.415 | AC178: 0.334 | AD178: 0.257 | AE178: 0.187 | AF178: =IF(SawtoothWave!B$14=TRUE,Sheet2!AB178,"") -> 0.415 | AG178: =IF(SawtoothWave!B$16=TRUE,Sheet2!AC178,"") -> 0.334 | AH178: =IF(SawtoothWave!B$19=TRUE,Sheet2!AD178,"") -> 0.257 | AI178: =IF(SawtoothWave!B$21=TRUE,Sheet2!AE178,"") -> 0.187
C179: 4.47401911 | D179: -0.11861882 | E179: 0.04160169159 | F179: -0.005500832065 | G179: -0.01438049283 | H179: =IF(SquareWave!B$14=TRUE,Sheet2!D179,"") -> -0.11861882 | I179: =IF(SquareWave!$B$16=TRUE,Sheet2!E179,"") ->  | J179: =IF(SquareWave!$B$19=TRUE,Sheet2!F179,"") -> -0.005500832065 | K179: =IF(SquareWave!$B$21=TRUE,Sheet2!G179,"") -> -0.01438049283 | O179: 2.108949416 | P179: 0.1182243541 | Q179: 0.09491872671 | R179: 0.09719017821 | S179: 0.1054612952 | T179: =IF(TriangleWave!B$14=TRUE,Sheet2!P179,"") -> 0.1182243541 | U179: =IF(TriangleWave!B$16=TRUE,Sheet2!Q179,"") -> 0.09491872671 | V179: =IF(TriangleWave!B$19=TRUE,Sheet2!R179,"") -> 0.09719017821 | W179: =IF(TriangleWave!B$21=TRUE,Sheet2!S179,"") -> 0.1054612952 | AA179: 3.311050584 | AB179: 0.393 | AC179: 0.293 | AD179: 0.202 | AE179: 0.124 | AF179: =IF(SawtoothWave!B$14=TRUE,Sheet2!AB179,"") -> 0.393 | AG179: =IF(SawtoothWave!B$16=TRUE,Sheet2!AC179,"") -> 0.293 | AH179: =IF(SawtoothWave!B$19=TRUE,Sheet2!AD179,"") -> 0.202 | AI179: =IF(SawtoothWave!B$21=TRUE,Sheet2!AE179,"") -> 0.124
C180: 4.535139589 | D180: -0.1266454753 | E180: 0.05626005238 | F180: -0.02424993629 | G180: 0.005224730505 | H180: =IF(SquareWave!B$14=TRUE,Sheet2!D180,"") -> -0.1266454753 | I180: =IF(SquareWave!$B$16=TRUE,Sheet2!E180,"") ->  | J180: =IF(SquareWave!$B$19=TRUE,Sheet2!F180,"") -> -0.02424993629 | K180: =IF(SquareWave!$B$21=TRUE,Sheet2!G180,"") -> 0.005224730505 | O180: 2.13229572 | P180: 0.1292185876 | Q180: 0.1148848952 | R180: 0.1227606969 | S180: 0.1310318139 | T180: =IF(TriangleWave!B$14=TRUE,Sheet2!P180,"") -> 0.1292185876 | U180: =IF(TriangleWave!B$16=TRUE,Sheet2!Q180,"") -> 0.1148848952 | V180: =IF(TriangleWave!B$19=TRUE,Sheet2!R180,"") -> 0.1227606969 | W180: =IF(TriangleWave!B$21=TRUE,Sheet2!S180,"") -> 0.1310318139 | AA180: 3.34770428 | AB180: 0.371 | AC180: 0.254 | AD180: 0.153 | AE180: 0.074 | AF180: =IF(SawtoothWave!B$14=TRUE,Sheet2!AB180,"") -> 0.371 | AG180: =IF(SawtoothWave!B$16=TRUE,Sheet2!AC180,"") -> 0.254 | AH180: =IF(SawtoothWave!B$19=TRUE,Sheet2!AD180,"") -> 0.153 | AI180: =IF(SawtoothWave!B$21=TRUE,Sheet2!AE180,"") -> 0.074
C181: 4.596260069 | D181: -0.1323318915 | E181: 0.0671263195 | F181: -0.03933041579 | G181: 0.02318504341 | H181: =IF(SquareWave!B$14=TRUE,Sheet2!D181,"") -> -0.1323318915 | I181: =IF(SquareWave!$B$16=TRUE,Sheet2!E181,"") ->  | J181: =IF(SquareWave!$B$19=TRUE,Sheet2!F181,"") -> -0.03933041579 | K181: =IF(SquareWave!$B$21=TRUE,Sheet2!G181,"") -> 0.02318504341 | O181: 2.155642023 | P181: 0.1422065185 | Q181: 0.1375359293 | R181: 0.149968716 | S181: 0.158239833 | T181: =IF(TriangleWave!B$14=TRUE,Sheet2!P181,"") -> 0.1422065185 | U181: =IF(TriangleWave!B$16=TRUE,Sheet2!Q181,"") -> 0.1375359293 | V181: =IF(TriangleWave!B$19=TRUE,Sheet2!R181,"") -> 0.149968716 | W181: =IF(TriangleWave!B$21=TRUE,Sheet2!S181,"") -> 0.158239833 | AA181: 3.384357977 | AB181: 0.350 | AC181: 0.218 | AD181: 0.113 | AE181: 0.039 | AF181: =IF(SawtoothWave!B$14=TRUE,Sheet2!AB181,"") -> 0.350 | AG181: =IF(SawtoothWave!B$16=TRUE,Sheet2!AC181,"") -> 0.218 | AH181: =IF(SawtoothWave!B$19=TRUE,Sheet2!AD181,"") -> 0.113 | AI181: =IF(SawtoothWave!B$21=TRUE,Sheet2!AE181,"") -> 0.039
C182: 4.657380549 | D182: -0.1356568326 | E182: 0.07366676198 | F182: -0.04887156236 | G182: 0.0354147369 | H182: =IF(SquareWave!B$14=TRUE,Sheet2!D182,"") -> -0.1356568326 | I182: =IF(SquareWave!$B$16=TRUE,Sheet2!E182,"") ->  | J182: =IF(SquareWave!$B$19=TRUE,Sheet2!F182,"") -> -0.04887156236 | K182: =IF(SquareWave!$B$21=TRUE,Sheet2!G182,"") -> 0.0354147369 | O182: 2.178988327 | P182: 0.1571183106 | Q182: 0.1623360395 | R182: 0.1776724345 | S182: 0.1859435515 | T182: =IF(TriangleWave!B$14=TRUE,Sheet2!P182,"") -> 0.1571183106 | U182: =IF(TriangleWave!B$16=TRUE,Sheet2!Q182,"") -> 0.1623360395 | V182: =IF(TriangleWave!B$19=TRUE,Sheet2!R182,"") -> 0.1776724345 | W182: =IF(TriangleWave!B$21=TRUE,Sheet2!S182,"") -> 0.1859435515 | AA182: 3.421011673 | AB182: 0.330 | AC182: 0.187 | AD182: 0.081 | AE182: 0.019 | AF182: =IF(SawtoothWave!B$14=TRUE,Sheet2!AB182,"") -> 0.330 | AG182: =IF(SawtoothWave!B$16=TRUE,Sheet2!AC182,"") -> 0.187 | AH182: =IF(SawtoothWave!B$19=TRUE,Sheet2!AD182,"") -> 0.081 | AI182: =IF(SawtoothWave!B$21=TRUE,Sheet2!AE182,"") -> 0.019
C183: 4.718501028 | D183: -0.1366078813 | E183: 0.0755630371 | F183: -0.05170146628 | G183: 0.03916099017 | H183: =IF(SquareWave!B$14=TRUE,Sheet2!D183,"") -> -0.1366078813 | I183: =IF(SquareWave!$B$16=TRUE,Sheet2!E183,"") ->  | J183: =IF(SquareWave!$B$19=TRUE,Sheet2!F183,"") -> -0.05170146628 | K183: =IF(SquareWave!$B$21=TRUE,Sheet2!G183,"") -> 0.03916099017 | O183: 2.20233463 | P183: 0.1738737829 | Q183: 0.1887282319 | R183: 0.2049287215 | S183: 0.2131998386 | T183: =IF(TriangleWave!B$14=TRUE,Sheet2!P183,"") -> 0.1738737829 | U183: =IF(TriangleWave!B$16=TRUE,Sheet2!Q183,"") -> 0.1887282319 | V183: =IF(TriangleWave!B$19=TRUE,Sheet2!R183,"") -> 0.2049287215 | W183: =IF(TriangleWave!B$21=TRUE,Sheet2!S183,"") -> 0.2131998386 | AA183: 3.45766537 | AB183: 0.311 | AC183: 0.159 | AD183: 0.059 | AE183: 0.014 | AF183: =IF(SawtoothWave!B$14=TRUE,Sheet2!AB183,"") -> 0.311 | AG183: =IF(SawtoothWave!B$16=TRUE,Sheet2!AC183,"") -> 0.159 | AH183: =IF(SawtoothWave!B$19=TRUE,Sheet2!AD183,"") -> 0.059 | AI183: =IF(SawtoothWave!B$21=TRUE,Sheet2!AE183,"") -> 0.014
C184: 4.779621508 | D184: -0.1351814859 | E184: 0.07272323344 | F184: -0.04747407232 | G184: 0.03358434406 | H184: =IF(SquareWave!B$14=TRUE,Sheet2!D184,"") -> -0.1351814859 | I184: =IF(SquareWave!$B$16=TRUE,Sheet2!E184,"") ->  | J184: =IF(SquareWave!$B$19=TRUE,Sheet2!F184,"") -> -0.04747407232 | K184: =IF(SquareWave!$B$21=TRUE,Sheet2!G184,"") -> 0.03358434406 | O184: 2.225680934 | P184: 0.192382841 | Q184: 0.2161577313 | R184: 0.2310678899 | S184: 0.239339007 | T184: =IF(TriangleWave!B$14=TRUE,Sheet2!P184,"") -> 0.192382841 | U184: =IF(TriangleWave!B$16=TRUE,Sheet2!Q184,"") -> 0.2161577313 | V184: =IF(TriangleWave!B$19=TRUE,Sheet2!R184,"") -> 0.2310678899 | W184: =IF(TriangleWave!B$21=TRUE,Sheet2!S184,"") -> 0.239339007 | AA184: 3.494319066 | AB184: 0.293 | AC184: 0.135 | AD184: 0.045 | AE184: 0.021 | AF184: =IF(SawtoothWave!B$14=TRUE,Sheet2!AB184,"") -> 0.293 | AG184: =IF(SawtoothWave!B$16=TRUE,Sheet2!AC184,"") -> 0.135 | AH184: =IF(SawtoothWave!B$19=TRUE,Sheet2!AD184,"") -> 0.045 | AI184: =IF(SawtoothWave!B$21=TRUE,Sheet2!AE184,"") -> 0.021
C185: 4.840741988 | D185: -0.1313829733 | E185: 0.0652850583 | F185: -0.03670657789 | G185: 0.019935021 | H185: =IF(SquareWave!B$14=TRUE,Sheet2!D185,"") -> -0.1313829733 | I185: =IF(SquareWave!$B$16=TRUE,Sheet2!E185,"") ->  | J185: =IF(SquareWave!$B$19=TRUE,Sheet2!F185,"") -> -0.03670657789 | K185: =IF(SquareWave!$B$21=TRUE,Sheet2!G185,"") -> 0.019935021 | O185: 2.249027237 | P185: 0.2125459614 | Q185: 0.2440948719 | R185: 0.2557318691 | S185: 0.2640029861 | T185: =IF(TriangleWave!B$14=TRUE,Sheet2!P185,"") -> 0.2125459614 | U185: =IF(TriangleWave!B$16=TRUE,Sheet2!Q185,"") -> 0.2440948719 | V185: =IF(TriangleWave!B$19=TRUE,Sheet2!R185,"") -> 0.2557318691 | W185: =IF(TriangleWave!B$21=TRUE,Sheet2!S185,"") -> 0.2640029861 | AA185: 3.530972763 | AB185: 0.276 | AC185: 0.116 | AD185: 0.041 | AE185: 0.040 | AF185: =IF(SawtoothWave!B$14=TRUE,Sheet2!AB185,"") -> 0.276 | AG185: =IF(SawtoothWave!B$16=TRUE,Sheet2!AC185,"") -> 0.116 | AH185: =IF(SawtoothWave!B$19=TRUE,Sheet2!AD185,"") -> 0.041 | AI185: =IF(SawtoothWave!B$21=TRUE,Sheet2!AE185,"") -> 0.040
C186: 4.901862467 | D186: -0.1252265293 | E186: 0.05361106199 | F186: -0.02072351991 | G186: 0.001290217239 | H186: =IF(SquareWave!B$14=TRUE,Sheet2!D186,"") -> -0.1252265293 | I186: =IF(SquareWave!$B$16=TRUE,Sheet2!E186,"") ->  | J186: =IF(SquareWave!$B$19=TRUE,Sheet2!F186,"") -> -0.02072351991 | K186: =IF(SquareWave!$B$21=TRUE,Sheet2!G186,"") -> 0.001290217239 | O186: 2.272373541 | P186: 0.2342547266 | Q186: 0.2720563745 | R186: 0.2788726617 | S186: 0.2871437787 | T186: =IF(TriangleWave!B$14=TRUE,Sheet2!P186,"") -> 0.2342547266 | U186: =IF(TriangleWave!B$16=TRUE,Sheet2!Q186,"") -> 0.2720563745 | V186: =IF(TriangleWave!B$19=TRUE,Sheet2!R186,"") -> 0.2788726617 | W186: =IF(TriangleWave!B$21=TRUE,Sheet2!S186,"") -> 0.2871437787 | AA186: 3.567626459 | AB186: 0.260 | AC186: 0.102 | AD186: 0.044 | AE186: 0.067 | AF186: =IF(SawtoothWave!B$14=TRUE,Sheet2!AB186,"") -> 0.260 | AG186: =IF(SawtoothWave!B$16=TRUE,Sheet2!AC186,"") -> 0.102 | AH186: =IF(SawtoothWave!B$19=TRUE,Sheet2!AD186,"") -> 0.044 | AI186: =IF(SawtoothWave!B$21=TRUE,Sheet2!AE186,"") -> 0.067
C187: 4.962982947 | D187: -0.1167351455 | E187: 0.0382760599 | F187: -0.001513013346 | G187: -0.01809565664 | H187: =IF(SquareWave!B$14=TRUE,Sheet2!D187,"") -> -0.1167351455 | I187: =IF(SquareWave!$B$16=TRUE,Sheet2!E187,"") ->  | J187: =IF(SquareWave!$B$19=TRUE,Sheet2!F187,"") -> -0.001513013346 | K187: =IF(SquareWave!$B$21=TRUE,Sheet2!G187,"") -> -0.01809565664 | O187: 2.295719844 | P187: 0.2573924084 | Q187: 0.2996240049 | R187: 0.3007131167 | S187: 0.3089842337 | T187: =IF(TriangleWave!B$14=TRUE,Sheet2!P187,"") -> 0.2573924084 | U187: =IF(TriangleWave!B$16=TRUE,Sheet2!Q187,"") -> 0.2996240049 | V187: =IF(TriangleWave!B$19=TRUE,Sheet2!R187,"") -> 0.3007131167 | W187: =IF(TriangleWave!B$21=TRUE,Sheet2!S187,"") -> 0.3089842337 | AA187: 3.604280156 | AB187: 0.245 | AC187: 0.092 | AD187: 0.056 | AE187: 0.099 | AF187: =IF(SawtoothWave!B$14=TRUE,Sheet2!AB187,"") -> 0.245 | AG187: =IF(SawtoothWave!B$16=TRUE,Sheet2!AC187,"") -> 0.092 | AH187: =IF(SawtoothWave!B$19=TRUE,Sheet2!AD187,"") -> 0.056 | AI187: =IF(SawtoothWave!B$21=TRUE,Sheet2!AE187,"") -> 0.099
C188: 5.024103427 | D188: -0.1059405333 | E188: 0.02004717545 | F188: 0.01849079398 | G188: -0.03369879959 | H188: =IF(SquareWave!B$14=TRUE,Sheet2!D188,"") -> -0.1059405333 | I188: =IF(SquareWave!$B$16=TRUE,Sheet2!E188,"") ->  | J188: =IF(SquareWave!$B$19=TRUE,Sheet2!F188,"") -> 0.01849079398 | K188: =IF(SquareWave!$B$21=TRUE,Sheet2!G188,"") -> -0.03369879959 | O188: 2.319066148 | P188: 0.281834595 | Q188: 0.32645974 | R188: 0.3216768406 | S188: 0.3299479576 | T188: =IF(TriangleWave!B$14=TRUE,Sheet2!P188,"") -> 0.281834595 | U188: =IF(TriangleWave!B$16=TRUE,Sheet2!Q188,"") -> 0.32645974 | V188: =IF(TriangleWave!B$19=TRUE,Sheet2!R188,"") -> 0.3216768406 | W188: =IF(TriangleWave!B$21=TRUE,Sheet2!S188,"") -> 0.3299479576 | AA188: 3.640933852 | AB188: 0.232 | AC188: 0.087 | AD188: 0.073 | AE188: 0.134 | AF188: =IF(SawtoothWave!B$14=TRUE,Sheet2!AB188,"") -> 0.232 | AG188: =IF(SawtoothWave!B$16=TRUE,Sheet2!AC188,"") -> 0.087 | AH188: =IF(SawtoothWave!B$19=TRUE,Sheet2!AD188,"") -> 0.073 | AI188: =IF(SawtoothWave!B$21=TRUE,Sheet2!AE188,"") -> 0.134
C189: 5.085223906 | D189: -0.09288300571 | E189: -0.0001428242352 | F189: 0.03667771318 | G189: -0.04171037009 | H189: =IF(SquareWave!B$14=TRUE,Sheet2!D189,"") -> -0.09288300571 | I189: =IF(SquareWave!$B$16=TRUE,Sheet2!E189,"") ->  | J189: =IF(SquareWave!$B$19=TRUE,Sheet2!F189,"") -> 0.03667771318 | K189: =IF(SquareWave!$B$21=TRUE,Sheet2!G189,"") -> -0.04171037009 | O189: 2.342412451 | P189: 0.3074498604 | Q189: 0.3523167373 | R189: 0.3422978817 | S189: 0.3505689987 | T189: =IF(TriangleWave!B$14=TRUE,Sheet2!P189,"") -> 0.3074498604 | U189: =IF(TriangleWave!B$16=TRUE,Sheet2!Q189,"") -> 0.3523167373 | V189: =IF(TriangleWave!B$19=TRUE,Sheet2!R189,"") -> 0.3422978817 | W189: =IF(TriangleWave!B$21=TRUE,Sheet2!S189,"") -> 0.3505689987 | AA189: 3.677587549 | AB189: 0.220 | AC189: 0.087 | AD189: 0.096 | AE189: 0.169 | AF189: =IF(SawtoothWave!B$14=TRUE,Sheet2!AB189,"") -> 0.220 | AG189: =IF(SawtoothWave!B$16=TRUE,Sheet2!AC189,"") -> 0.087 | AH189: =IF(SawtoothWave!B$19=TRUE,Sheet2!AD189,"") -> 0.096 | AI189: =IF(SawtoothWave!B$21=TRUE,Sheet2!AE189,"") -> 0.169
C190: 5.146344386 | D190: -0.0776113268 | E190: -0.02122800256 | F190: 0.0505573596 | G190: -0.03989782932 | H190: =IF(SquareWave!B$14=TRUE,Sheet2!D190,"") -> -0.0776113268 | I190: =IF(SquareWave!$B$16=TRUE,Sheet2!E190,"") ->  | J190: =IF(SquareWave!$B$19=TRUE,Sheet2!F190,"") -> 0.0505573596 | K190: =IF(SquareWave!$B$21=TRUE,Sheet2!G190,"") -> -0.03989782932 | O190: 2.365758755 | P190: 0.3341004709 | Q190: 0.3770456069 | R190: 0.3631231546 | S190: 0.3713942716 | T190: =IF(TriangleWave!B$14=TRUE,Sheet2!P190,"") -> 0.3341004709 | U190: =IF(TriangleWave!B$16=TRUE,Sheet2!Q190,"") -> 0.3770456069 | V190: =IF(TriangleWave!B$19=TRUE,Sheet2!R190,"") -> 0.3631231546 | W190: =IF(TriangleWave!B$21=TRUE,Sheet2!S190,"") -> 0.3713942716 | AA190: 3.714241245 | AB190: 0.210 | AC190: 0.091 | AD190: 0.123 | AE190: 0.202 | AF190: =IF(SawtoothWave!B$14=TRUE,Sheet2!AB190,"") -> 0.210 | AG190: =IF(SawtoothWave!B$16=TRUE,Sheet2!AC190,"") -> 0.091 | AH190: =IF(SawtoothWave!B$19=TRUE,Sheet2!AD190,"") -> 0.123 | AI190: =IF(SawtoothWave!B$21=TRUE,Sheet2!AE190,"") -> 0.202
C191: 5.207464865 | D191: -0.06018252938 | E191: -0.0420464443 | F191: 0.05805151993 | G191: -0.02816399738 | H191: =IF(SquareWave!B$14=TRUE,Sheet2!D191,"") -> -0.06018252938 | I191: =IF(SquareWave!$B$16=TRUE,Sheet2!E191,"") ->  | J191: =IF(SquareWave!$B$19=TRUE,Sheet2!F191,"") -> 0.05805151993 | K191: =IF(SquareWave!$B$21=TRUE,Sheet2!G191,"") -> -0.02816399738 | O191: 2.389105058 | P191: 0.3616431257 | Q191: 0.400595714 | R191: 0.3846211453 | S191: 0.3928922623 | T191: =IF(TriangleWave!B$14=TRUE,Sheet2!P191,"") -> 0.3616431257 | U191: =IF(TriangleWave!B$16=TRUE,Sheet2!Q191,"") -> 0.400595714 | V191: =IF(TriangleWave!B$19=TRUE,Sheet2!R191,"") -> 0.3846211453 | W191: =IF(TriangleWave!B$21=TRUE,Sheet2!S191,"") -> 0.3928922623 | AA191: 3.750894942 | AB191: 0.201 | AC191: 0.099 | AD191: 0.152 | AE191: 0.230 | AF191: =IF(SawtoothWave!B$14=TRUE,Sheet2!AB191,"") -> 0.201 | AG191: =IF(SawtoothWave!B$16=TRUE,Sheet2!AC191,"") -> 0.099 | AH191: =IF(SawtoothWave!B$19=TRUE,Sheet2!AD191,"") -> 0.152 | AI191: =IF(SawtoothWave!B$21=TRUE,Sheet2!AE191,"") -> 0.230
C192: 5.268585345 | D192: -0.04066170217 | E192: -0.06138091063 | F192: 0.05775375419 | G192: -0.008679619548 | H192: =IF(SquareWave!B$14=TRUE,Sheet2!D192,"") -> -0.04066170217 | I192: =IF(SquareWave!$B$16=TRUE,Sheet2!E192,"") ->  | J192: =IF(SquareWave!$B$19=TRUE,Sheet2!F192,"") -> 0.05775375419 | K192: =IF(SquareWave!$B$21=TRUE,Sheet2!G192,"") -> -0.008679619548 | O192: 2.412451362 | P192: 0.3899297277 | Q192: 0.4230114813 | R192: 0.4071091775 | S192: 0.4153802946 | T192: =IF(TriangleWave!B$14=TRUE,Sheet2!P192,"") -> 0.3899297277 | U192: =IF(TriangleWave!B$16=TRUE,Sheet2!Q192,"") -> 0.4230114813 | V192: =IF(TriangleWave!B$19=TRUE,Sheet2!R192,"") -> 0.4071091775 | W192: =IF(TriangleWave!B$21=TRUE,Sheet2!S192,"") -> 0.4153802946 | AA192: 3.787548638 | AB192: 0.194 | AC192: 0.110 | AD192: 0.182 | AE192: 0.253 | AF192: =IF(SawtoothWave!B$14=TRUE,Sheet2!AB192,"") -> 0.194 | AG192: =IF(SawtoothWave!B$16=TRUE,Sheet2!AC192,"") -> 0.110 | AH192: =IF(SawtoothWave!B$19=TRUE,Sheet2!AD192,"") -> 0.182 | AI192: =IF(SawtoothWave!B$21=TRUE,Sheet2!AE192,"") -> 0.253
C193: 5.329705825 | D193: -0.01912174669 | E193: -0.0780015891 | F193: 0.04912977741 | G193: 0.01445480026 | H193: =IF(SquareWave!B$14=TRUE,Sheet2!D193,"") -> -0.01912174669 | I193: =IF(SquareWave!$B$16=TRUE,Sheet2!E193,"") ->  | J193: =IF(SquareWave!$B$19=TRUE,Sheet2!F193,"") -> 0.04912977741 | K193: =IF(SquareWave!$B$21=TRUE,Sheet2!G193,"") -> 0.01445480026 | O193: 2.435797665 | P193: 0.4188081792 | Q193: 0.4444239018 | R193: 0.4307086343 | S193: 0.4389797513 | T193: =IF(TriangleWave!B$14=TRUE,Sheet2!P193,"") -> 0.4188081792 | U193: =IF(TriangleWave!B$16=TRUE,Sheet2!Q193,"") -> 0.4444239018 | V193: =IF(TriangleWave!B$19=TRUE,Sheet2!R193,"") -> 0.4307086343 | W193: =IF(TriangleWave!B$21=TRUE,Sheet2!S193,"") -> 0.4389797513 | AA193: 3.824202335 | AB193: 0.188 | AC193: 0.126 | AD193: 0.213 | AE193: 0.270 | AF193: =IF(SawtoothWave!B$14=TRUE,Sheet2!AB193,"") -> 0.188 | AG193: =IF(SawtoothWave!B$16=TRUE,Sheet2!AC193,"") -> 0.126 | AH193: =IF(SawtoothWave!B$19=TRUE,Sheet2!AD193,"") -> 0.213 | AI193: =IF(SawtoothWave!B$21=TRUE,Sheet2!AE193,"") -> 0.270
C194: 5.390826304 | D194: 0.00435689502 | E194: -0.09070949785 | F194: 0.03263753125 | G194: 0.03597196995 | H194: =IF(SquareWave!B$14=TRUE,Sheet2!D194,"") -> 0.00435689502 | I194: =IF(SquareWave!$B$16=TRUE,Sheet2!E194,"") ->  | J194: =IF(SquareWave!$B$19=TRUE,Sheet2!F194,"") -> 0.03263753125 | K194: =IF(SquareWave!$B$21=TRUE,Sheet2!G194,"") -> 0.03597196995 | O194: 2.459143969 | P194: 0.4481232005 | Q194: 0.4650377065 | R194: 0.4553334028 | S194: 0.4636045199 | T194: =IF(TriangleWave!B$14=TRUE,Sheet2!P194,"") -> 0.4481232005 | U194: =IF(TriangleWave!B$16=TRUE,Sheet2!Q194,"") -> 0.4650377065 | V194: =IF(TriangleWave!B$19=TRUE,Sheet2!R194,"") -> 0.4553334028 | W194: =IF(TriangleWave!B$21=TRUE,Sheet2!S194,"") -> 0.4636045199 | AA194: 3.860856031 | AB194: 0.184 | AC194: 0.144 | AD194: 0.242 | AE194: 0.281 | AF194: =IF(SawtoothWave!B$14=TRUE,Sheet2!AB194,"") -> 0.184 | AG194: =IF(SawtoothWave!B$16=TRUE,Sheet2!AC194,"") -> 0.144 | AH194: =IF(SawtoothWave!B$19=TRUE,Sheet2!AD194,"") -> 0.242 | AI194: =IF(SawtoothWave!B$21=TRUE,Sheet2!AE194,"") -> 0.281
C195: 5.451946784 | D195: 0.02968654079 | E195: -0.0983790809 | F195: 0.009753259539 | G195: 0.05049599934 | H195: =IF(SquareWave!B$14=TRUE,Sheet2!D195,"") -> 0.02968654079 | I195: =IF(SquareWave!$B$16=TRUE,Sheet2!E195,"") ->  | J195: =IF(SquareWave!$B$19=TRUE,Sheet2!F195,"") -> 0.009753259539 | K195: =IF(SquareWave!$B$21=TRUE,Sheet2!G195,"") -> 0.05049599934 | O195: 2.482490272 | P195: 0.477717164 | Q195: 0.485114839 | R195: 0.4807120281 | S195: 0.4889831452 | T195: =IF(TriangleWave!B$14=TRUE,Sheet2!P195,"") -> 0.477717164 | U195: =IF(TriangleWave!B$16=TRUE,Sheet2!Q195,"") -> 0.485114839 | V195: =IF(TriangleWave!B$19=TRUE,Sheet2!R195,"") -> 0.4807120281 | W195: =IF(TriangleWave!B$21=TRUE,Sheet2!S195,"") -> 0.4889831452 | AA195: 3.897509728 | AB195: 0.182 | AC195: 0.165 | AD195: 0.269 | AE195: 0.287 | AF195: =IF(SawtoothWave!B$14=TRUE,Sheet2!AB195,"") -> 0.182 | AG195: =IF(SawtoothWave!B$16=TRUE,Sheet2!AC195,"") -> 0.165 | AH195: =IF(SawtoothWave!B$19=TRUE,Sheet2!AD195,"") -> 0.269 | AI195: =IF(SawtoothWave!B$21=TRUE,Sheet2!AE195,"") -> 0.287
C196: =C195+dx -> 5.513067264 | D196: =0.5+2/PI()*SIN(C196) -> 0.0567725958 | E196: =D196+2/3/PI()*SIN(3*C196) -> -0.09999855727 | F196: =E196+2/5/PI()*SIN(5*C196) -> -0.01710133843 | G196: =F196+2/7/PI()*SIN(7*C196) -> 0.05370481942 | H196: =IF(SquareWave!B$14=TRUE,Sheet2!D196,"") -> 0.0567725958 | I196: =IF(SquareWave!$B$16=TRUE,Sheet2!E196,"") ->  | J196: =IF(SquareWave!$B$19=TRUE,Sheet2!F196,"") -> -0.01710133843 | K196: =IF(SquareWave!$B$21=TRUE,Sheet2!G196,"") -> 0.05370481942 | O196: =O195+dxx -> 2.505836576 | P196: =0.5 -4/PI()^2*(COS(PI()*O196)) -> 0.5074309428 | Q196: =0.5 -4/PI()^2*(COS(PI()*$O196)) - 4/9/PI()^2*COS(3*PI()*$O196) -> 0.5049550721 | R196: =0.5-4/PI()^2*(COS(PI()*$O196))-4/9/PI()^2*COS(3*PI()*$O196)-4/25/PI()^2*COS(5*PI()*$O196) -> 0.5064392627 | S196: =0.5-4/PI()^2*(COS(PI()*$O196))-4/9/PI()^2*COS(3*PI()*$O196)-4/25/PI()^2*COS(5*PI()*$O196)-4/49/PI()^2*COS(7*PI()*3) -> 0.5147103798 | T196: =IF(TriangleWave!B$14=TRUE,Sheet2!P196,"") -> 0.5074309428 | U196: =IF(TriangleWave!B$16=TRUE,Sheet2!Q196,"") -> 0.5049550721 | V196: =IF(TriangleWave!B$19=TRUE,Sheet2!R196,"") -> 0.5064392627 | W196: =IF(TriangleWave!B$21=TRUE,Sheet2!S196,"") -> 0.5147103798 | AA196: =AA195+dxxx -> 3.934163424 | AB196: =0.5 -(SIN(PI()*$O196))/PI() -> 0.182 | AC196: =0.5-(SIN(PI()*$O196)+SIN(2*PI()*$O196)/2)/PI() -> 0.188 | AD196: =0.5-(SIN(PI()*$O196)+SIN(2*PI()*$O196)/2 + SIN(3*PI()*$O196)/3 )/PI() -> 0.294 | AE196: =0.5-(SIN(PI()*$O196)+SIN(2*PI()*$O196)/2 + SIN(3*PI()*$O196)/3 + SIN(4*PI()*O196)/4)/PI() -> 0.288 | AF196: =IF(SawtoothWave!B$14=TRUE,Sheet2!AB196,"") -> 0.182 | AG196: =IF(SawtoothWave!B$16=TRUE,Sheet2!AC196,"") -> 0.188 | AH196: =IF(SawtoothWave!B$19=TRUE,Sheet2!AD196,"") -> 0.294 | AI196: =IF(SawtoothWave!B$21=TRUE,Sheet2!AE196,"") -> 0.288
C197: 5.574187743 | D197: 0.0855139058 | E197: -0.09470666159 | F197: -0.04472650315 | G197: 0.04337851764 | H197: =IF(SquareWave!B$14=TRUE,Sheet2!D197,"") -> 0.0855139058 | I197: =IF(SquareWave!$B$16=TRUE,Sheet2!E197,"") ->  | J197: =IF(SquareWave!$B$19=TRUE,Sheet2!F197,"") -> -0.04472650315 | K197: =IF(SquareWave!$B$21=TRUE,Sheet2!G197,"") -> 0.04337851764 | O197: 2.529182879 | P197: 0.5371047653 | Q197: 0.524874735 | R197: 0.5320485517 | S197: 0.5403196687 | T197: =IF(TriangleWave!B$14=TRUE,Sheet2!P197,"") -> 0.5371047653 | U197: =IF(TriangleWave!B$16=TRUE,Sheet2!Q197,"") -> 0.524874735 | V197: =IF(TriangleWave!B$19=TRUE,Sheet2!R197,"") -> 0.5320485517 | W197: =IF(TriangleWave!B$21=TRUE,Sheet2!S197,"") -> 0.5403196687 | AA197: 3.970817121 | AB197: 0.183 | AC197: 0.212 | AD197: 0.314 | AE197: 0.286 | AF197: =IF(SawtoothWave!B$14=TRUE,Sheet2!AB197,"") -> 0.183 | AG197: =IF(SawtoothWave!B$16=TRUE,Sheet2!AC197,"") -> 0.212 | AH197: =IF(SawtoothWave!B$19=TRUE,Sheet2!AD197,"") -> 0.314 | AI197: =IF(SawtoothWave!B$21=TRUE,Sheet2!AE197,"") -> 0.286
C198: 5.635308223 | D198: 0.1158031349 | E198: -0.08182453364 | F198: -0.06939300856 | G198: 0.02012777362 | H198: =IF(SquareWave!B$14=TRUE,Sheet2!D198,"") -> 0.1158031349 | I198: =IF(SquareWave!$B$16=TRUE,Sheet2!E198,"") ->  | J198: =IF(SquareWave!$B$19=TRUE,Sheet2!F198,"") -> -0.06939300856 | K198: =IF(SquareWave!$B$21=TRUE,Sheet2!G198,"") -> 0.02012777362 | O198: 2.552529183 | P198: 0.5665790748 | Q198: 0.5451846148 | R198: 0.5570940461 | S198: 0.5653651632 | T198: =IF(TriangleWave!B$14=TRUE,Sheet2!P198,"") -> 0.5665790748 | U198: =IF(TriangleWave!B$16=TRUE,Sheet2!Q198,"") -> 0.5451846148 | V198: =IF(TriangleWave!B$19=TRUE,Sheet2!R198,"") -> 0.5570940461 | W198: =IF(TriangleWave!B$21=TRUE,Sheet2!S198,"") -> 0.5653651632 | AA198: 4.007470817 | AB198: 0.186 | AC198: 0.238 | AD198: 0.331 | AE198: 0.282 | AF198: =IF(SawtoothWave!B$14=TRUE,Sheet2!AB198,"") -> 0.186 | AG198: =IF(SawtoothWave!B$16=TRUE,Sheet2!AC198,"") -> 0.238 | AH198: =IF(SawtoothWave!B$19=TRUE,Sheet2!AD198,"") -> 0.331 | AI198: =IF(SawtoothWave!B$21=TRUE,Sheet2!AE198,"") -> 0.282
C199: 5.696428703 | D199: 0.1475271665 | E199: -0.06088167656 | F199: -0.08715079232 | G199: -0.01235257616 | H199: =IF(SquareWave!B$14=TRUE,Sheet2!D199,"") -> 0.1475271665 | I199: =IF(SquareWave!$B$16=TRUE,Sheet2!E199,"") ->  | J199: =IF(SquareWave!$B$19=TRUE,Sheet2!F199,"") -> -0.08715079232 | K199: =IF(SquareWave!$B$21=TRUE,Sheet2!G199,"") -> -0.01235257616 | O199: 2.575875486 | P199: 0.5956953876 | Q199: 0.566168135 | R199: 0.5812294027 | S199: 0.5895005197 | T199: =IF(TriangleWave!B$14=TRUE,Sheet2!P199,"") -> 0.5956953876 | U199: =IF(TriangleWave!B$16=TRUE,Sheet2!Q199,"") -> 0.566168135 | V199: =IF(TriangleWave!B$19=TRUE,Sheet2!R199,"") -> 0.5812294027 | W199: =IF(TriangleWave!B$21=TRUE,Sheet2!S199,"") -> 0.5895005197 | AA199: 4.044124514 | AB199: 0.191 | AC199: 0.264 | AD199: 0.344 | AE199: 0.279 | AF199: =IF(SawtoothWave!B$14=TRUE,Sheet2!AB199,"") -> 0.191 | AG199: =IF(SawtoothWave!B$16=TRUE,Sheet2!AC199,"") -> 0.264 | AH199: =IF(SawtoothWave!B$19=TRUE,Sheet2!AD199,"") -> 0.344 | AI199: =IF(SawtoothWave!B$21=TRUE,Sheet2!AE199,"") -> 0.279
C200: 5.757549182 | D200: 0.1805675257 | E200: -0.03163510143 | F200: -0.09417054547 | G200: -0.04757911737 | H200: =IF(SquareWave!B$14=TRUE,Sheet2!D200,"") -> 0.1805675257 | I200: =IF(SquareWave!$B$16=TRUE,Sheet2!E200,"") ->  | J200: =IF(SquareWave!$B$19=TRUE,Sheet2!F200,"") -> -0.09417054547 | K200: =IF(SquareWave!$B$21=TRUE,Sheet2!G200,"") -> -0.04757911737 | O200: 2.59922179 | P200: 0.6242971448 | Q200: 0.5880608985 | R200: 0.6042710767 | S200: 0.6125421937 | T200: =IF(TriangleWave!B$14=TRUE,Sheet2!P200,"") -> 0.6242971448 | U200: =IF(TriangleWave!B$16=TRUE,Sheet2!Q200,"") -> 0.5880608985 | V200: =IF(TriangleWave!B$19=TRUE,Sheet2!R200,"") -> 0.6042710767 | W200: =IF(TriangleWave!B$21=TRUE,Sheet2!S200,"") -> 0.6125421937 | AA200: 4.08077821 | AB200: 0.197 | AC200: 0.290 | AD200: 0.353 | AE200: 0.278 | AF200: =IF(SawtoothWave!B$14=TRUE,Sheet2!AB200,"") -> 0.197 | AG200: =IF(SawtoothWave!B$16=TRUE,Sheet2!AC200,"") -> 0.290 | AH200: =IF(SawtoothWave!B$19=TRUE,Sheet2!AD200,"") -> 0.353 | AI200: =IF(SawtoothWave!B$21=TRUE,Sheet2!AE200,"") -> 0.278
... 60 more rows
